Payment Date,Transaction Number,Net Amount,Supplier (Beneficiary) Name,Local Supplier Internal Reference,Directorate / Service Where Expenditure Incurred,Service Category Label,Service Category URI,SeRCOP Expenditure Category,SeRCOP Expenditure Code,Purpose of Spend,SeRCOP Detailed Expenditure Code,Capital/Revenue,Procurement Classification
24-MAR-2022,7013162,67.5,HMCTS,360503,"Health, Education, Care and Safeguarding",Adult Social Care,101,Supplies and Services,504,Miscellaneous Expenses,5034,Revenue,NON INFLUENCIBLE.PUBLIC SECTOR
24-MAR-2022,7013163,67.5,HMCTS,360503,"Health, Education, Care and Safeguarding",Adult Social Care,101,Supplies and Services,504,Miscellaneous Expenses,5034,Revenue,NON INFLUENCIBLE.PUBLIC SECTOR
24-MAR-2022,7013164,67.5,HMCTS,360503,"Health, Education, Care and Safeguarding",Adult Social Care,101,Supplies and Services,504,Miscellaneous Expenses,5034,Revenue,NON INFLUENCIBLE.PUBLIC SECTOR
24-MAR-2022,7013165,22,HMCTS,360503,"Health, Education, Care and Safeguarding",Children's & Education Services,103,Supplies and Services,504,Miscellaneous Expenses,5034,Revenue,NON INFLUENCIBLE.PUBLIC SECTOR
24-MAR-2022,7013166,23.5,WILD AS THE WIND SHOP,402769,"Health, Education, Care and Safeguarding",Children's & Education Services,103,Supplies and Services,504,Equipment,5023,Revenue,NON INFLUENCIBLE.NON INFLUENCIBLE
24-MAR-2022,7013167,0.01,GALLANT SPORT,402768,Local Environmental Services,Housing Services,108,Supplies and Services,504,Miscellaneous Expenses,5034,Revenue,ICT.HARDWARE
24-MAR-2022,7013167,108.32,GALLANT SPORT,402768,Local Environmental Services,Housing Services,108,Supplies and Services,504,Miscellaneous Expenses,5034,Revenue,ICT.HARDWARE
24-MAR-2022,7013168,31.6,SOUTH GOSFORTH FISHERIES,301754,"Health, Education, Care and Safeguarding",Children's & Education Services,103,Supplies and Services,504,Miscellaneous Expenses,5034,Revenue,
24-MAR-2022,7013169,58.44,TELECOMRECY,402767,"Health, Education, Care and Safeguarding",Children's & Education Services,103,Supplies and Services,504,Communications & Computing,5028,Revenue,TELECOMMUNICATIONS.EQUIPMENT
24-MAR-2022,7013170,68,SWIM ENGLAND,396571,Resources,Children's & Education Services,103,Employees,501,Indirect Employee Expenses,5002,Revenue,SPORTS & PLAYGROUND EQUIPMENT.SPORTS EQUIPMENT
24-MAR-2022,7013171,666.67,OBJECTIVE CORPORATION,402766,Law & Governance,Central Services,102,Supplies and Services,504,Expenses,5030,Revenue,NON INFLUENCIBLE.NON INFLUENCIBLE
24-MAR-2022,7013172,242.88,TURNING PAGES,402765,"Health, Education, Care and Safeguarding",Children's & Education Services,103,Supplies and Services,504,Equipment,5023,Revenue,SUBSCRIPTIONS & PUBLICATIONS.BOOKS & PUBLICATIONS
24-MAR-2022,7013173,129.16,THE ROYAL BRITISH LEGION,285405,Waste Management,Environmental & Regulatory Services,105,Supplies and Services,504,Miscellaneous Expenses,5034,Revenue,NON INFLUENCIBLE.NON INFLUENCIBLE
24-MAR-2022,7013174,-15,ROSIES PLACE DOG DAYCARE,402762,Local Environmental Services,Environmental & Regulatory Services,105,Supplies and Services,504,Equipment,5023,Revenue,NON INFLUENCIBLE.INDIVIDUAL
24-MAR-2022,7013174,15,ROSIES PLACE DOG DAYCARE,402762,Local Environmental Services,Environmental & Regulatory Services,105,Supplies and Services,504,Equipment,5023,Revenue,NON INFLUENCIBLE.INDIVIDUAL
24-MAR-2022,7013175,420,KIDS FIRST,402761,"Health, Education, Care and Safeguarding",Children's & Education Services,103,Third Party Payments,505,Other Establishments,5041,Revenue,SOCIAL CARE.CHILDCARE SERVICES
24-MAR-2022,7013176,14.96,MOJANG,402718,"Health, Education, Care and Safeguarding",Children's & Education Services,103,Supplies and Services,504,Miscellaneous Expenses,5034,Revenue,NON INFLUENCIBLE.NON INFLUENCIBLE
24-MAR-2022,7013177,95,LUKE HOMES,402717,"Health, Education, Care and Safeguarding",Children's & Education Services,103,Third Party Payments,505,Private Contractors,5042,Revenue,NON INFLUENCIBLE.NON INFLUENCIBLE
24-MAR-2022,7013177,415.83,LUKE HOMES,402717,"Health, Education, Care and Safeguarding",Children's & Education Services,103,Third Party Payments,505,Private Contractors,5042,Revenue,NON INFLUENCIBLE.NON INFLUENCIBLE
24-MAR-2022,7013177,417.5,LUKE HOMES,402717,"Health, Education, Care and Safeguarding",Children's & Education Services,103,Transfer Payments,506,School Children and Students,5046,Revenue,NON INFLUENCIBLE.NON INFLUENCIBLE
24-MAR-2022,7013178,457.5,KITCHEN AID,402716,Local Environmental Services,Environmental & Regulatory Services,105,Supplies and Services,504,Equipment,5023,Revenue,NON INFLUENCIBLE.NON INFLUENCIBLE
24-MAR-2022,7013179,82.67,KINGDOM HYGEINE,402714,"Sport, Leisure & Community",Cultural & Related Services,104,Premises-Related Expenditure,502,Cleaning and Domestic Supplies,5012,Revenue,NON INFLUENCIBLE.NON INFLUENCIBLE
24-MAR-2022,7013180,-165.83,HOME ESSENTIALS,402713,"Health, Education, Care and Safeguarding",Children's & Education Services,103,Supplies and Services,504,Equipment,5023,Revenue,NON INFLUENCIBLE.NON INFLUENCIBLE
24-MAR-2022,7013180,-5.83,HOME ESSENTIALS,402713,"Health, Education, Care and Safeguarding",Children's & Education Services,103,Supplies and Services,504,Equipment,5023,Revenue,NON INFLUENCIBLE.NON INFLUENCIBLE
24-MAR-2022,7013180,-2.92,HOME ESSENTIALS,402713,"Health, Education, Care and Safeguarding",Children's & Education Services,103,Supplies and Services,504,Equipment,5023,Revenue,NON INFLUENCIBLE.NON INFLUENCIBLE
24-MAR-2022,7013180,2.92,HOME ESSENTIALS,402713,"Health, Education, Care and Safeguarding",Children's & Education Services,103,Supplies and Services,504,Equipment,5023,Revenue,NON INFLUENCIBLE.NON INFLUENCIBLE
24-MAR-2022,7013180,5.83,HOME ESSENTIALS,402713,"Health, Education, Care and Safeguarding",Children's & Education Services,103,Supplies and Services,504,Equipment,5023,Revenue,NON INFLUENCIBLE.NON INFLUENCIBLE
24-MAR-2022,7013180,165.83,HOME ESSENTIALS,402713,"Health, Education, Care and Safeguarding",Children's & Education Services,103,Supplies and Services,504,Equipment,5023,Revenue,NON INFLUENCIBLE.NON INFLUENCIBLE
24-MAR-2022,7013181,715,HSE,402712,"Health, Education, Care and Safeguarding",Children's & Education Services,103,Supplies and Services,504,"Printing, Stationery and General Office Expenses",5026,Revenue,NON INFLUENCIBLE.INDIVIDUAL
24-MAR-2022,7013182,340,HFMA,402711,"Health, Education, Care and Safeguarding",Children's & Education Services,103,Employees,501,Indirect Employee Expenses,5002,Revenue,HUMAN RESOURCES.TRAINING & CONFERENCES
24-MAR-2022,7013183,30,GREENBANKS,402710,"Health, Education, Care and Safeguarding",Children's & Education Services,103,Supplies and Services,504,Equipment,5023,Revenue,HORTICULTURAL.SEEDS & PLANTS
24-MAR-2022,7013184,212.17,GEORGE CARR,402709,Local Environmental Services,Environmental & Regulatory Services,105,Supplies and Services,504,Equipment,5023,Revenue,NON INFLUENCIBLE.INDIVIDUAL
24-MAR-2022,7013185,-83.33,FAIRWAYS LODGE,402708,"Health, Education, Care and Safeguarding",Children's & Education Services,103,Supplies and Services,504,Expenses,5030,Revenue,HUMAN RESOURCES.ACCOMMODATION
24-MAR-2022,7013185,83.33,FAIRWAYS LODGE,402708,"Health, Education, Care and Safeguarding",Children's & Education Services,103,Supplies and Services,504,Expenses,5030,Revenue,HUMAN RESOURCES.ACCOMMODATION
24-MAR-2022,7013185,83.33,FAIRWAYS LODGE,402708,"Health, Education, Care and Safeguarding",Children's & Education Services,103,Supplies and Services,504,Expenses,5030,Revenue,HUMAN RESOURCES.ACCOMMODATION
24-MAR-2022,7013186,196.95,EARTH ANCHORS LTD,222259,Local Environmental Services,Cultural & Related Services,104,Supplies and Services,504,Equipment,5023,Revenue,SPORTS & PLAYGROUND EQUIPMENT.SPORTS EQUIPMENT
24-MAR-2022,7013187,654,DEAL DIRECT BLINDS,386867,Local Environmental Services,Adult Social Care,101,Supplies and Services,504,Equipment,5023,Revenue,FURNITURE.SOFT FURNISHINGS
24-MAR-2022,7013188,13.99,BUY A PLAN,402707,"Health, Education, Care and Safeguarding",Adult Social Care,101,Supplies and Services,504,Equipment,5023,Revenue,NON INFLUENCIBLE.NON INFLUENCIBLE
24-MAR-2022,7013189,135,ANGLIAN,402706,Commissioning & Asset Management,Central Services,102,Supplies and Services,504,Equipment,5023,Revenue,BUILDING MATERIALS.PLUMBING
24-MAR-2022,7013190,65.83,DIAMOND PEOPLE,402636,Local Environmental Services,Environmental & Regulatory Services,105,Supplies and Services,504,Equipment,5023,Revenue,NON INFLUENCIBLE.NON INFLUENCIBLE
24-MAR-2022,7013191,58.95,JUPITER BLUE,402634,Housing Property and Construction,Housing Services,108,Supplies and Services,504,Miscellaneous Expenses,5034,Revenue,NON INFLUENCIBLE.NON INFLUENCIBLE
24-MAR-2022,7013192,59.98,TUDOR ENVIRONMENTAL,388512,Local Environmental Services,Cultural & Related Services,104,Supplies and Services,504,Equipment,5023,Revenue,HORTICULTURAL.TOOLS & EQUIPMENT
24-MAR-2022,7013192,219.44,TUDOR ENVIRONMENTAL,388512,Local Environmental Services,Cultural & Related Services,104,Supplies and Services,504,Equipment,5023,Revenue,HORTICULTURAL.TOOLS & EQUIPMENT
24-MAR-2022,7013192,471.57,TUDOR ENVIRONMENTAL,388512,Local Environmental Services,Cultural & Related Services,104,Supplies and Services,504,Equipment,5023,Revenue,HORTICULTURAL.TOOLS & EQUIPMENT
24-MAR-2022,7013193,6.75,BETTER,402374,"Health, Education, Care and Safeguarding",Children's & Education Services,103,Supplies and Services,504,Miscellaneous Expenses,5034,Revenue,NON INFLUENCIBLE.INDIVIDUAL
24-MAR-2022,7013194,122.09,PRO CATERING EQUIPMENT,402231,Commissioning & Asset Management,Children's & Education Services,103,Supplies and Services,504,Equipment,5023,Revenue,CATERING.BANQUET & CATERING
24-MAR-2022,7013194,208.63,PRO CATERING EQUIPMENT,402231,Commissioning & Asset Management,Children's & Education Services,103,Supplies and Services,504,Equipment,5023,Revenue,CATERING.BANQUET & CATERING
24-MAR-2022,7013194,428.76,PRO CATERING EQUIPMENT,402231,Commissioning & Asset Management,Children's & Education Services,103,Supplies and Services,504,Equipment,5023,Revenue,CATERING.BANQUET & CATERING
24-MAR-2022,7013195,12.59,ZEBRA ELECTRONICS LTD T/A DOMAINCHECK,389996,Regeneration & Economic Development,Planning Services ,110,Supplies and Services,504,"Printing, Stationery and General Office Expenses",5026,Revenue,ICT.SOFTWARE
24-MAR-2022,7013196,14.58,FRESHA FIDGETS,401846,"Health, Education, Care and Safeguarding",Children's & Education Services,103,Supplies and Services,504,Miscellaneous Expenses,5034,Revenue,NON INFLUENCIBLE.NON INFLUENCIBLE
24-MAR-2022,7013197,12.5,ETSY,401830,"Health, Education, Care and Safeguarding",Children's & Education Services,103,Supplies and Services,504,Equipment,5023,Revenue,NON INFLUENCIBLE.NON INFLUENCIBLE
24-MAR-2022,7013198,64.84,HOTEL 52,401710,General Fund Housing,Housing Services,108,Third Party Payments,505,Private Contractors,5042,Revenue,NON INFLUENCIBLE.NON INFLUENCIBLE
24-MAR-2022,7013199,7.99,UNLIMITED,401692,"Health, Education, Care and Safeguarding",Children's & Education Services,103,Supplies and Services,504,Miscellaneous Expenses,5034,Revenue,NON INFLUENCIBLE.NON INFLUENCIBLE
24-MAR-2022,7013200,167.64,GEORDIE MUGS,401688,Regeneration & Economic Development,Cultural & Related Services,104,Supplies and Services,504,Equipment,5023,Revenue,NON INFLUENCIBLE.NON INFLUENCIBLE
24-MAR-2022,7013201,421.12,SUREGREEN,401527,Local Environmental Services,Cultural & Related Services,104,Supplies and Services,504,Equipment,5023,Revenue,NON INFLUENCIBLE.NON INFLUENCIBLE
24-MAR-2022,7013202,22,NCS CITB,401170,"Health, Education, Care and Safeguarding",Children's & Education Services,103,Supplies and Services,504,Equipment,5023,Revenue,EDUCATIONAL SUPPLIES.CURRICULUM
24-MAR-2022,7013202,22,NCS CITB,401170,"Health, Education, Care and Safeguarding",Children's & Education Services,103,Supplies and Services,504,Equipment,5023,Revenue,EDUCATIONAL SUPPLIES.CURRICULUM
24-MAR-2022,7013202,22,NCS CITB,401170,"Health, Education, Care and Safeguarding",Children's & Education Services,103,Supplies and Services,504,Equipment,5023,Revenue,EDUCATIONAL SUPPLIES.CURRICULUM
24-MAR-2022,7013202,22,NCS CITB,401170,"Health, Education, Care and Safeguarding",Children's & Education Services,103,Supplies and Services,504,Equipment,5023,Revenue,EDUCATIONAL SUPPLIES.CURRICULUM
24-MAR-2022,7013202,22,NCS CITB,401170,"Health, Education, Care and Safeguarding",Children's & Education Services,103,Supplies and Services,504,Equipment,5023,Revenue,EDUCATIONAL SUPPLIES.CURRICULUM
24-MAR-2022,7013202,22,NCS CITB,401170,"Health, Education, Care and Safeguarding",Children's & Education Services,103,Supplies and Services,504,Equipment,5023,Revenue,EDUCATIONAL SUPPLIES.CURRICULUM
24-MAR-2022,7013203,79.9,DISNEY PLUS,401130,"Health, Education, Care and Safeguarding",Adult Social Care,101,Supplies and Services,504,"Printing, Stationery and General Office Expenses",5026,Revenue,TELECOMMUNICATIONS.EQUIPMENT
24-MAR-2022,7013204,-0.01,EON CONTROL SOLUTIONS LIMITED,400441,"Health, Education, Care and Safeguarding",Children's & Education Services,103,Premises-Related Expenditure,502,Energy Costs,5006,Revenue,REPAIRS & MAINTENANCE.REPAIRS & MAINTENANCE
24-MAR-2022,7013204,-0.01,EON CONTROL SOLUTIONS LIMITED,400441,"Health, Education, Care and Safeguarding",Children's & Education Services,103,Supplies and Services,504,Communications & Computing,5028,Revenue,REPAIRS & MAINTENANCE.REPAIRS & MAINTENANCE
24-MAR-2022,7013204,-0.01,EON CONTROL SOLUTIONS LIMITED,400441,"Health, Education, Care and Safeguarding",Children's & Education Services,103,Supplies and Services,504,Communications & Computing,5028,Revenue,REPAIRS & MAINTENANCE.REPAIRS & MAINTENANCE
24-MAR-2022,7013204,47.62,EON CONTROL SOLUTIONS LIMITED,400441,"Health, Education, Care and Safeguarding",Children's & Education Services,103,Supplies and Services,504,Communications & Computing,5028,Revenue,REPAIRS & MAINTENANCE.REPAIRS & MAINTENANCE
24-MAR-2022,7013204,95.24,EON CONTROL SOLUTIONS LIMITED,400441,"Health, Education, Care and Safeguarding",Children's & Education Services,103,Supplies and Services,504,Communications & Computing,5028,Revenue,REPAIRS & MAINTENANCE.REPAIRS & MAINTENANCE
24-MAR-2022,7013204,207.81,EON CONTROL SOLUTIONS LIMITED,400441,"Health, Education, Care and Safeguarding",Children's & Education Services,103,Premises-Related Expenditure,502,Energy Costs,5006,Revenue,REPAIRS & MAINTENANCE.REPAIRS & MAINTENANCE
24-MAR-2022,7013205,25,THE DIGITAL HUB,401037,"Health, Education, Care and Safeguarding",Children's & Education Services,103,Supplies and Services,504,Miscellaneous Expenses,5034,Revenue,HUMAN RESOURCES.TRAINING & CONFERENCES
24-MAR-2022,7013205,50,THE DIGITAL HUB,401037,"Health, Education, Care and Safeguarding",Children's & Education Services,103,Supplies and Services,504,Miscellaneous Expenses,5034,Revenue,HUMAN RESOURCES.TRAINING & CONFERENCES
24-MAR-2022,7013205,320,THE DIGITAL HUB,401037,"Health, Education, Care and Safeguarding",Children's & Education Services,103,Supplies and Services,504,Miscellaneous Expenses,5034,Revenue,HUMAN RESOURCES.TRAINING & CONFERENCES
24-MAR-2022,7013206,19,BOOK WHEN,401025,Corporate Strategy,Children's & Education Services,103,Supplies and Services,504,Expenses,5030,Revenue,ICT.SOFTWARE
24-MAR-2022,7013207,8,BLUE LINE TAXIS,002700,"Health, Education, Care and Safeguarding",Children's & Education Services,103,Third Party Payments,505,Other Establishments,5041,Revenue,PUBLIC TRANSPORT.TAXI SERVICES
24-MAR-2022,7013208,217.78,THEMEL ROSEGUES,400318,General Fund Housing,Housing Services,108,Third Party Payments,505,Private Contractors,5042,Revenue,HUMAN RESOURCES.ACCOMMODATION
24-MAR-2022,7013208,217.78,THEMEL ROSEGUES,400318,General Fund Housing,Housing Services,108,Third Party Payments,505,Private Contractors,5042,Revenue,HUMAN RESOURCES.ACCOMMODATION
24-MAR-2022,7013208,217.78,THEMEL ROSEGUES,400318,General Fund Housing,Housing Services,108,Third Party Payments,505,Private Contractors,5042,Revenue,HUMAN RESOURCES.ACCOMMODATION
24-MAR-2022,7013208,217.78,THEMEL ROSEGUES,400318,General Fund Housing,Housing Services,108,Third Party Payments,505,Private Contractors,5042,Revenue,HUMAN RESOURCES.ACCOMMODATION
24-MAR-2022,7013208,217.78,THEMEL ROSEGUES,400318,General Fund Housing,Housing Services,108,Third Party Payments,505,Private Contractors,5042,Revenue,HUMAN RESOURCES.ACCOMMODATION
24-MAR-2022,7013208,217.78,THEMEL ROSEGUES,400318,General Fund Housing,Housing Services,108,Third Party Payments,505,Private Contractors,5042,Revenue,HUMAN RESOURCES.ACCOMMODATION
24-MAR-2022,7013208,248.89,THEMEL ROSEGUES,400318,General Fund Housing,Housing Services,108,Third Party Payments,505,Private Contractors,5042,Revenue,HUMAN RESOURCES.ACCOMMODATION
24-MAR-2022,7013209,-41.53,EBAY,400312,Local Environmental Services,Housing Services,108,Supplies and Services,504,Miscellaneous Expenses,5034,Revenue,ICT.ONLINE SERVICES
24-MAR-2022,7013209,-0.01,EBAY,400312,Regeneration & Economic Development,Cultural & Related Services,104,Supplies and Services,504,Equipment,5023,Revenue,ICT.ONLINE SERVICES
24-MAR-2022,7013209,0.01,EBAY,400312,Local Environmental Services,Housing Services,108,Supplies and Services,504,Miscellaneous Expenses,5034,Revenue,ICT.ONLINE SERVICES
24-MAR-2022,7013209,4.96,EBAY,400312,"Health, Education, Care and Safeguarding",Children's & Education Services,103,Supplies and Services,504,Miscellaneous Expenses,5034,Revenue,ICT.ONLINE SERVICES
24-MAR-2022,7013209,6.25,EBAY,400312,"Health, Education, Care and Safeguarding",Children's & Education Services,103,Supplies and Services,504,Equipment,5023,Revenue,ICT.ONLINE SERVICES
24-MAR-2022,7013209,9.16,EBAY,400312,"Health, Education, Care and Safeguarding",Children's & Education Services,103,Supplies and Services,504,Miscellaneous Expenses,5034,Revenue,ICT.ONLINE SERVICES
24-MAR-2022,7013209,24.91,EBAY,400312,Local Environmental Services,Housing Services,108,Supplies and Services,504,Miscellaneous Expenses,5034,Revenue,ICT.ONLINE SERVICES
24-MAR-2022,7013209,29.63,EBAY,400312,Regeneration & Economic Development,Cultural & Related Services,104,Supplies and Services,504,Equipment,5023,Revenue,ICT.ONLINE SERVICES
24-MAR-2022,7013209,91.8,EBAY,400312,Local Environmental Services,Housing Services,108,Supplies and Services,504,Miscellaneous Expenses,5034,Revenue,ICT.ONLINE SERVICES
24-MAR-2022,7013210,308,JOANNE WISHART GALLERY,399645,Regeneration & Economic Development,Cultural & Related Services,104,Supplies and Services,504,Equipment,5023,Revenue,EDUCATIONAL SUPPLIES.ARTS & CRAFTS
24-MAR-2022,7013211,683.73,MENTIMETER,399555,Resources,Children's & Education Services,103,Employees,501,Indirect Employee Expenses,5002,Revenue,ICT.SOFTWARE
24-MAR-2022,7013212,-0.01,SHARK NINJA,399491,Commissioning & Asset Management,Children's & Education Services,103,Supplies and Services,504,Equipment,5023,Revenue,CATERING.EQUIPMENT & UTENSILS
24-MAR-2022,7013212,66.63,SHARK NINJA,399491,Commissioning & Asset Management,Children's & Education Services,103,Supplies and Services,504,Equipment,5023,Revenue,CATERING.EQUIPMENT & UTENSILS
24-MAR-2022,7013212,83.33,SHARK NINJA,399491,Commissioning & Asset Management,Children's & Education Services,103,Supplies and Services,504,Equipment,5023,Revenue,CATERING.EQUIPMENT & UTENSILS
24-MAR-2022,7013212,141.66,SHARK NINJA,399491,"Sport, Leisure & Community",Cultural & Related Services,104,Premises-Related Expenditure,502,Cleaning and Domestic Supplies,5012,Revenue,CATERING.EQUIPMENT & UTENSILS
24-MAR-2022,7013213,10,PAYPOINT GENERAL,399371,"Health, Education, Care and Safeguarding",Children's & Education Services,103,Third Party Payments,505,Other Establishments,5041,Revenue,FINANCIAL SERVICES.CASH COLLECTION
24-MAR-2022,7013214,75.2,JURYS INN NEWCASTLE,366318,General Fund Housing,Public Health,112,Third Party Payments,505,Private Contractors,5042,Revenue,
24-MAR-2022,7013215,-119.45,TOTAL PRODUCE GATESHEAD,399244,Commissioning & Asset Management,Children's & Education Services,103,Supplies and Services,504,Equipment,5023,Revenue,CATERING.FOOD & BEVERAGES
24-MAR-2022,7013215,-50.97,TOTAL PRODUCE GATESHEAD,399244,Commissioning & Asset Management,Children's & Education Services,103,Supplies and Services,504,Equipment,5023,Revenue,CATERING.FOOD & BEVERAGES
24-MAR-2022,7013215,-31.5,TOTAL PRODUCE GATESHEAD,399244,Commissioning & Asset Management,Children's & Education Services,103,Supplies and Services,504,Equipment,5023,Revenue,CATERING.FOOD & BEVERAGES
24-MAR-2022,7013215,-29.88,TOTAL PRODUCE GATESHEAD,399244,Commissioning & Asset Management,Children's & Education Services,103,Supplies and Services,504,Equipment,5023,Revenue,CATERING.FOOD & BEVERAGES
24-MAR-2022,7013215,-26.25,TOTAL PRODUCE GATESHEAD,399244,Commissioning & Asset Management,Children's & Education Services,103,Supplies and Services,504,Equipment,5023,Revenue,CATERING.FOOD & BEVERAGES
24-MAR-2022,7013215,-23.38,TOTAL PRODUCE GATESHEAD,399244,Commissioning & Asset Management,Children's & Education Services,103,Supplies and Services,504,Equipment,5023,Revenue,CATERING.FOOD & BEVERAGES
24-MAR-2022,7013215,-23.38,TOTAL PRODUCE GATESHEAD,399244,Commissioning & Asset Management,Children's & Education Services,103,Supplies and Services,504,Equipment,5023,Revenue,CATERING.FOOD & BEVERAGES
24-MAR-2022,7013215,-23.38,TOTAL PRODUCE GATESHEAD,399244,Commissioning & Asset Management,Children's & Education Services,103,Supplies and Services,504,Equipment,5023,Revenue,CATERING.FOOD & BEVERAGES
24-MAR-2022,7013215,-21.98,TOTAL PRODUCE GATESHEAD,399244,Commissioning & Asset Management,Children's & Education Services,103,Supplies and Services,504,Equipment,5023,Revenue,CATERING.FOOD & BEVERAGES
24-MAR-2022,7013215,-21.98,TOTAL PRODUCE GATESHEAD,399244,Commissioning & Asset Management,Children's & Education Services,103,Supplies and Services,504,Equipment,5023,Revenue,CATERING.FOOD & BEVERAGES
24-MAR-2022,7013215,-21.8,TOTAL PRODUCE GATESHEAD,399244,Commissioning & Asset Management,Children's & Education Services,103,Supplies and Services,504,Equipment,5023,Revenue,CATERING.FOOD & BEVERAGES
24-MAR-2022,7013215,-19.99,TOTAL PRODUCE GATESHEAD,399244,Commissioning & Asset Management,Children's & Education Services,103,Supplies and Services,504,Equipment,5023,Revenue,CATERING.FOOD & BEVERAGES
24-MAR-2022,7013215,-16.75,TOTAL PRODUCE GATESHEAD,399244,Commissioning & Asset Management,Children's & Education Services,103,Supplies and Services,504,Equipment,5023,Revenue,CATERING.FOOD & BEVERAGES
24-MAR-2022,7013215,-16.35,TOTAL PRODUCE GATESHEAD,399244,Commissioning & Asset Management,Children's & Education Services,103,Supplies and Services,504,Equipment,5023,Revenue,CATERING.FOOD & BEVERAGES
24-MAR-2022,7013215,-15.4,TOTAL PRODUCE GATESHEAD,399244,Commissioning & Asset Management,Children's & Education Services,103,Supplies and Services,504,Equipment,5023,Revenue,CATERING.FOOD & BEVERAGES
24-MAR-2022,7013215,-13.08,TOTAL PRODUCE GATESHEAD,399244,Commissioning & Asset Management,Children's & Education Services,103,Supplies and Services,504,Equipment,5023,Revenue,CATERING.FOOD & BEVERAGES
24-MAR-2022,7013215,-12.62,TOTAL PRODUCE GATESHEAD,399244,Local Environmental Services,Cultural & Related Services,104,Supplies and Services,504,Equipment,5023,Revenue,CATERING.FOOD & BEVERAGES
24-MAR-2022,7013215,-11.69,TOTAL PRODUCE GATESHEAD,399244,Commissioning & Asset Management,Children's & Education Services,103,Supplies and Services,504,Equipment,5023,Revenue,CATERING.FOOD & BEVERAGES
24-MAR-2022,7013215,-11.69,TOTAL PRODUCE GATESHEAD,399244,Commissioning & Asset Management,Children's & Education Services,103,Supplies and Services,504,Equipment,5023,Revenue,CATERING.FOOD & BEVERAGES
24-MAR-2022,7013215,-11.69,TOTAL PRODUCE GATESHEAD,399244,Commissioning & Asset Management,Children's & Education Services,103,Supplies and Services,504,Equipment,5023,Revenue,CATERING.FOOD & BEVERAGES
24-MAR-2022,7013215,-11.69,TOTAL PRODUCE GATESHEAD,399244,Commissioning & Asset Management,Children's & Education Services,103,Supplies and Services,504,Equipment,5023,Revenue,CATERING.FOOD & BEVERAGES
24-MAR-2022,7013215,-11.69,TOTAL PRODUCE GATESHEAD,399244,Commissioning & Asset Management,Children's & Education Services,103,Supplies and Services,504,Equipment,5023,Revenue,CATERING.FOOD & BEVERAGES
24-MAR-2022,7013215,-11.69,TOTAL PRODUCE GATESHEAD,399244,Commissioning & Asset Management,Children's & Education Services,103,Supplies and Services,504,Equipment,5023,Revenue,CATERING.FOOD & BEVERAGES
24-MAR-2022,7013215,-11.69,TOTAL PRODUCE GATESHEAD,399244,Commissioning & Asset Management,Children's & Education Services,103,Supplies and Services,504,Equipment,5023,Revenue,CATERING.FOOD & BEVERAGES
24-MAR-2022,7013215,-11.69,TOTAL PRODUCE GATESHEAD,399244,Commissioning & Asset Management,Children's & Education Services,103,Supplies and Services,504,Equipment,5023,Revenue,CATERING.FOOD & BEVERAGES
24-MAR-2022,7013215,-10.98,TOTAL PRODUCE GATESHEAD,399244,Commissioning & Asset Management,Children's & Education Services,103,Supplies and Services,504,Equipment,5023,Revenue,CATERING.FOOD & BEVERAGES
24-MAR-2022,7013215,-10.5,TOTAL PRODUCE GATESHEAD,399244,Commissioning & Asset Management,Children's & Education Services,103,Supplies and Services,504,Equipment,5023,Revenue,CATERING.FOOD & BEVERAGES
24-MAR-2022,7013215,-10.5,TOTAL PRODUCE GATESHEAD,399244,Commissioning & Asset Management,Children's & Education Services,103,Supplies and Services,504,Equipment,5023,Revenue,CATERING.FOOD & BEVERAGES
24-MAR-2022,7013215,-9.9,TOTAL PRODUCE GATESHEAD,399244,Commissioning & Asset Management,Children's & Education Services,103,Supplies and Services,504,Equipment,5023,Revenue,CATERING.FOOD & BEVERAGES
24-MAR-2022,7013215,-8.8,TOTAL PRODUCE GATESHEAD,399244,Commissioning & Asset Management,Children's & Education Services,103,Supplies and Services,504,Equipment,5023,Revenue,CATERING.FOOD & BEVERAGES
24-MAR-2022,7013215,-8.6,TOTAL PRODUCE GATESHEAD,399244,Commissioning & Asset Management,Children's & Education Services,103,Supplies and Services,504,Equipment,5023,Revenue,CATERING.FOOD & BEVERAGES
24-MAR-2022,7013215,-8.6,TOTAL PRODUCE GATESHEAD,399244,Commissioning & Asset Management,Children's & Education Services,103,Supplies and Services,504,Equipment,5023,Revenue,CATERING.FOOD & BEVERAGES
24-MAR-2022,7013215,-8.1,TOTAL PRODUCE GATESHEAD,399244,Commissioning & Asset Management,Children's & Education Services,103,Supplies and Services,504,Equipment,5023,Revenue,CATERING.FOOD & BEVERAGES
24-MAR-2022,7013215,-7.76,TOTAL PRODUCE GATESHEAD,399244,Commissioning & Asset Management,Children's & Education Services,103,Supplies and Services,504,Equipment,5023,Revenue,CATERING.FOOD & BEVERAGES
24-MAR-2022,7013215,-7.36,TOTAL PRODUCE GATESHEAD,399244,Commissioning & Asset Management,Children's & Education Services,103,Supplies and Services,504,Equipment,5023,Revenue,CATERING.FOOD & BEVERAGES
24-MAR-2022,7013215,-6.6,TOTAL PRODUCE GATESHEAD,399244,Commissioning & Asset Management,Children's & Education Services,103,Supplies and Services,504,Equipment,5023,Revenue,CATERING.FOOD & BEVERAGES
24-MAR-2022,7013215,-6.56,TOTAL PRODUCE GATESHEAD,399244,Commissioning & Asset Management,Children's & Education Services,103,Supplies and Services,504,Equipment,5023,Revenue,CATERING.FOOD & BEVERAGES
24-MAR-2022,7013215,-6.54,TOTAL PRODUCE GATESHEAD,399244,Commissioning & Asset Management,Children's & Education Services,103,Supplies and Services,504,Equipment,5023,Revenue,CATERING.FOOD & BEVERAGES
24-MAR-2022,7013215,-6.4,TOTAL PRODUCE GATESHEAD,399244,Commissioning & Asset Management,Children's & Education Services,103,Supplies and Services,504,Equipment,5023,Revenue,CATERING.FOOD & BEVERAGES
24-MAR-2022,7013215,-6.1,TOTAL PRODUCE GATESHEAD,399244,Commissioning & Asset Management,Children's & Education Services,103,Supplies and Services,504,Equipment,5023,Revenue,CATERING.FOOD & BEVERAGES
24-MAR-2022,7013215,-5.53,TOTAL PRODUCE GATESHEAD,399244,Commissioning & Asset Management,Children's & Education Services,103,Supplies and Services,504,Equipment,5023,Revenue,CATERING.FOOD & BEVERAGES
24-MAR-2022,7013215,-5.49,TOTAL PRODUCE GATESHEAD,399244,Commissioning & Asset Management,Children's & Education Services,103,Supplies and Services,504,Equipment,5023,Revenue,CATERING.FOOD & BEVERAGES
24-MAR-2022,7013215,-5.4,TOTAL PRODUCE GATESHEAD,399244,Commissioning & Asset Management,Children's & Education Services,103,Supplies and Services,504,Equipment,5023,Revenue,CATERING.FOOD & BEVERAGES
24-MAR-2022,7013215,-5.25,TOTAL PRODUCE GATESHEAD,399244,Commissioning & Asset Management,Children's & Education Services,103,Supplies and Services,504,Equipment,5023,Revenue,CATERING.FOOD & BEVERAGES
24-MAR-2022,7013215,-5.25,TOTAL PRODUCE GATESHEAD,399244,Commissioning & Asset Management,Children's & Education Services,103,Supplies and Services,504,Equipment,5023,Revenue,CATERING.FOOD & BEVERAGES
24-MAR-2022,7013215,-5.25,TOTAL PRODUCE GATESHEAD,399244,Commissioning & Asset Management,Children's & Education Services,103,Supplies and Services,504,Equipment,5023,Revenue,CATERING.FOOD & BEVERAGES
24-MAR-2022,7013215,-4.95,TOTAL PRODUCE GATESHEAD,399244,Commissioning & Asset Management,Children's & Education Services,103,Supplies and Services,504,Equipment,5023,Revenue,CATERING.FOOD & BEVERAGES
24-MAR-2022,7013215,-4.92,TOTAL PRODUCE GATESHEAD,399244,Commissioning & Asset Management,Children's & Education Services,103,Supplies and Services,504,Equipment,5023,Revenue,CATERING.FOOD & BEVERAGES
24-MAR-2022,7013215,-4.92,TOTAL PRODUCE GATESHEAD,399244,Commissioning & Asset Management,Children's & Education Services,103,Supplies and Services,504,Equipment,5023,Revenue,CATERING.FOOD & BEVERAGES
24-MAR-2022,7013215,-4.5,TOTAL PRODUCE GATESHEAD,399244,Commissioning & Asset Management,Children's & Education Services,103,Supplies and Services,504,Equipment,5023,Revenue,CATERING.FOOD & BEVERAGES
24-MAR-2022,7013215,-3.99,TOTAL PRODUCE GATESHEAD,399244,Commissioning & Asset Management,Children's & Education Services,103,Supplies and Services,504,Equipment,5023,Revenue,CATERING.FOOD & BEVERAGES
24-MAR-2022,7013215,-3.99,TOTAL PRODUCE GATESHEAD,399244,Commissioning & Asset Management,Children's & Education Services,103,Supplies and Services,504,Equipment,5023,Revenue,CATERING.FOOD & BEVERAGES
24-MAR-2022,7013215,-3.88,TOTAL PRODUCE GATESHEAD,399244,Commissioning & Asset Management,Children's & Education Services,103,Supplies and Services,504,Equipment,5023,Revenue,CATERING.FOOD & BEVERAGES
24-MAR-2022,7013215,-3.88,TOTAL PRODUCE GATESHEAD,399244,Commissioning & Asset Management,Children's & Education Services,103,Supplies and Services,504,Equipment,5023,Revenue,CATERING.FOOD & BEVERAGES
24-MAR-2022,7013215,-3.8,TOTAL PRODUCE GATESHEAD,399244,Commissioning & Asset Management,Children's & Education Services,103,Supplies and Services,504,Equipment,5023,Revenue,CATERING.FOOD & BEVERAGES
24-MAR-2022,7013215,-3.67,TOTAL PRODUCE GATESHEAD,399244,Commissioning & Asset Management,Children's & Education Services,103,Supplies and Services,504,Equipment,5023,Revenue,CATERING.FOOD & BEVERAGES
24-MAR-2022,7013215,-3.66,TOTAL PRODUCE GATESHEAD,399244,Commissioning & Asset Management,Children's & Education Services,103,Supplies and Services,504,Equipment,5023,Revenue,CATERING.FOOD & BEVERAGES
24-MAR-2022,7013215,-3.6,TOTAL PRODUCE GATESHEAD,399244,Commissioning & Asset Management,Children's & Education Services,103,Supplies and Services,504,Equipment,5023,Revenue,CATERING.FOOD & BEVERAGES
24-MAR-2022,7013215,-3.6,TOTAL PRODUCE GATESHEAD,399244,Commissioning & Asset Management,Children's & Education Services,103,Supplies and Services,504,Equipment,5023,Revenue,CATERING.FOOD & BEVERAGES
24-MAR-2022,7013215,-3.18,TOTAL PRODUCE GATESHEAD,399244,Commissioning & Asset Management,Children's & Education Services,103,Supplies and Services,504,Equipment,5023,Revenue,CATERING.FOOD & BEVERAGES
24-MAR-2022,7013215,-3.18,TOTAL PRODUCE GATESHEAD,399244,Commissioning & Asset Management,Children's & Education Services,103,Supplies and Services,504,Equipment,5023,Revenue,CATERING.FOOD & BEVERAGES
24-MAR-2022,7013215,-3.18,TOTAL PRODUCE GATESHEAD,399244,Commissioning & Asset Management,Children's & Education Services,103,Supplies and Services,504,Equipment,5023,Revenue,CATERING.FOOD & BEVERAGES
24-MAR-2022,7013215,-3.18,TOTAL PRODUCE GATESHEAD,399244,Commissioning & Asset Management,Children's & Education Services,103,Supplies and Services,504,Equipment,5023,Revenue,CATERING.FOOD & BEVERAGES
24-MAR-2022,7013215,-3.08,TOTAL PRODUCE GATESHEAD,399244,Local Environmental Services,Cultural & Related Services,104,Supplies and Services,504,Equipment,5023,Revenue,CATERING.FOOD & BEVERAGES
24-MAR-2022,7013215,-3,TOTAL PRODUCE GATESHEAD,399244,Commissioning & Asset Management,Children's & Education Services,103,Supplies and Services,504,Equipment,5023,Revenue,CATERING.FOOD & BEVERAGES
24-MAR-2022,7013215,-3,TOTAL PRODUCE GATESHEAD,399244,Commissioning & Asset Management,Children's & Education Services,103,Supplies and Services,504,Equipment,5023,Revenue,CATERING.FOOD & BEVERAGES
24-MAR-2022,7013215,-3,TOTAL PRODUCE GATESHEAD,399244,Commissioning & Asset Management,Children's & Education Services,103,Supplies and Services,504,Equipment,5023,Revenue,CATERING.FOOD & BEVERAGES
24-MAR-2022,7013215,-2.91,TOTAL PRODUCE GATESHEAD,399244,Commissioning & Asset Management,Children's & Education Services,103,Supplies and Services,504,Equipment,5023,Revenue,CATERING.FOOD & BEVERAGES
24-MAR-2022,7013215,-2.7,TOTAL PRODUCE GATESHEAD,399244,Commissioning & Asset Management,Children's & Education Services,103,Supplies and Services,504,Equipment,5023,Revenue,CATERING.FOOD & BEVERAGES
24-MAR-2022,7013215,-2.7,TOTAL PRODUCE GATESHEAD,399244,Commissioning & Asset Management,Children's & Education Services,103,Supplies and Services,504,Equipment,5023,Revenue,CATERING.FOOD & BEVERAGES
24-MAR-2022,7013215,-2.65,TOTAL PRODUCE GATESHEAD,399244,Commissioning & Asset Management,Children's & Education Services,103,Supplies and Services,504,Equipment,5023,Revenue,CATERING.FOOD & BEVERAGES
24-MAR-2022,7013215,-2.56,TOTAL PRODUCE GATESHEAD,399244,Commissioning & Asset Management,Children's & Education Services,103,Supplies and Services,504,Equipment,5023,Revenue,CATERING.FOOD & BEVERAGES
24-MAR-2022,7013215,-2.56,TOTAL PRODUCE GATESHEAD,399244,Commissioning & Asset Management,Children's & Education Services,103,Supplies and Services,504,Equipment,5023,Revenue,CATERING.FOOD & BEVERAGES
24-MAR-2022,7013215,-2.44,TOTAL PRODUCE GATESHEAD,399244,Commissioning & Asset Management,Children's & Education Services,103,Supplies and Services,504,Equipment,5023,Revenue,CATERING.FOOD & BEVERAGES
24-MAR-2022,7013215,-2.2,TOTAL PRODUCE GATESHEAD,399244,Commissioning & Asset Management,Children's & Education Services,103,Supplies and Services,504,Equipment,5023,Revenue,CATERING.FOOD & BEVERAGES
24-MAR-2022,7013215,-2.2,TOTAL PRODUCE GATESHEAD,399244,Commissioning & Asset Management,Children's & Education Services,103,Supplies and Services,504,Equipment,5023,Revenue,CATERING.FOOD & BEVERAGES
24-MAR-2022,7013215,-2.2,TOTAL PRODUCE GATESHEAD,399244,Commissioning & Asset Management,Children's & Education Services,103,Supplies and Services,504,Equipment,5023,Revenue,CATERING.FOOD & BEVERAGES
24-MAR-2022,7013215,-2.2,TOTAL PRODUCE GATESHEAD,399244,Commissioning & Asset Management,Children's & Education Services,103,Supplies and Services,504,Equipment,5023,Revenue,CATERING.FOOD & BEVERAGES
24-MAR-2022,7013215,-2.2,TOTAL PRODUCE GATESHEAD,399244,Commissioning & Asset Management,Children's & Education Services,103,Supplies and Services,504,Equipment,5023,Revenue,CATERING.FOOD & BEVERAGES
24-MAR-2022,7013215,-2.2,TOTAL PRODUCE GATESHEAD,399244,Commissioning & Asset Management,Children's & Education Services,103,Supplies and Services,504,Equipment,5023,Revenue,CATERING.FOOD & BEVERAGES
24-MAR-2022,7013215,-2.18,TOTAL PRODUCE GATESHEAD,399244,Commissioning & Asset Management,Children's & Education Services,103,Supplies and Services,504,Equipment,5023,Revenue,CATERING.FOOD & BEVERAGES
24-MAR-2022,7013215,-2.15,TOTAL PRODUCE GATESHEAD,399244,Commissioning & Asset Management,Children's & Education Services,103,Supplies and Services,504,Equipment,5023,Revenue,CATERING.FOOD & BEVERAGES
24-MAR-2022,7013215,-1.95,TOTAL PRODUCE GATESHEAD,399244,Commissioning & Asset Management,Children's & Education Services,103,Supplies and Services,504,Equipment,5023,Revenue,CATERING.FOOD & BEVERAGES
24-MAR-2022,7013215,-1.92,TOTAL PRODUCE GATESHEAD,399244,Commissioning & Asset Management,Children's & Education Services,103,Supplies and Services,504,Equipment,5023,Revenue,CATERING.FOOD & BEVERAGES
24-MAR-2022,7013215,-1.9,TOTAL PRODUCE GATESHEAD,399244,Commissioning & Asset Management,Children's & Education Services,103,Supplies and Services,504,Equipment,5023,Revenue,CATERING.FOOD & BEVERAGES
24-MAR-2022,7013215,-1.72,TOTAL PRODUCE GATESHEAD,399244,Commissioning & Asset Management,Children's & Education Services,103,Supplies and Services,504,Equipment,5023,Revenue,CATERING.FOOD & BEVERAGES
24-MAR-2022,7013215,-1.64,TOTAL PRODUCE GATESHEAD,399244,Commissioning & Asset Management,Children's & Education Services,103,Supplies and Services,504,Equipment,5023,Revenue,CATERING.FOOD & BEVERAGES
24-MAR-2022,7013215,-1.64,TOTAL PRODUCE GATESHEAD,399244,Commissioning & Asset Management,Children's & Education Services,103,Supplies and Services,504,Equipment,5023,Revenue,CATERING.FOOD & BEVERAGES
24-MAR-2022,7013215,-1.64,TOTAL PRODUCE GATESHEAD,399244,Commissioning & Asset Management,Children's & Education Services,103,Supplies and Services,504,Equipment,5023,Revenue,CATERING.FOOD & BEVERAGES
24-MAR-2022,7013215,-1.64,TOTAL PRODUCE GATESHEAD,399244,Commissioning & Asset Management,Children's & Education Services,103,Supplies and Services,504,Equipment,5023,Revenue,CATERING.FOOD & BEVERAGES
24-MAR-2022,7013215,-1.59,TOTAL PRODUCE GATESHEAD,399244,Commissioning & Asset Management,Children's & Education Services,103,Supplies and Services,504,Equipment,5023,Revenue,CATERING.FOOD & BEVERAGES
24-MAR-2022,7013215,-1.59,TOTAL PRODUCE GATESHEAD,399244,Commissioning & Asset Management,Children's & Education Services,103,Supplies and Services,504,Equipment,5023,Revenue,CATERING.FOOD & BEVERAGES
24-MAR-2022,7013215,-1.59,TOTAL PRODUCE GATESHEAD,399244,Commissioning & Asset Management,Children's & Education Services,103,Supplies and Services,504,Equipment,5023,Revenue,CATERING.FOOD & BEVERAGES
24-MAR-2022,7013215,-1.59,TOTAL PRODUCE GATESHEAD,399244,Commissioning & Asset Management,Children's & Education Services,103,Supplies and Services,504,Equipment,5023,Revenue,CATERING.FOOD & BEVERAGES
24-MAR-2022,7013215,-1.59,TOTAL PRODUCE GATESHEAD,399244,Commissioning & Asset Management,Children's & Education Services,103,Supplies and Services,504,Equipment,5023,Revenue,CATERING.FOOD & BEVERAGES
24-MAR-2022,7013215,-1.59,TOTAL PRODUCE GATESHEAD,399244,Commissioning & Asset Management,Children's & Education Services,103,Supplies and Services,504,Equipment,5023,Revenue,CATERING.FOOD & BEVERAGES
24-MAR-2022,7013215,-1.59,TOTAL PRODUCE GATESHEAD,399244,Commissioning & Asset Management,Children's & Education Services,103,Supplies and Services,504,Equipment,5023,Revenue,CATERING.FOOD & BEVERAGES
24-MAR-2022,7013215,-1.56,TOTAL PRODUCE GATESHEAD,399244,Commissioning & Asset Management,Children's & Education Services,103,Supplies and Services,504,Equipment,5023,Revenue,CATERING.FOOD & BEVERAGES
24-MAR-2022,7013215,-1.5,TOTAL PRODUCE GATESHEAD,399244,Commissioning & Asset Management,Children's & Education Services,103,Supplies and Services,504,Equipment,5023,Revenue,CATERING.FOOD & BEVERAGES
24-MAR-2022,7013215,-1.5,TOTAL PRODUCE GATESHEAD,399244,Commissioning & Asset Management,Children's & Education Services,103,Supplies and Services,504,Equipment,5023,Revenue,CATERING.FOOD & BEVERAGES
24-MAR-2022,7013215,-1.5,TOTAL PRODUCE GATESHEAD,399244,Commissioning & Asset Management,Children's & Education Services,103,Supplies and Services,504,Equipment,5023,Revenue,CATERING.FOOD & BEVERAGES
24-MAR-2022,7013215,-1.36,TOTAL PRODUCE GATESHEAD,399244,Commissioning & Asset Management,Children's & Education Services,103,Supplies and Services,504,Equipment,5023,Revenue,CATERING.FOOD & BEVERAGES
24-MAR-2022,7013215,-1.36,TOTAL PRODUCE GATESHEAD,399244,Commissioning & Asset Management,Children's & Education Services,103,Supplies and Services,504,Equipment,5023,Revenue,CATERING.FOOD & BEVERAGES
24-MAR-2022,7013215,-1.36,TOTAL PRODUCE GATESHEAD,399244,Commissioning & Asset Management,Children's & Education Services,103,Supplies and Services,504,Equipment,5023,Revenue,CATERING.FOOD & BEVERAGES
24-MAR-2022,7013215,-1.36,TOTAL PRODUCE GATESHEAD,399244,Commissioning & Asset Management,Children's & Education Services,103,Supplies and Services,504,Equipment,5023,Revenue,CATERING.FOOD & BEVERAGES
24-MAR-2022,7013215,-1.28,TOTAL PRODUCE GATESHEAD,399244,Commissioning & Asset Management,Children's & Education Services,103,Supplies and Services,504,Equipment,5023,Revenue,CATERING.FOOD & BEVERAGES
24-MAR-2022,7013215,-1.28,TOTAL PRODUCE GATESHEAD,399244,Commissioning & Asset Management,Children's & Education Services,103,Supplies and Services,504,Equipment,5023,Revenue,CATERING.FOOD & BEVERAGES
24-MAR-2022,7013215,-1.28,TOTAL PRODUCE GATESHEAD,399244,Commissioning & Asset Management,Children's & Education Services,103,Supplies and Services,504,Equipment,5023,Revenue,CATERING.FOOD & BEVERAGES
24-MAR-2022,7013215,-1.28,TOTAL PRODUCE GATESHEAD,399244,Commissioning & Asset Management,Children's & Education Services,103,Supplies and Services,504,Equipment,5023,Revenue,CATERING.FOOD & BEVERAGES
24-MAR-2022,7013215,-1.28,TOTAL PRODUCE GATESHEAD,399244,Commissioning & Asset Management,Children's & Education Services,103,Supplies and Services,504,Equipment,5023,Revenue,CATERING.FOOD & BEVERAGES
24-MAR-2022,7013215,-1.28,TOTAL PRODUCE GATESHEAD,399244,Commissioning & Asset Management,Children's & Education Services,103,Supplies and Services,504,Equipment,5023,Revenue,CATERING.FOOD & BEVERAGES
24-MAR-2022,7013215,-1.28,TOTAL PRODUCE GATESHEAD,399244,Commissioning & Asset Management,Children's & Education Services,103,Supplies and Services,504,Equipment,5023,Revenue,CATERING.FOOD & BEVERAGES
24-MAR-2022,7013215,-1.25,TOTAL PRODUCE GATESHEAD,399244,Commissioning & Asset Management,Children's & Education Services,103,Supplies and Services,504,Equipment,5023,Revenue,CATERING.FOOD & BEVERAGES
24-MAR-2022,7013215,-1.22,TOTAL PRODUCE GATESHEAD,399244,Commissioning & Asset Management,Children's & Education Services,103,Supplies and Services,504,Equipment,5023,Revenue,CATERING.FOOD & BEVERAGES
24-MAR-2022,7013215,-1.22,TOTAL PRODUCE GATESHEAD,399244,Commissioning & Asset Management,Children's & Education Services,103,Supplies and Services,504,Equipment,5023,Revenue,CATERING.FOOD & BEVERAGES
24-MAR-2022,7013215,-1.22,TOTAL PRODUCE GATESHEAD,399244,Commissioning & Asset Management,Children's & Education Services,103,Supplies and Services,504,Equipment,5023,Revenue,CATERING.FOOD & BEVERAGES
24-MAR-2022,7013215,-1.22,TOTAL PRODUCE GATESHEAD,399244,Commissioning & Asset Management,Children's & Education Services,103,Supplies and Services,504,Equipment,5023,Revenue,CATERING.FOOD & BEVERAGES
24-MAR-2022,7013215,-1.09,TOTAL PRODUCE GATESHEAD,399244,Commissioning & Asset Management,Children's & Education Services,103,Supplies and Services,504,Equipment,5023,Revenue,CATERING.FOOD & BEVERAGES
24-MAR-2022,7013215,-1.09,TOTAL PRODUCE GATESHEAD,399244,Commissioning & Asset Management,Children's & Education Services,103,Supplies and Services,504,Equipment,5023,Revenue,CATERING.FOOD & BEVERAGES
24-MAR-2022,7013215,-1.06,TOTAL PRODUCE GATESHEAD,399244,Commissioning & Asset Management,Children's & Education Services,103,Supplies and Services,504,Equipment,5023,Revenue,CATERING.FOOD & BEVERAGES
24-MAR-2022,7013215,-1.06,TOTAL PRODUCE GATESHEAD,399244,Commissioning & Asset Management,Children's & Education Services,103,Supplies and Services,504,Equipment,5023,Revenue,CATERING.FOOD & BEVERAGES
24-MAR-2022,7013215,-1.06,TOTAL PRODUCE GATESHEAD,399244,Commissioning & Asset Management,Children's & Education Services,103,Supplies and Services,504,Equipment,5023,Revenue,CATERING.FOOD & BEVERAGES
24-MAR-2022,7013215,-0.97,TOTAL PRODUCE GATESHEAD,399244,Commissioning & Asset Management,Children's & Education Services,103,Supplies and Services,504,Equipment,5023,Revenue,CATERING.FOOD & BEVERAGES
24-MAR-2022,7013215,-0.95,TOTAL PRODUCE GATESHEAD,399244,Commissioning & Asset Management,Children's & Education Services,103,Supplies and Services,504,Equipment,5023,Revenue,CATERING.FOOD & BEVERAGES
24-MAR-2022,7013215,-0.86,TOTAL PRODUCE GATESHEAD,399244,Commissioning & Asset Management,Children's & Education Services,103,Supplies and Services,504,Equipment,5023,Revenue,CATERING.FOOD & BEVERAGES
24-MAR-2022,7013215,-0.86,TOTAL PRODUCE GATESHEAD,399244,Commissioning & Asset Management,Children's & Education Services,103,Supplies and Services,504,Equipment,5023,Revenue,CATERING.FOOD & BEVERAGES
24-MAR-2022,7013215,-0.86,TOTAL PRODUCE GATESHEAD,399244,Commissioning & Asset Management,Children's & Education Services,103,Supplies and Services,504,Equipment,5023,Revenue,CATERING.FOOD & BEVERAGES
24-MAR-2022,7013215,-0.86,TOTAL PRODUCE GATESHEAD,399244,Commissioning & Asset Management,Children's & Education Services,103,Supplies and Services,504,Equipment,5023,Revenue,CATERING.FOOD & BEVERAGES
24-MAR-2022,7013215,-0.69,TOTAL PRODUCE GATESHEAD,399244,Commissioning & Asset Management,Children's & Education Services,103,Supplies and Services,504,Equipment,5023,Revenue,CATERING.FOOD & BEVERAGES
24-MAR-2022,7013215,-0.52,TOTAL PRODUCE GATESHEAD,399244,Commissioning & Asset Management,Children's & Education Services,103,Supplies and Services,504,Equipment,5023,Revenue,CATERING.FOOD & BEVERAGES
24-MAR-2022,7013215,-0.52,TOTAL PRODUCE GATESHEAD,399244,Commissioning & Asset Management,Children's & Education Services,103,Supplies and Services,504,Equipment,5023,Revenue,CATERING.FOOD & BEVERAGES
24-MAR-2022,7013215,-0.52,TOTAL PRODUCE GATESHEAD,399244,Commissioning & Asset Management,Children's & Education Services,103,Supplies and Services,504,Equipment,5023,Revenue,CATERING.FOOD & BEVERAGES
24-MAR-2022,7013215,-0.42,TOTAL PRODUCE GATESHEAD,399244,Commissioning & Asset Management,Children's & Education Services,103,Supplies and Services,504,Equipment,5023,Revenue,CATERING.FOOD & BEVERAGES
24-MAR-2022,7013215,0.38,TOTAL PRODUCE GATESHEAD,399244,Commissioning & Asset Management,Children's & Education Services,103,Supplies and Services,504,Equipment,5023,Revenue,CATERING.FOOD & BEVERAGES
24-MAR-2022,7013215,0.4,TOTAL PRODUCE GATESHEAD,399244,Commissioning & Asset Management,Children's & Education Services,103,Supplies and Services,504,Equipment,5023,Revenue,CATERING.FOOD & BEVERAGES
24-MAR-2022,7013215,0.4,TOTAL PRODUCE GATESHEAD,399244,Commissioning & Asset Management,Children's & Education Services,103,Supplies and Services,504,Equipment,5023,Revenue,CATERING.FOOD & BEVERAGES
24-MAR-2022,7013215,0.4,TOTAL PRODUCE GATESHEAD,399244,Commissioning & Asset Management,Children's & Education Services,103,Supplies and Services,504,Equipment,5023,Revenue,CATERING.FOOD & BEVERAGES
24-MAR-2022,7013215,0.4,TOTAL PRODUCE GATESHEAD,399244,Commissioning & Asset Management,Children's & Education Services,103,Supplies and Services,504,Equipment,5023,Revenue,CATERING.FOOD & BEVERAGES
24-MAR-2022,7013215,0.4,TOTAL PRODUCE GATESHEAD,399244,Commissioning & Asset Management,Children's & Education Services,103,Supplies and Services,504,Equipment,5023,Revenue,CATERING.FOOD & BEVERAGES
24-MAR-2022,7013215,0.4,TOTAL PRODUCE GATESHEAD,399244,Commissioning & Asset Management,Children's & Education Services,103,Supplies and Services,504,Equipment,5023,Revenue,CATERING.FOOD & BEVERAGES
24-MAR-2022,7013215,0.4,TOTAL PRODUCE GATESHEAD,399244,Commissioning & Asset Management,Children's & Education Services,103,Supplies and Services,504,Equipment,5023,Revenue,CATERING.FOOD & BEVERAGES
24-MAR-2022,7013215,0.4,TOTAL PRODUCE GATESHEAD,399244,Commissioning & Asset Management,Children's & Education Services,103,Supplies and Services,504,Equipment,5023,Revenue,CATERING.FOOD & BEVERAGES
24-MAR-2022,7013215,0.4,TOTAL PRODUCE GATESHEAD,399244,Commissioning & Asset Management,Children's & Education Services,103,Supplies and Services,504,Equipment,5023,Revenue,CATERING.FOOD & BEVERAGES
24-MAR-2022,7013215,0.4,TOTAL PRODUCE GATESHEAD,399244,Commissioning & Asset Management,Children's & Education Services,103,Supplies and Services,504,Equipment,5023,Revenue,CATERING.FOOD & BEVERAGES
24-MAR-2022,7013215,0.4,TOTAL PRODUCE GATESHEAD,399244,Commissioning & Asset Management,Children's & Education Services,103,Supplies and Services,504,Equipment,5023,Revenue,CATERING.FOOD & BEVERAGES
24-MAR-2022,7013215,0.4,TOTAL PRODUCE GATESHEAD,399244,Commissioning & Asset Management,Children's & Education Services,103,Supplies and Services,504,Equipment,5023,Revenue,CATERING.FOOD & BEVERAGES
24-MAR-2022,7013215,0.4,TOTAL PRODUCE GATESHEAD,399244,Commissioning & Asset Management,Children's & Education Services,103,Supplies and Services,504,Equipment,5023,Revenue,CATERING.FOOD & BEVERAGES
24-MAR-2022,7013215,0.4,TOTAL PRODUCE GATESHEAD,399244,Commissioning & Asset Management,Children's & Education Services,103,Supplies and Services,504,Equipment,5023,Revenue,CATERING.FOOD & BEVERAGES
24-MAR-2022,7013215,0.4,TOTAL PRODUCE GATESHEAD,399244,Commissioning & Asset Management,Children's & Education Services,103,Supplies and Services,504,Equipment,5023,Revenue,CATERING.FOOD & BEVERAGES
24-MAR-2022,7013215,0.4,TOTAL PRODUCE GATESHEAD,399244,Commissioning & Asset Management,Children's & Education Services,103,Supplies and Services,504,Equipment,5023,Revenue,CATERING.FOOD & BEVERAGES
24-MAR-2022,7013215,0.4,TOTAL PRODUCE GATESHEAD,399244,Commissioning & Asset Management,Children's & Education Services,103,Supplies and Services,504,Equipment,5023,Revenue,CATERING.FOOD & BEVERAGES
24-MAR-2022,7013215,0.4,TOTAL PRODUCE GATESHEAD,399244,Commissioning & Asset Management,Children's & Education Services,103,Supplies and Services,504,Equipment,5023,Revenue,CATERING.FOOD & BEVERAGES
24-MAR-2022,7013215,0.4,TOTAL PRODUCE GATESHEAD,399244,Commissioning & Asset Management,Children's & Education Services,103,Supplies and Services,504,Equipment,5023,Revenue,CATERING.FOOD & BEVERAGES
24-MAR-2022,7013215,0.4,TOTAL PRODUCE GATESHEAD,399244,Commissioning & Asset Management,Children's & Education Services,103,Supplies and Services,504,Equipment,5023,Revenue,CATERING.FOOD & BEVERAGES
24-MAR-2022,7013215,0.4,TOTAL PRODUCE GATESHEAD,399244,Commissioning & Asset Management,Children's & Education Services,103,Supplies and Services,504,Equipment,5023,Revenue,CATERING.FOOD & BEVERAGES
24-MAR-2022,7013215,0.4,TOTAL PRODUCE GATESHEAD,399244,Commissioning & Asset Management,Children's & Education Services,103,Supplies and Services,504,Equipment,5023,Revenue,CATERING.FOOD & BEVERAGES
24-MAR-2022,7013215,0.42,TOTAL PRODUCE GATESHEAD,399244,Local Environmental Services,Adult Social Care,101,Supplies and Services,504,Equipment,5023,Revenue,CATERING.FOOD & BEVERAGES
24-MAR-2022,7013215,0.42,TOTAL PRODUCE GATESHEAD,399244,Local Environmental Services,Adult Social Care,101,Supplies and Services,504,Equipment,5023,Revenue,CATERING.FOOD & BEVERAGES
24-MAR-2022,7013215,0.42,TOTAL PRODUCE GATESHEAD,399244,Local Environmental Services,Adult Social Care,101,Supplies and Services,504,Equipment,5023,Revenue,CATERING.FOOD & BEVERAGES
24-MAR-2022,7013215,0.42,TOTAL PRODUCE GATESHEAD,399244,Commissioning & Asset Management,Children's & Education Services,103,Supplies and Services,504,Equipment,5023,Revenue,CATERING.FOOD & BEVERAGES
24-MAR-2022,7013215,0.42,TOTAL PRODUCE GATESHEAD,399244,Commissioning & Asset Management,Children's & Education Services,103,Supplies and Services,504,Equipment,5023,Revenue,CATERING.FOOD & BEVERAGES
24-MAR-2022,7013215,0.42,TOTAL PRODUCE GATESHEAD,399244,Commissioning & Asset Management,Children's & Education Services,103,Supplies and Services,504,Equipment,5023,Revenue,CATERING.FOOD & BEVERAGES
24-MAR-2022,7013215,0.42,TOTAL PRODUCE GATESHEAD,399244,Commissioning & Asset Management,Children's & Education Services,103,Supplies and Services,504,Equipment,5023,Revenue,CATERING.FOOD & BEVERAGES
24-MAR-2022,7013215,0.42,TOTAL PRODUCE GATESHEAD,399244,Commissioning & Asset Management,Children's & Education Services,103,Supplies and Services,504,Equipment,5023,Revenue,CATERING.FOOD & BEVERAGES
24-MAR-2022,7013215,0.42,TOTAL PRODUCE GATESHEAD,399244,Commissioning & Asset Management,Children's & Education Services,103,Supplies and Services,504,Equipment,5023,Revenue,CATERING.FOOD & BEVERAGES
24-MAR-2022,7013215,0.42,TOTAL PRODUCE GATESHEAD,399244,Local Environmental Services,Cultural & Related Services,104,Premises-Related Expenditure,502,Cleaning and Domestic Supplies,5012,Revenue,CATERING.FOOD & BEVERAGES
24-MAR-2022,7013215,0.42,TOTAL PRODUCE GATESHEAD,399244,Local Environmental Services,Cultural & Related Services,104,Supplies and Services,504,Equipment,5023,Revenue,CATERING.FOOD & BEVERAGES
24-MAR-2022,7013215,0.44,TOTAL PRODUCE GATESHEAD,399244,Commissioning & Asset Management,Children's & Education Services,103,Supplies and Services,504,Equipment,5023,Revenue,CATERING.FOOD & BEVERAGES
24-MAR-2022,7013215,0.44,TOTAL PRODUCE GATESHEAD,399244,Commissioning & Asset Management,Children's & Education Services,103,Supplies and Services,504,Equipment,5023,Revenue,CATERING.FOOD & BEVERAGES
24-MAR-2022,7013215,0.44,TOTAL PRODUCE GATESHEAD,399244,Commissioning & Asset Management,Children's & Education Services,103,Supplies and Services,504,Equipment,5023,Revenue,CATERING.FOOD & BEVERAGES
24-MAR-2022,7013215,0.44,TOTAL PRODUCE GATESHEAD,399244,Commissioning & Asset Management,Children's & Education Services,103,Supplies and Services,504,Equipment,5023,Revenue,CATERING.FOOD & BEVERAGES
24-MAR-2022,7013215,0.44,TOTAL PRODUCE GATESHEAD,399244,Commissioning & Asset Management,Children's & Education Services,103,Supplies and Services,504,Equipment,5023,Revenue,CATERING.FOOD & BEVERAGES
24-MAR-2022,7013215,0.44,TOTAL PRODUCE GATESHEAD,399244,Commissioning & Asset Management,Children's & Education Services,103,Supplies and Services,504,Equipment,5023,Revenue,CATERING.FOOD & BEVERAGES
24-MAR-2022,7013215,0.44,TOTAL PRODUCE GATESHEAD,399244,Commissioning & Asset Management,Children's & Education Services,103,Supplies and Services,504,Equipment,5023,Revenue,CATERING.FOOD & BEVERAGES
24-MAR-2022,7013215,0.44,TOTAL PRODUCE GATESHEAD,399244,Commissioning & Asset Management,Children's & Education Services,103,Supplies and Services,504,Equipment,5023,Revenue,CATERING.FOOD & BEVERAGES
24-MAR-2022,7013215,0.44,TOTAL PRODUCE GATESHEAD,399244,Commissioning & Asset Management,Children's & Education Services,103,Supplies and Services,504,Equipment,5023,Revenue,CATERING.FOOD & BEVERAGES
24-MAR-2022,7013215,0.44,TOTAL PRODUCE GATESHEAD,399244,Commissioning & Asset Management,Children's & Education Services,103,Supplies and Services,504,Equipment,5023,Revenue,CATERING.FOOD & BEVERAGES
24-MAR-2022,7013215,0.44,TOTAL PRODUCE GATESHEAD,399244,Commissioning & Asset Management,Children's & Education Services,103,Supplies and Services,504,Equipment,5023,Revenue,CATERING.FOOD & BEVERAGES
24-MAR-2022,7013215,0.44,TOTAL PRODUCE GATESHEAD,399244,Commissioning & Asset Management,Children's & Education Services,103,Supplies and Services,504,Equipment,5023,Revenue,CATERING.FOOD & BEVERAGES
24-MAR-2022,7013215,0.44,TOTAL PRODUCE GATESHEAD,399244,Commissioning & Asset Management,Children's & Education Services,103,Supplies and Services,504,Equipment,5023,Revenue,CATERING.FOOD & BEVERAGES
24-MAR-2022,7013215,0.44,TOTAL PRODUCE GATESHEAD,399244,Commissioning & Asset Management,Children's & Education Services,103,Supplies and Services,504,Equipment,5023,Revenue,CATERING.FOOD & BEVERAGES
24-MAR-2022,7013215,0.44,TOTAL PRODUCE GATESHEAD,399244,Commissioning & Asset Management,Children's & Education Services,103,Supplies and Services,504,Equipment,5023,Revenue,CATERING.FOOD & BEVERAGES
24-MAR-2022,7013215,0.44,TOTAL PRODUCE GATESHEAD,399244,Commissioning & Asset Management,Children's & Education Services,103,Supplies and Services,504,Equipment,5023,Revenue,CATERING.FOOD & BEVERAGES
24-MAR-2022,7013215,0.44,TOTAL PRODUCE GATESHEAD,399244,Commissioning & Asset Management,Children's & Education Services,103,Supplies and Services,504,Equipment,5023,Revenue,CATERING.FOOD & BEVERAGES
24-MAR-2022,7013215,0.44,TOTAL PRODUCE GATESHEAD,399244,Commissioning & Asset Management,Children's & Education Services,103,Supplies and Services,504,Equipment,5023,Revenue,CATERING.FOOD & BEVERAGES
24-MAR-2022,7013215,0.44,TOTAL PRODUCE GATESHEAD,399244,Commissioning & Asset Management,Children's & Education Services,103,Supplies and Services,504,Equipment,5023,Revenue,CATERING.FOOD & BEVERAGES
24-MAR-2022,7013215,0.44,TOTAL PRODUCE GATESHEAD,399244,Commissioning & Asset Management,Children's & Education Services,103,Supplies and Services,504,Equipment,5023,Revenue,CATERING.FOOD & BEVERAGES
24-MAR-2022,7013215,0.44,TOTAL PRODUCE GATESHEAD,399244,Commissioning & Asset Management,Children's & Education Services,103,Supplies and Services,504,Equipment,5023,Revenue,CATERING.FOOD & BEVERAGES
24-MAR-2022,7013215,0.44,TOTAL PRODUCE GATESHEAD,399244,Commissioning & Asset Management,Children's & Education Services,103,Supplies and Services,504,Equipment,5023,Revenue,CATERING.FOOD & BEVERAGES
24-MAR-2022,7013215,0.46,TOTAL PRODUCE GATESHEAD,399244,Commissioning & Asset Management,Children's & Education Services,103,Supplies and Services,504,Equipment,5023,Revenue,CATERING.FOOD & BEVERAGES
24-MAR-2022,7013215,0.46,TOTAL PRODUCE GATESHEAD,399244,Commissioning & Asset Management,Children's & Education Services,103,Supplies and Services,504,Equipment,5023,Revenue,CATERING.FOOD & BEVERAGES
24-MAR-2022,7013215,0.46,TOTAL PRODUCE GATESHEAD,399244,Local Environmental Services,Cultural & Related Services,104,Supplies and Services,504,Equipment,5023,Revenue,CATERING.FOOD & BEVERAGES
24-MAR-2022,7013215,0.46,TOTAL PRODUCE GATESHEAD,399244,Local Environmental Services,Cultural & Related Services,104,Supplies and Services,504,Equipment,5023,Revenue,CATERING.FOOD & BEVERAGES
24-MAR-2022,7013215,0.46,TOTAL PRODUCE GATESHEAD,399244,Local Environmental Services,Cultural & Related Services,104,Supplies and Services,504,Equipment,5023,Revenue,CATERING.FOOD & BEVERAGES
24-MAR-2022,7013215,0.49,TOTAL PRODUCE GATESHEAD,399244,Commissioning & Asset Management,Children's & Education Services,103,Supplies and Services,504,Equipment,5023,Revenue,CATERING.FOOD & BEVERAGES
24-MAR-2022,7013215,0.5,TOTAL PRODUCE GATESHEAD,399244,Commissioning & Asset Management,Children's & Education Services,103,Supplies and Services,504,Equipment,5023,Revenue,CATERING.FOOD & BEVERAGES
24-MAR-2022,7013215,0.5,TOTAL PRODUCE GATESHEAD,399244,Commissioning & Asset Management,Children's & Education Services,103,Supplies and Services,504,Equipment,5023,Revenue,CATERING.FOOD & BEVERAGES
24-MAR-2022,7013215,0.5,TOTAL PRODUCE GATESHEAD,399244,Commissioning & Asset Management,Children's & Education Services,103,Supplies and Services,504,Equipment,5023,Revenue,CATERING.FOOD & BEVERAGES
24-MAR-2022,7013215,0.5,TOTAL PRODUCE GATESHEAD,399244,Commissioning & Asset Management,Children's & Education Services,103,Supplies and Services,504,Equipment,5023,Revenue,CATERING.FOOD & BEVERAGES
24-MAR-2022,7013215,0.5,TOTAL PRODUCE GATESHEAD,399244,Commissioning & Asset Management,Children's & Education Services,103,Supplies and Services,504,Equipment,5023,Revenue,CATERING.FOOD & BEVERAGES
24-MAR-2022,7013215,0.5,TOTAL PRODUCE GATESHEAD,399244,Commissioning & Asset Management,Children's & Education Services,103,Supplies and Services,504,Equipment,5023,Revenue,CATERING.FOOD & BEVERAGES
24-MAR-2022,7013215,0.5,TOTAL PRODUCE GATESHEAD,399244,Commissioning & Asset Management,Children's & Education Services,103,Supplies and Services,504,Equipment,5023,Revenue,CATERING.FOOD & BEVERAGES
24-MAR-2022,7013215,0.5,TOTAL PRODUCE GATESHEAD,399244,Commissioning & Asset Management,Children's & Education Services,103,Supplies and Services,504,Equipment,5023,Revenue,CATERING.FOOD & BEVERAGES
24-MAR-2022,7013215,0.5,TOTAL PRODUCE GATESHEAD,399244,Commissioning & Asset Management,Children's & Education Services,103,Supplies and Services,504,Equipment,5023,Revenue,CATERING.FOOD & BEVERAGES
24-MAR-2022,7013215,0.5,TOTAL PRODUCE GATESHEAD,399244,Commissioning & Asset Management,Children's & Education Services,103,Supplies and Services,504,Equipment,5023,Revenue,CATERING.FOOD & BEVERAGES
24-MAR-2022,7013215,0.5,TOTAL PRODUCE GATESHEAD,399244,Commissioning & Asset Management,Children's & Education Services,103,Supplies and Services,504,Equipment,5023,Revenue,CATERING.FOOD & BEVERAGES
24-MAR-2022,7013215,0.5,TOTAL PRODUCE GATESHEAD,399244,Commissioning & Asset Management,Children's & Education Services,103,Supplies and Services,504,Equipment,5023,Revenue,CATERING.FOOD & BEVERAGES
24-MAR-2022,7013215,0.52,TOTAL PRODUCE GATESHEAD,399244,Commissioning & Asset Management,Children's & Education Services,103,Supplies and Services,504,Equipment,5023,Revenue,CATERING.FOOD & BEVERAGES
24-MAR-2022,7013215,0.52,TOTAL PRODUCE GATESHEAD,399244,Commissioning & Asset Management,Children's & Education Services,103,Supplies and Services,504,Equipment,5023,Revenue,CATERING.FOOD & BEVERAGES
24-MAR-2022,7013215,0.52,TOTAL PRODUCE GATESHEAD,399244,Commissioning & Asset Management,Children's & Education Services,103,Supplies and Services,504,Equipment,5023,Revenue,CATERING.FOOD & BEVERAGES
24-MAR-2022,7013215,0.52,TOTAL PRODUCE GATESHEAD,399244,Commissioning & Asset Management,Children's & Education Services,103,Supplies and Services,504,Equipment,5023,Revenue,CATERING.FOOD & BEVERAGES
24-MAR-2022,7013215,0.52,TOTAL PRODUCE GATESHEAD,399244,Commissioning & Asset Management,Children's & Education Services,103,Supplies and Services,504,Equipment,5023,Revenue,CATERING.FOOD & BEVERAGES
24-MAR-2022,7013215,0.52,TOTAL PRODUCE GATESHEAD,399244,Commissioning & Asset Management,Children's & Education Services,103,Supplies and Services,504,Equipment,5023,Revenue,CATERING.FOOD & BEVERAGES
24-MAR-2022,7013215,0.52,TOTAL PRODUCE GATESHEAD,399244,Commissioning & Asset Management,Children's & Education Services,103,Supplies and Services,504,Equipment,5023,Revenue,CATERING.FOOD & BEVERAGES
24-MAR-2022,7013215,0.52,TOTAL PRODUCE GATESHEAD,399244,Commissioning & Asset Management,Children's & Education Services,103,Supplies and Services,504,Equipment,5023,Revenue,CATERING.FOOD & BEVERAGES
24-MAR-2022,7013215,0.52,TOTAL PRODUCE GATESHEAD,399244,Commissioning & Asset Management,Children's & Education Services,103,Supplies and Services,504,Equipment,5023,Revenue,CATERING.FOOD & BEVERAGES
24-MAR-2022,7013215,0.52,TOTAL PRODUCE GATESHEAD,399244,Commissioning & Asset Management,Children's & Education Services,103,Supplies and Services,504,Equipment,5023,Revenue,CATERING.FOOD & BEVERAGES
24-MAR-2022,7013215,0.52,TOTAL PRODUCE GATESHEAD,399244,Commissioning & Asset Management,Children's & Education Services,103,Supplies and Services,504,Equipment,5023,Revenue,CATERING.FOOD & BEVERAGES
24-MAR-2022,7013215,0.52,TOTAL PRODUCE GATESHEAD,399244,Commissioning & Asset Management,Children's & Education Services,103,Supplies and Services,504,Equipment,5023,Revenue,CATERING.FOOD & BEVERAGES
24-MAR-2022,7013215,0.52,TOTAL PRODUCE GATESHEAD,399244,Commissioning & Asset Management,Children's & Education Services,103,Supplies and Services,504,Equipment,5023,Revenue,CATERING.FOOD & BEVERAGES
24-MAR-2022,7013215,0.52,TOTAL PRODUCE GATESHEAD,399244,Commissioning & Asset Management,Children's & Education Services,103,Supplies and Services,504,Equipment,5023,Revenue,CATERING.FOOD & BEVERAGES
24-MAR-2022,7013215,0.52,TOTAL PRODUCE GATESHEAD,399244,Commissioning & Asset Management,Children's & Education Services,103,Supplies and Services,504,Equipment,5023,Revenue,CATERING.FOOD & BEVERAGES
24-MAR-2022,7013215,0.52,TOTAL PRODUCE GATESHEAD,399244,Commissioning & Asset Management,Children's & Education Services,103,Supplies and Services,504,Equipment,5023,Revenue,CATERING.FOOD & BEVERAGES
24-MAR-2022,7013215,0.52,TOTAL PRODUCE GATESHEAD,399244,Commissioning & Asset Management,Children's & Education Services,103,Supplies and Services,504,Equipment,5023,Revenue,CATERING.FOOD & BEVERAGES
24-MAR-2022,7013215,0.52,TOTAL PRODUCE GATESHEAD,399244,Commissioning & Asset Management,Children's & Education Services,103,Supplies and Services,504,Equipment,5023,Revenue,CATERING.FOOD & BEVERAGES
24-MAR-2022,7013215,0.52,TOTAL PRODUCE GATESHEAD,399244,Commissioning & Asset Management,Children's & Education Services,103,Supplies and Services,504,Equipment,5023,Revenue,CATERING.FOOD & BEVERAGES
24-MAR-2022,7013215,0.52,TOTAL PRODUCE GATESHEAD,399244,Commissioning & Asset Management,Children's & Education Services,103,Supplies and Services,504,Equipment,5023,Revenue,CATERING.FOOD & BEVERAGES
24-MAR-2022,7013215,0.52,TOTAL PRODUCE GATESHEAD,399244,Commissioning & Asset Management,Children's & Education Services,103,Supplies and Services,504,Equipment,5023,Revenue,CATERING.FOOD & BEVERAGES
24-MAR-2022,7013215,0.52,TOTAL PRODUCE GATESHEAD,399244,Commissioning & Asset Management,Children's & Education Services,103,Supplies and Services,504,Equipment,5023,Revenue,CATERING.FOOD & BEVERAGES
24-MAR-2022,7013215,0.52,TOTAL PRODUCE GATESHEAD,399244,Commissioning & Asset Management,Children's & Education Services,103,Supplies and Services,504,Equipment,5023,Revenue,CATERING.FOOD & BEVERAGES
24-MAR-2022,7013215,0.52,TOTAL PRODUCE GATESHEAD,399244,Commissioning & Asset Management,Children's & Education Services,103,Supplies and Services,504,Equipment,5023,Revenue,CATERING.FOOD & BEVERAGES
24-MAR-2022,7013215,0.52,TOTAL PRODUCE GATESHEAD,399244,Commissioning & Asset Management,Children's & Education Services,103,Supplies and Services,504,Equipment,5023,Revenue,CATERING.FOOD & BEVERAGES
24-MAR-2022,7013215,0.52,TOTAL PRODUCE GATESHEAD,399244,Commissioning & Asset Management,Children's & Education Services,103,Supplies and Services,504,Equipment,5023,Revenue,CATERING.FOOD & BEVERAGES
24-MAR-2022,7013215,0.52,TOTAL PRODUCE GATESHEAD,399244,Commissioning & Asset Management,Children's & Education Services,103,Supplies and Services,504,Equipment,5023,Revenue,CATERING.FOOD & BEVERAGES
24-MAR-2022,7013215,0.52,TOTAL PRODUCE GATESHEAD,399244,Commissioning & Asset Management,Children's & Education Services,103,Supplies and Services,504,Equipment,5023,Revenue,CATERING.FOOD & BEVERAGES
24-MAR-2022,7013215,0.52,TOTAL PRODUCE GATESHEAD,399244,Commissioning & Asset Management,Children's & Education Services,103,Supplies and Services,504,Equipment,5023,Revenue,CATERING.FOOD & BEVERAGES
24-MAR-2022,7013215,0.52,TOTAL PRODUCE GATESHEAD,399244,Commissioning & Asset Management,Children's & Education Services,103,Supplies and Services,504,Equipment,5023,Revenue,CATERING.FOOD & BEVERAGES
24-MAR-2022,7013215,0.52,TOTAL PRODUCE GATESHEAD,399244,Commissioning & Asset Management,Children's & Education Services,103,Supplies and Services,504,Equipment,5023,Revenue,CATERING.FOOD & BEVERAGES
24-MAR-2022,7013215,0.52,TOTAL PRODUCE GATESHEAD,399244,Commissioning & Asset Management,Children's & Education Services,103,Supplies and Services,504,Equipment,5023,Revenue,CATERING.FOOD & BEVERAGES
24-MAR-2022,7013215,0.52,TOTAL PRODUCE GATESHEAD,399244,Commissioning & Asset Management,Children's & Education Services,103,Supplies and Services,504,Equipment,5023,Revenue,CATERING.FOOD & BEVERAGES
24-MAR-2022,7013215,0.52,TOTAL PRODUCE GATESHEAD,399244,Commissioning & Asset Management,Children's & Education Services,103,Supplies and Services,504,Equipment,5023,Revenue,CATERING.FOOD & BEVERAGES
24-MAR-2022,7013215,0.52,TOTAL PRODUCE GATESHEAD,399244,Commissioning & Asset Management,Children's & Education Services,103,Supplies and Services,504,Equipment,5023,Revenue,CATERING.FOOD & BEVERAGES
24-MAR-2022,7013215,0.52,TOTAL PRODUCE GATESHEAD,399244,Commissioning & Asset Management,Children's & Education Services,103,Supplies and Services,504,Equipment,5023,Revenue,CATERING.FOOD & BEVERAGES
24-MAR-2022,7013215,0.52,TOTAL PRODUCE GATESHEAD,399244,Commissioning & Asset Management,Children's & Education Services,103,Supplies and Services,504,Equipment,5023,Revenue,CATERING.FOOD & BEVERAGES
24-MAR-2022,7013215,0.52,TOTAL PRODUCE GATESHEAD,399244,Commissioning & Asset Management,Children's & Education Services,103,Supplies and Services,504,Equipment,5023,Revenue,CATERING.FOOD & BEVERAGES
24-MAR-2022,7013215,0.52,TOTAL PRODUCE GATESHEAD,399244,Commissioning & Asset Management,Children's & Education Services,103,Supplies and Services,504,Equipment,5023,Revenue,CATERING.FOOD & BEVERAGES
24-MAR-2022,7013215,0.52,TOTAL PRODUCE GATESHEAD,399244,Commissioning & Asset Management,Children's & Education Services,103,Supplies and Services,504,Equipment,5023,Revenue,CATERING.FOOD & BEVERAGES
24-MAR-2022,7013215,0.53,TOTAL PRODUCE GATESHEAD,399244,Commissioning & Asset Management,Children's & Education Services,103,Supplies and Services,504,Equipment,5023,Revenue,CATERING.FOOD & BEVERAGES
24-MAR-2022,7013215,0.53,TOTAL PRODUCE GATESHEAD,399244,Commissioning & Asset Management,Children's & Education Services,103,Supplies and Services,504,Equipment,5023,Revenue,CATERING.FOOD & BEVERAGES
24-MAR-2022,7013215,0.53,TOTAL PRODUCE GATESHEAD,399244,Commissioning & Asset Management,Children's & Education Services,103,Supplies and Services,504,Equipment,5023,Revenue,CATERING.FOOD & BEVERAGES
24-MAR-2022,7013215,0.53,TOTAL PRODUCE GATESHEAD,399244,Commissioning & Asset Management,Children's & Education Services,103,Supplies and Services,504,Equipment,5023,Revenue,CATERING.FOOD & BEVERAGES
24-MAR-2022,7013215,0.53,TOTAL PRODUCE GATESHEAD,399244,Commissioning & Asset Management,Children's & Education Services,103,Supplies and Services,504,Equipment,5023,Revenue,CATERING.FOOD & BEVERAGES
24-MAR-2022,7013215,0.53,TOTAL PRODUCE GATESHEAD,399244,Commissioning & Asset Management,Children's & Education Services,103,Supplies and Services,504,Equipment,5023,Revenue,CATERING.FOOD & BEVERAGES
24-MAR-2022,7013215,0.53,TOTAL PRODUCE GATESHEAD,399244,Commissioning & Asset Management,Children's & Education Services,103,Supplies and Services,504,Equipment,5023,Revenue,CATERING.FOOD & BEVERAGES
24-MAR-2022,7013215,0.53,TOTAL PRODUCE GATESHEAD,399244,Commissioning & Asset Management,Children's & Education Services,103,Supplies and Services,504,Equipment,5023,Revenue,CATERING.FOOD & BEVERAGES
24-MAR-2022,7013215,0.53,TOTAL PRODUCE GATESHEAD,399244,Commissioning & Asset Management,Children's & Education Services,103,Supplies and Services,504,Equipment,5023,Revenue,CATERING.FOOD & BEVERAGES
24-MAR-2022,7013215,0.53,TOTAL PRODUCE GATESHEAD,399244,Commissioning & Asset Management,Children's & Education Services,103,Supplies and Services,504,Equipment,5023,Revenue,CATERING.FOOD & BEVERAGES
24-MAR-2022,7013215,0.53,TOTAL PRODUCE GATESHEAD,399244,Commissioning & Asset Management,Children's & Education Services,103,Supplies and Services,504,Equipment,5023,Revenue,CATERING.FOOD & BEVERAGES
24-MAR-2022,7013215,0.53,TOTAL PRODUCE GATESHEAD,399244,Commissioning & Asset Management,Children's & Education Services,103,Supplies and Services,504,Equipment,5023,Revenue,CATERING.FOOD & BEVERAGES
24-MAR-2022,7013215,0.53,TOTAL PRODUCE GATESHEAD,399244,Commissioning & Asset Management,Children's & Education Services,103,Supplies and Services,504,Equipment,5023,Revenue,CATERING.FOOD & BEVERAGES
24-MAR-2022,7013215,0.53,TOTAL PRODUCE GATESHEAD,399244,Commissioning & Asset Management,Children's & Education Services,103,Supplies and Services,504,Equipment,5023,Revenue,CATERING.FOOD & BEVERAGES
24-MAR-2022,7013215,0.53,TOTAL PRODUCE GATESHEAD,399244,Commissioning & Asset Management,Children's & Education Services,103,Supplies and Services,504,Equipment,5023,Revenue,CATERING.FOOD & BEVERAGES
24-MAR-2022,7013215,0.53,TOTAL PRODUCE GATESHEAD,399244,Commissioning & Asset Management,Children's & Education Services,103,Supplies and Services,504,Equipment,5023,Revenue,CATERING.FOOD & BEVERAGES
24-MAR-2022,7013215,0.53,TOTAL PRODUCE GATESHEAD,399244,Commissioning & Asset Management,Children's & Education Services,103,Supplies and Services,504,Equipment,5023,Revenue,CATERING.FOOD & BEVERAGES
24-MAR-2022,7013215,0.53,TOTAL PRODUCE GATESHEAD,399244,Commissioning & Asset Management,Children's & Education Services,103,Supplies and Services,504,Equipment,5023,Revenue,CATERING.FOOD & BEVERAGES
24-MAR-2022,7013215,0.53,TOTAL PRODUCE GATESHEAD,399244,Commissioning & Asset Management,Children's & Education Services,103,Supplies and Services,504,Equipment,5023,Revenue,CATERING.FOOD & BEVERAGES
24-MAR-2022,7013215,0.53,TOTAL PRODUCE GATESHEAD,399244,Commissioning & Asset Management,Children's & Education Services,103,Supplies and Services,504,Equipment,5023,Revenue,CATERING.FOOD & BEVERAGES
24-MAR-2022,7013215,0.55,TOTAL PRODUCE GATESHEAD,399244,Commissioning & Asset Management,Children's & Education Services,103,Supplies and Services,504,Equipment,5023,Revenue,CATERING.FOOD & BEVERAGES
24-MAR-2022,7013215,0.56,TOTAL PRODUCE GATESHEAD,399244,Local Environmental Services,Cultural & Related Services,104,Supplies and Services,504,Equipment,5023,Revenue,CATERING.FOOD & BEVERAGES
24-MAR-2022,7013215,0.56,TOTAL PRODUCE GATESHEAD,399244,Local Environmental Services,Cultural & Related Services,104,Supplies and Services,504,Equipment,5023,Revenue,CATERING.FOOD & BEVERAGES
24-MAR-2022,7013215,0.56,TOTAL PRODUCE GATESHEAD,399244,Local Environmental Services,Cultural & Related Services,104,Supplies and Services,504,Equipment,5023,Revenue,CATERING.FOOD & BEVERAGES
24-MAR-2022,7013215,0.56,TOTAL PRODUCE GATESHEAD,399244,Local Environmental Services,Cultural & Related Services,104,Supplies and Services,504,Equipment,5023,Revenue,CATERING.FOOD & BEVERAGES
24-MAR-2022,7013215,0.56,TOTAL PRODUCE GATESHEAD,399244,Local Environmental Services,Cultural & Related Services,104,Supplies and Services,504,Equipment,5023,Revenue,CATERING.FOOD & BEVERAGES
24-MAR-2022,7013215,0.56,TOTAL PRODUCE GATESHEAD,399244,Local Environmental Services,Cultural & Related Services,104,Supplies and Services,504,Equipment,5023,Revenue,CATERING.FOOD & BEVERAGES
24-MAR-2022,7013215,0.57,TOTAL PRODUCE GATESHEAD,399244,Commissioning & Asset Management,Children's & Education Services,103,Supplies and Services,504,Equipment,5023,Revenue,CATERING.FOOD & BEVERAGES
24-MAR-2022,7013215,0.57,TOTAL PRODUCE GATESHEAD,399244,Commissioning & Asset Management,Children's & Education Services,103,Supplies and Services,504,Equipment,5023,Revenue,CATERING.FOOD & BEVERAGES
24-MAR-2022,7013215,0.57,TOTAL PRODUCE GATESHEAD,399244,Commissioning & Asset Management,Children's & Education Services,103,Supplies and Services,504,Equipment,5023,Revenue,CATERING.FOOD & BEVERAGES
24-MAR-2022,7013215,0.57,TOTAL PRODUCE GATESHEAD,399244,Commissioning & Asset Management,Children's & Education Services,103,Supplies and Services,504,Equipment,5023,Revenue,CATERING.FOOD & BEVERAGES
24-MAR-2022,7013215,0.59,TOTAL PRODUCE GATESHEAD,399244,Commissioning & Asset Management,Children's & Education Services,103,Supplies and Services,504,Equipment,5023,Revenue,CATERING.FOOD & BEVERAGES
24-MAR-2022,7013215,0.6,TOTAL PRODUCE GATESHEAD,399244,Commissioning & Asset Management,Children's & Education Services,103,Supplies and Services,504,Equipment,5023,Revenue,CATERING.FOOD & BEVERAGES
24-MAR-2022,7013215,0.6,TOTAL PRODUCE GATESHEAD,399244,Commissioning & Asset Management,Children's & Education Services,103,Supplies and Services,504,Equipment,5023,Revenue,CATERING.FOOD & BEVERAGES
24-MAR-2022,7013215,0.67,TOTAL PRODUCE GATESHEAD,399244,Commissioning & Asset Management,Children's & Education Services,103,Supplies and Services,504,Equipment,5023,Revenue,CATERING.FOOD & BEVERAGES
24-MAR-2022,7013215,0.67,TOTAL PRODUCE GATESHEAD,399244,Commissioning & Asset Management,Children's & Education Services,103,Supplies and Services,504,Equipment,5023,Revenue,CATERING.FOOD & BEVERAGES
24-MAR-2022,7013215,0.67,TOTAL PRODUCE GATESHEAD,399244,Commissioning & Asset Management,Children's & Education Services,103,Supplies and Services,504,Equipment,5023,Revenue,CATERING.FOOD & BEVERAGES
24-MAR-2022,7013215,0.67,TOTAL PRODUCE GATESHEAD,399244,Commissioning & Asset Management,Children's & Education Services,103,Supplies and Services,504,Equipment,5023,Revenue,CATERING.FOOD & BEVERAGES
24-MAR-2022,7013215,0.67,TOTAL PRODUCE GATESHEAD,399244,Commissioning & Asset Management,Children's & Education Services,103,Supplies and Services,504,Equipment,5023,Revenue,CATERING.FOOD & BEVERAGES
24-MAR-2022,7013215,0.67,TOTAL PRODUCE GATESHEAD,399244,Commissioning & Asset Management,Children's & Education Services,103,Supplies and Services,504,Equipment,5023,Revenue,CATERING.FOOD & BEVERAGES
24-MAR-2022,7013215,0.67,TOTAL PRODUCE GATESHEAD,399244,Commissioning & Asset Management,Children's & Education Services,103,Supplies and Services,504,Equipment,5023,Revenue,CATERING.FOOD & BEVERAGES
24-MAR-2022,7013215,0.67,TOTAL PRODUCE GATESHEAD,399244,Commissioning & Asset Management,Children's & Education Services,103,Supplies and Services,504,Equipment,5023,Revenue,CATERING.FOOD & BEVERAGES
24-MAR-2022,7013215,0.67,TOTAL PRODUCE GATESHEAD,399244,Commissioning & Asset Management,Children's & Education Services,103,Supplies and Services,504,Equipment,5023,Revenue,CATERING.FOOD & BEVERAGES
24-MAR-2022,7013215,0.67,TOTAL PRODUCE GATESHEAD,399244,Commissioning & Asset Management,Children's & Education Services,103,Supplies and Services,504,Equipment,5023,Revenue,CATERING.FOOD & BEVERAGES
24-MAR-2022,7013215,0.67,TOTAL PRODUCE GATESHEAD,399244,Commissioning & Asset Management,Children's & Education Services,103,Supplies and Services,504,Equipment,5023,Revenue,CATERING.FOOD & BEVERAGES
24-MAR-2022,7013215,0.67,TOTAL PRODUCE GATESHEAD,399244,Commissioning & Asset Management,Children's & Education Services,103,Supplies and Services,504,Equipment,5023,Revenue,CATERING.FOOD & BEVERAGES
24-MAR-2022,7013215,0.67,TOTAL PRODUCE GATESHEAD,399244,Commissioning & Asset Management,Children's & Education Services,103,Supplies and Services,504,Equipment,5023,Revenue,CATERING.FOOD & BEVERAGES
24-MAR-2022,7013215,0.69,TOTAL PRODUCE GATESHEAD,399244,Commissioning & Asset Management,Children's & Education Services,103,Supplies and Services,504,Equipment,5023,Revenue,CATERING.FOOD & BEVERAGES
24-MAR-2022,7013215,0.69,TOTAL PRODUCE GATESHEAD,399244,Commissioning & Asset Management,Children's & Education Services,103,Supplies and Services,504,Equipment,5023,Revenue,CATERING.FOOD & BEVERAGES
24-MAR-2022,7013215,0.69,TOTAL PRODUCE GATESHEAD,399244,Commissioning & Asset Management,Children's & Education Services,103,Supplies and Services,504,Equipment,5023,Revenue,CATERING.FOOD & BEVERAGES
24-MAR-2022,7013215,0.69,TOTAL PRODUCE GATESHEAD,399244,Commissioning & Asset Management,Children's & Education Services,103,Supplies and Services,504,Equipment,5023,Revenue,CATERING.FOOD & BEVERAGES
24-MAR-2022,7013215,0.69,TOTAL PRODUCE GATESHEAD,399244,Commissioning & Asset Management,Children's & Education Services,103,Supplies and Services,504,Equipment,5023,Revenue,CATERING.FOOD & BEVERAGES
24-MAR-2022,7013215,0.69,TOTAL PRODUCE GATESHEAD,399244,Commissioning & Asset Management,Children's & Education Services,103,Supplies and Services,504,Equipment,5023,Revenue,CATERING.FOOD & BEVERAGES
24-MAR-2022,7013215,0.69,TOTAL PRODUCE GATESHEAD,399244,Commissioning & Asset Management,Children's & Education Services,103,Supplies and Services,504,Equipment,5023,Revenue,CATERING.FOOD & BEVERAGES
24-MAR-2022,7013215,0.69,TOTAL PRODUCE GATESHEAD,399244,Commissioning & Asset Management,Children's & Education Services,103,Supplies and Services,504,Equipment,5023,Revenue,CATERING.FOOD & BEVERAGES
24-MAR-2022,7013215,0.69,TOTAL PRODUCE GATESHEAD,399244,Commissioning & Asset Management,Children's & Education Services,103,Supplies and Services,504,Equipment,5023,Revenue,CATERING.FOOD & BEVERAGES
24-MAR-2022,7013215,0.69,TOTAL PRODUCE GATESHEAD,399244,Commissioning & Asset Management,Children's & Education Services,103,Supplies and Services,504,Equipment,5023,Revenue,CATERING.FOOD & BEVERAGES
24-MAR-2022,7013215,0.69,TOTAL PRODUCE GATESHEAD,399244,Commissioning & Asset Management,Children's & Education Services,103,Supplies and Services,504,Equipment,5023,Revenue,CATERING.FOOD & BEVERAGES
24-MAR-2022,7013215,0.69,TOTAL PRODUCE GATESHEAD,399244,Commissioning & Asset Management,Children's & Education Services,103,Supplies and Services,504,Equipment,5023,Revenue,CATERING.FOOD & BEVERAGES
24-MAR-2022,7013215,0.69,TOTAL PRODUCE GATESHEAD,399244,Commissioning & Asset Management,Children's & Education Services,103,Supplies and Services,504,Equipment,5023,Revenue,CATERING.FOOD & BEVERAGES
24-MAR-2022,7013215,0.69,TOTAL PRODUCE GATESHEAD,399244,Commissioning & Asset Management,Children's & Education Services,103,Supplies and Services,504,Equipment,5023,Revenue,CATERING.FOOD & BEVERAGES
24-MAR-2022,7013215,0.69,TOTAL PRODUCE GATESHEAD,399244,Commissioning & Asset Management,Children's & Education Services,103,Supplies and Services,504,Equipment,5023,Revenue,CATERING.FOOD & BEVERAGES
24-MAR-2022,7013215,0.69,TOTAL PRODUCE GATESHEAD,399244,Commissioning & Asset Management,Children's & Education Services,103,Supplies and Services,504,Equipment,5023,Revenue,CATERING.FOOD & BEVERAGES
24-MAR-2022,7013215,0.69,TOTAL PRODUCE GATESHEAD,399244,Commissioning & Asset Management,Children's & Education Services,103,Supplies and Services,504,Equipment,5023,Revenue,CATERING.FOOD & BEVERAGES
24-MAR-2022,7013215,0.69,TOTAL PRODUCE GATESHEAD,399244,Commissioning & Asset Management,Children's & Education Services,103,Supplies and Services,504,Equipment,5023,Revenue,CATERING.FOOD & BEVERAGES
24-MAR-2022,7013215,0.69,TOTAL PRODUCE GATESHEAD,399244,Commissioning & Asset Management,Children's & Education Services,103,Supplies and Services,504,Equipment,5023,Revenue,CATERING.FOOD & BEVERAGES
24-MAR-2022,7013215,0.69,TOTAL PRODUCE GATESHEAD,399244,Commissioning & Asset Management,Children's & Education Services,103,Supplies and Services,504,Equipment,5023,Revenue,CATERING.FOOD & BEVERAGES
24-MAR-2022,7013215,0.69,TOTAL PRODUCE GATESHEAD,399244,Commissioning & Asset Management,Children's & Education Services,103,Supplies and Services,504,Equipment,5023,Revenue,CATERING.FOOD & BEVERAGES
24-MAR-2022,7013215,0.69,TOTAL PRODUCE GATESHEAD,399244,Commissioning & Asset Management,Children's & Education Services,103,Supplies and Services,504,Equipment,5023,Revenue,CATERING.FOOD & BEVERAGES
24-MAR-2022,7013215,0.69,TOTAL PRODUCE GATESHEAD,399244,Commissioning & Asset Management,Children's & Education Services,103,Supplies and Services,504,Equipment,5023,Revenue,CATERING.FOOD & BEVERAGES
24-MAR-2022,7013215,0.69,TOTAL PRODUCE GATESHEAD,399244,Commissioning & Asset Management,Children's & Education Services,103,Supplies and Services,504,Equipment,5023,Revenue,CATERING.FOOD & BEVERAGES
24-MAR-2022,7013215,0.69,TOTAL PRODUCE GATESHEAD,399244,Commissioning & Asset Management,Children's & Education Services,103,Supplies and Services,504,Equipment,5023,Revenue,CATERING.FOOD & BEVERAGES
24-MAR-2022,7013215,0.69,TOTAL PRODUCE GATESHEAD,399244,Commissioning & Asset Management,Children's & Education Services,103,Supplies and Services,504,Equipment,5023,Revenue,CATERING.FOOD & BEVERAGES
24-MAR-2022,7013215,0.69,TOTAL PRODUCE GATESHEAD,399244,Commissioning & Asset Management,Children's & Education Services,103,Supplies and Services,504,Equipment,5023,Revenue,CATERING.FOOD & BEVERAGES
24-MAR-2022,7013215,0.69,TOTAL PRODUCE GATESHEAD,399244,Commissioning & Asset Management,Children's & Education Services,103,Supplies and Services,504,Equipment,5023,Revenue,CATERING.FOOD & BEVERAGES
24-MAR-2022,7013215,0.69,TOTAL PRODUCE GATESHEAD,399244,Commissioning & Asset Management,Children's & Education Services,103,Supplies and Services,504,Equipment,5023,Revenue,CATERING.FOOD & BEVERAGES
24-MAR-2022,7013215,0.69,TOTAL PRODUCE GATESHEAD,399244,Commissioning & Asset Management,Children's & Education Services,103,Supplies and Services,504,Equipment,5023,Revenue,CATERING.FOOD & BEVERAGES
24-MAR-2022,7013215,0.69,TOTAL PRODUCE GATESHEAD,399244,Commissioning & Asset Management,Children's & Education Services,103,Supplies and Services,504,Equipment,5023,Revenue,CATERING.FOOD & BEVERAGES
24-MAR-2022,7013215,0.69,TOTAL PRODUCE GATESHEAD,399244,Commissioning & Asset Management,Children's & Education Services,103,Supplies and Services,504,Equipment,5023,Revenue,CATERING.FOOD & BEVERAGES
24-MAR-2022,7013215,0.69,TOTAL PRODUCE GATESHEAD,399244,Commissioning & Asset Management,Children's & Education Services,103,Supplies and Services,504,Equipment,5023,Revenue,CATERING.FOOD & BEVERAGES
24-MAR-2022,7013215,0.69,TOTAL PRODUCE GATESHEAD,399244,Commissioning & Asset Management,Children's & Education Services,103,Supplies and Services,504,Equipment,5023,Revenue,CATERING.FOOD & BEVERAGES
24-MAR-2022,7013215,0.69,TOTAL PRODUCE GATESHEAD,399244,Commissioning & Asset Management,Children's & Education Services,103,Supplies and Services,504,Equipment,5023,Revenue,CATERING.FOOD & BEVERAGES
24-MAR-2022,7013215,0.69,TOTAL PRODUCE GATESHEAD,399244,Commissioning & Asset Management,Children's & Education Services,103,Supplies and Services,504,Equipment,5023,Revenue,CATERING.FOOD & BEVERAGES
24-MAR-2022,7013215,0.69,TOTAL PRODUCE GATESHEAD,399244,Commissioning & Asset Management,Children's & Education Services,103,Supplies and Services,504,Equipment,5023,Revenue,CATERING.FOOD & BEVERAGES
24-MAR-2022,7013215,0.69,TOTAL PRODUCE GATESHEAD,399244,Commissioning & Asset Management,Children's & Education Services,103,Supplies and Services,504,Equipment,5023,Revenue,CATERING.FOOD & BEVERAGES
24-MAR-2022,7013215,0.69,TOTAL PRODUCE GATESHEAD,399244,Commissioning & Asset Management,Children's & Education Services,103,Supplies and Services,504,Equipment,5023,Revenue,CATERING.FOOD & BEVERAGES
24-MAR-2022,7013215,0.69,TOTAL PRODUCE GATESHEAD,399244,Commissioning & Asset Management,Children's & Education Services,103,Supplies and Services,504,Equipment,5023,Revenue,CATERING.FOOD & BEVERAGES
24-MAR-2022,7013215,0.69,TOTAL PRODUCE GATESHEAD,399244,Commissioning & Asset Management,Children's & Education Services,103,Supplies and Services,504,Equipment,5023,Revenue,CATERING.FOOD & BEVERAGES
24-MAR-2022,7013215,0.69,TOTAL PRODUCE GATESHEAD,399244,Commissioning & Asset Management,Children's & Education Services,103,Supplies and Services,504,Equipment,5023,Revenue,CATERING.FOOD & BEVERAGES
24-MAR-2022,7013215,0.69,TOTAL PRODUCE GATESHEAD,399244,Commissioning & Asset Management,Children's & Education Services,103,Supplies and Services,504,Equipment,5023,Revenue,CATERING.FOOD & BEVERAGES
24-MAR-2022,7013215,0.69,TOTAL PRODUCE GATESHEAD,399244,Commissioning & Asset Management,Children's & Education Services,103,Supplies and Services,504,Equipment,5023,Revenue,CATERING.FOOD & BEVERAGES
24-MAR-2022,7013215,0.69,TOTAL PRODUCE GATESHEAD,399244,Commissioning & Asset Management,Children's & Education Services,103,Supplies and Services,504,Equipment,5023,Revenue,CATERING.FOOD & BEVERAGES
24-MAR-2022,7013215,0.69,TOTAL PRODUCE GATESHEAD,399244,Commissioning & Asset Management,Children's & Education Services,103,Supplies and Services,504,Equipment,5023,Revenue,CATERING.FOOD & BEVERAGES
24-MAR-2022,7013215,0.69,TOTAL PRODUCE GATESHEAD,399244,Commissioning & Asset Management,Children's & Education Services,103,Supplies and Services,504,Equipment,5023,Revenue,CATERING.FOOD & BEVERAGES
24-MAR-2022,7013215,0.69,TOTAL PRODUCE GATESHEAD,399244,Commissioning & Asset Management,Children's & Education Services,103,Supplies and Services,504,Equipment,5023,Revenue,CATERING.FOOD & BEVERAGES
24-MAR-2022,7013215,0.69,TOTAL PRODUCE GATESHEAD,399244,Commissioning & Asset Management,Children's & Education Services,103,Supplies and Services,504,Equipment,5023,Revenue,CATERING.FOOD & BEVERAGES
24-MAR-2022,7013215,0.69,TOTAL PRODUCE GATESHEAD,399244,Commissioning & Asset Management,Children's & Education Services,103,Supplies and Services,504,Equipment,5023,Revenue,CATERING.FOOD & BEVERAGES
24-MAR-2022,7013215,0.69,TOTAL PRODUCE GATESHEAD,399244,Commissioning & Asset Management,Children's & Education Services,103,Supplies and Services,504,Equipment,5023,Revenue,CATERING.FOOD & BEVERAGES
24-MAR-2022,7013215,0.69,TOTAL PRODUCE GATESHEAD,399244,Commissioning & Asset Management,Children's & Education Services,103,Supplies and Services,504,Equipment,5023,Revenue,CATERING.FOOD & BEVERAGES
24-MAR-2022,7013215,0.69,TOTAL PRODUCE GATESHEAD,399244,Commissioning & Asset Management,Children's & Education Services,103,Supplies and Services,504,Equipment,5023,Revenue,CATERING.FOOD & BEVERAGES
24-MAR-2022,7013215,0.69,TOTAL PRODUCE GATESHEAD,399244,Commissioning & Asset Management,Children's & Education Services,103,Supplies and Services,504,Equipment,5023,Revenue,CATERING.FOOD & BEVERAGES
24-MAR-2022,7013215,0.69,TOTAL PRODUCE GATESHEAD,399244,Commissioning & Asset Management,Children's & Education Services,103,Supplies and Services,504,Equipment,5023,Revenue,CATERING.FOOD & BEVERAGES
24-MAR-2022,7013215,0.69,TOTAL PRODUCE GATESHEAD,399244,Commissioning & Asset Management,Children's & Education Services,103,Supplies and Services,504,Equipment,5023,Revenue,CATERING.FOOD & BEVERAGES
24-MAR-2022,7013215,0.69,TOTAL PRODUCE GATESHEAD,399244,Commissioning & Asset Management,Children's & Education Services,103,Supplies and Services,504,Equipment,5023,Revenue,CATERING.FOOD & BEVERAGES
24-MAR-2022,7013215,0.69,TOTAL PRODUCE GATESHEAD,399244,Commissioning & Asset Management,Children's & Education Services,103,Supplies and Services,504,Equipment,5023,Revenue,CATERING.FOOD & BEVERAGES
24-MAR-2022,7013215,0.69,TOTAL PRODUCE GATESHEAD,399244,Commissioning & Asset Management,Children's & Education Services,103,Supplies and Services,504,Equipment,5023,Revenue,CATERING.FOOD & BEVERAGES
24-MAR-2022,7013215,0.69,TOTAL PRODUCE GATESHEAD,399244,Commissioning & Asset Management,Children's & Education Services,103,Supplies and Services,504,Equipment,5023,Revenue,CATERING.FOOD & BEVERAGES
24-MAR-2022,7013215,0.69,TOTAL PRODUCE GATESHEAD,399244,Commissioning & Asset Management,Children's & Education Services,103,Supplies and Services,504,Equipment,5023,Revenue,CATERING.FOOD & BEVERAGES
24-MAR-2022,7013215,0.73,TOTAL PRODUCE GATESHEAD,399244,Local Environmental Services,Adult Social Care,101,Supplies and Services,504,Equipment,5023,Revenue,CATERING.FOOD & BEVERAGES
24-MAR-2022,7013215,0.73,TOTAL PRODUCE GATESHEAD,399244,Local Environmental Services,Adult Social Care,101,Supplies and Services,504,Equipment,5023,Revenue,CATERING.FOOD & BEVERAGES
24-MAR-2022,7013215,0.73,TOTAL PRODUCE GATESHEAD,399244,Local Environmental Services,Adult Social Care,101,Supplies and Services,504,Equipment,5023,Revenue,CATERING.FOOD & BEVERAGES
24-MAR-2022,7013215,0.73,TOTAL PRODUCE GATESHEAD,399244,Local Environmental Services,Adult Social Care,101,Supplies and Services,504,Equipment,5023,Revenue,CATERING.FOOD & BEVERAGES
24-MAR-2022,7013215,0.73,TOTAL PRODUCE GATESHEAD,399244,Local Environmental Services,Adult Social Care,101,Supplies and Services,504,Equipment,5023,Revenue,CATERING.FOOD & BEVERAGES
24-MAR-2022,7013215,0.73,TOTAL PRODUCE GATESHEAD,399244,Local Environmental Services,Adult Social Care,101,Supplies and Services,504,Equipment,5023,Revenue,CATERING.FOOD & BEVERAGES
24-MAR-2022,7013215,0.73,TOTAL PRODUCE GATESHEAD,399244,Local Environmental Services,Adult Social Care,101,Supplies and Services,504,Equipment,5023,Revenue,CATERING.FOOD & BEVERAGES
24-MAR-2022,7013215,0.73,TOTAL PRODUCE GATESHEAD,399244,Local Environmental Services,Adult Social Care,101,Supplies and Services,504,Equipment,5023,Revenue,CATERING.FOOD & BEVERAGES
24-MAR-2022,7013215,0.73,TOTAL PRODUCE GATESHEAD,399244,Commissioning & Asset Management,Children's & Education Services,103,Supplies and Services,504,Equipment,5023,Revenue,CATERING.FOOD & BEVERAGES
24-MAR-2022,7013215,0.73,TOTAL PRODUCE GATESHEAD,399244,Commissioning & Asset Management,Children's & Education Services,103,Supplies and Services,504,Equipment,5023,Revenue,CATERING.FOOD & BEVERAGES
24-MAR-2022,7013215,0.73,TOTAL PRODUCE GATESHEAD,399244,Local Environmental Services,Cultural & Related Services,104,Supplies and Services,504,Equipment,5023,Revenue,CATERING.FOOD & BEVERAGES
24-MAR-2022,7013215,0.73,TOTAL PRODUCE GATESHEAD,399244,Local Environmental Services,Cultural & Related Services,104,Supplies and Services,504,Equipment,5023,Revenue,CATERING.FOOD & BEVERAGES
24-MAR-2022,7013215,0.76,TOTAL PRODUCE GATESHEAD,399244,Commissioning & Asset Management,Children's & Education Services,103,Supplies and Services,504,Equipment,5023,Revenue,CATERING.FOOD & BEVERAGES
24-MAR-2022,7013215,0.76,TOTAL PRODUCE GATESHEAD,399244,Commissioning & Asset Management,Children's & Education Services,103,Supplies and Services,504,Equipment,5023,Revenue,CATERING.FOOD & BEVERAGES
24-MAR-2022,7013215,0.76,TOTAL PRODUCE GATESHEAD,399244,Commissioning & Asset Management,Children's & Education Services,103,Supplies and Services,504,Equipment,5023,Revenue,CATERING.FOOD & BEVERAGES
24-MAR-2022,7013215,0.76,TOTAL PRODUCE GATESHEAD,399244,Commissioning & Asset Management,Children's & Education Services,103,Supplies and Services,504,Equipment,5023,Revenue,CATERING.FOOD & BEVERAGES
24-MAR-2022,7013215,0.76,TOTAL PRODUCE GATESHEAD,399244,Commissioning & Asset Management,Children's & Education Services,103,Supplies and Services,504,Equipment,5023,Revenue,CATERING.FOOD & BEVERAGES
24-MAR-2022,7013215,0.76,TOTAL PRODUCE GATESHEAD,399244,Commissioning & Asset Management,Children's & Education Services,103,Supplies and Services,504,Equipment,5023,Revenue,CATERING.FOOD & BEVERAGES
24-MAR-2022,7013215,0.76,TOTAL PRODUCE GATESHEAD,399244,Commissioning & Asset Management,Children's & Education Services,103,Supplies and Services,504,Equipment,5023,Revenue,CATERING.FOOD & BEVERAGES
24-MAR-2022,7013215,0.76,TOTAL PRODUCE GATESHEAD,399244,Commissioning & Asset Management,Children's & Education Services,103,Supplies and Services,504,Equipment,5023,Revenue,CATERING.FOOD & BEVERAGES
24-MAR-2022,7013215,0.8,TOTAL PRODUCE GATESHEAD,399244,Commissioning & Asset Management,Children's & Education Services,103,Supplies and Services,504,Equipment,5023,Revenue,CATERING.FOOD & BEVERAGES
24-MAR-2022,7013215,0.8,TOTAL PRODUCE GATESHEAD,399244,Commissioning & Asset Management,Children's & Education Services,103,Supplies and Services,504,Equipment,5023,Revenue,CATERING.FOOD & BEVERAGES
24-MAR-2022,7013215,0.8,TOTAL PRODUCE GATESHEAD,399244,Commissioning & Asset Management,Children's & Education Services,103,Supplies and Services,504,Equipment,5023,Revenue,CATERING.FOOD & BEVERAGES
24-MAR-2022,7013215,0.81,TOTAL PRODUCE GATESHEAD,399244,Commissioning & Asset Management,Children's & Education Services,103,Supplies and Services,504,Equipment,5023,Revenue,CATERING.FOOD & BEVERAGES
24-MAR-2022,7013215,0.81,TOTAL PRODUCE GATESHEAD,399244,Commissioning & Asset Management,Children's & Education Services,103,Supplies and Services,504,Equipment,5023,Revenue,CATERING.FOOD & BEVERAGES
24-MAR-2022,7013215,0.81,TOTAL PRODUCE GATESHEAD,399244,Commissioning & Asset Management,Children's & Education Services,103,Supplies and Services,504,Equipment,5023,Revenue,CATERING.FOOD & BEVERAGES
24-MAR-2022,7013215,0.81,TOTAL PRODUCE GATESHEAD,399244,Commissioning & Asset Management,Children's & Education Services,103,Supplies and Services,504,Equipment,5023,Revenue,CATERING.FOOD & BEVERAGES
24-MAR-2022,7013215,0.81,TOTAL PRODUCE GATESHEAD,399244,Commissioning & Asset Management,Children's & Education Services,103,Supplies and Services,504,Equipment,5023,Revenue,CATERING.FOOD & BEVERAGES
24-MAR-2022,7013215,0.81,TOTAL PRODUCE GATESHEAD,399244,Commissioning & Asset Management,Children's & Education Services,103,Supplies and Services,504,Equipment,5023,Revenue,CATERING.FOOD & BEVERAGES
24-MAR-2022,7013215,0.81,TOTAL PRODUCE GATESHEAD,399244,Commissioning & Asset Management,Children's & Education Services,103,Supplies and Services,504,Equipment,5023,Revenue,CATERING.FOOD & BEVERAGES
24-MAR-2022,7013215,0.81,TOTAL PRODUCE GATESHEAD,399244,Commissioning & Asset Management,Children's & Education Services,103,Supplies and Services,504,Equipment,5023,Revenue,CATERING.FOOD & BEVERAGES
24-MAR-2022,7013215,0.81,TOTAL PRODUCE GATESHEAD,399244,Commissioning & Asset Management,Children's & Education Services,103,Supplies and Services,504,Equipment,5023,Revenue,CATERING.FOOD & BEVERAGES
24-MAR-2022,7013215,0.81,TOTAL PRODUCE GATESHEAD,399244,Commissioning & Asset Management,Children's & Education Services,103,Supplies and Services,504,Equipment,5023,Revenue,CATERING.FOOD & BEVERAGES
24-MAR-2022,7013215,0.81,TOTAL PRODUCE GATESHEAD,399244,Commissioning & Asset Management,Children's & Education Services,103,Supplies and Services,504,Equipment,5023,Revenue,CATERING.FOOD & BEVERAGES
24-MAR-2022,7013215,0.81,TOTAL PRODUCE GATESHEAD,399244,Commissioning & Asset Management,Children's & Education Services,103,Supplies and Services,504,Equipment,5023,Revenue,CATERING.FOOD & BEVERAGES
24-MAR-2022,7013215,0.81,TOTAL PRODUCE GATESHEAD,399244,Commissioning & Asset Management,Children's & Education Services,103,Supplies and Services,504,Equipment,5023,Revenue,CATERING.FOOD & BEVERAGES
24-MAR-2022,7013215,0.81,TOTAL PRODUCE GATESHEAD,399244,Commissioning & Asset Management,Children's & Education Services,103,Supplies and Services,504,Equipment,5023,Revenue,CATERING.FOOD & BEVERAGES
24-MAR-2022,7013215,0.81,TOTAL PRODUCE GATESHEAD,399244,Commissioning & Asset Management,Children's & Education Services,103,Supplies and Services,504,Equipment,5023,Revenue,CATERING.FOOD & BEVERAGES
24-MAR-2022,7013215,0.81,TOTAL PRODUCE GATESHEAD,399244,Commissioning & Asset Management,Children's & Education Services,103,Supplies and Services,504,Equipment,5023,Revenue,CATERING.FOOD & BEVERAGES
24-MAR-2022,7013215,0.81,TOTAL PRODUCE GATESHEAD,399244,Commissioning & Asset Management,Children's & Education Services,103,Supplies and Services,504,Equipment,5023,Revenue,CATERING.FOOD & BEVERAGES
24-MAR-2022,7013215,0.81,TOTAL PRODUCE GATESHEAD,399244,Commissioning & Asset Management,Children's & Education Services,103,Supplies and Services,504,Equipment,5023,Revenue,CATERING.FOOD & BEVERAGES
24-MAR-2022,7013215,0.81,TOTAL PRODUCE GATESHEAD,399244,Commissioning & Asset Management,Children's & Education Services,103,Supplies and Services,504,Equipment,5023,Revenue,CATERING.FOOD & BEVERAGES
24-MAR-2022,7013215,0.81,TOTAL PRODUCE GATESHEAD,399244,Commissioning & Asset Management,Children's & Education Services,103,Supplies and Services,504,Equipment,5023,Revenue,CATERING.FOOD & BEVERAGES
24-MAR-2022,7013215,0.81,TOTAL PRODUCE GATESHEAD,399244,Commissioning & Asset Management,Children's & Education Services,103,Supplies and Services,504,Equipment,5023,Revenue,CATERING.FOOD & BEVERAGES
24-MAR-2022,7013215,0.81,TOTAL PRODUCE GATESHEAD,399244,Commissioning & Asset Management,Children's & Education Services,103,Supplies and Services,504,Equipment,5023,Revenue,CATERING.FOOD & BEVERAGES
24-MAR-2022,7013215,0.81,TOTAL PRODUCE GATESHEAD,399244,Commissioning & Asset Management,Children's & Education Services,103,Supplies and Services,504,Equipment,5023,Revenue,CATERING.FOOD & BEVERAGES
24-MAR-2022,7013215,0.81,TOTAL PRODUCE GATESHEAD,399244,Commissioning & Asset Management,Children's & Education Services,103,Supplies and Services,504,Equipment,5023,Revenue,CATERING.FOOD & BEVERAGES
24-MAR-2022,7013215,0.81,TOTAL PRODUCE GATESHEAD,399244,Commissioning & Asset Management,Children's & Education Services,103,Supplies and Services,504,Equipment,5023,Revenue,CATERING.FOOD & BEVERAGES
24-MAR-2022,7013215,0.81,TOTAL PRODUCE GATESHEAD,399244,Commissioning & Asset Management,Children's & Education Services,103,Supplies and Services,504,Equipment,5023,Revenue,CATERING.FOOD & BEVERAGES
24-MAR-2022,7013215,0.81,TOTAL PRODUCE GATESHEAD,399244,Commissioning & Asset Management,Children's & Education Services,103,Supplies and Services,504,Equipment,5023,Revenue,CATERING.FOOD & BEVERAGES
24-MAR-2022,7013215,0.81,TOTAL PRODUCE GATESHEAD,399244,Commissioning & Asset Management,Children's & Education Services,103,Supplies and Services,504,Equipment,5023,Revenue,CATERING.FOOD & BEVERAGES
24-MAR-2022,7013215,0.81,TOTAL PRODUCE GATESHEAD,399244,Commissioning & Asset Management,Children's & Education Services,103,Supplies and Services,504,Equipment,5023,Revenue,CATERING.FOOD & BEVERAGES
24-MAR-2022,7013215,0.81,TOTAL PRODUCE GATESHEAD,399244,Commissioning & Asset Management,Children's & Education Services,103,Supplies and Services,504,Equipment,5023,Revenue,CATERING.FOOD & BEVERAGES
24-MAR-2022,7013215,0.81,TOTAL PRODUCE GATESHEAD,399244,Commissioning & Asset Management,Children's & Education Services,103,Supplies and Services,504,Equipment,5023,Revenue,CATERING.FOOD & BEVERAGES
24-MAR-2022,7013215,0.81,TOTAL PRODUCE GATESHEAD,399244,Commissioning & Asset Management,Children's & Education Services,103,Supplies and Services,504,Equipment,5023,Revenue,CATERING.FOOD & BEVERAGES
24-MAR-2022,7013215,0.81,TOTAL PRODUCE GATESHEAD,399244,Commissioning & Asset Management,Children's & Education Services,103,Supplies and Services,504,Equipment,5023,Revenue,CATERING.FOOD & BEVERAGES
24-MAR-2022,7013215,0.81,TOTAL PRODUCE GATESHEAD,399244,Commissioning & Asset Management,Children's & Education Services,103,Supplies and Services,504,Equipment,5023,Revenue,CATERING.FOOD & BEVERAGES
24-MAR-2022,7013215,0.81,TOTAL PRODUCE GATESHEAD,399244,Commissioning & Asset Management,Children's & Education Services,103,Supplies and Services,504,Equipment,5023,Revenue,CATERING.FOOD & BEVERAGES
24-MAR-2022,7013215,0.81,TOTAL PRODUCE GATESHEAD,399244,Commissioning & Asset Management,Children's & Education Services,103,Supplies and Services,504,Equipment,5023,Revenue,CATERING.FOOD & BEVERAGES
24-MAR-2022,7013215,0.81,TOTAL PRODUCE GATESHEAD,399244,Commissioning & Asset Management,Children's & Education Services,103,Supplies and Services,504,Equipment,5023,Revenue,CATERING.FOOD & BEVERAGES
24-MAR-2022,7013215,0.81,TOTAL PRODUCE GATESHEAD,399244,Commissioning & Asset Management,Children's & Education Services,103,Supplies and Services,504,Equipment,5023,Revenue,CATERING.FOOD & BEVERAGES
24-MAR-2022,7013215,0.81,TOTAL PRODUCE GATESHEAD,399244,Commissioning & Asset Management,Children's & Education Services,103,Supplies and Services,504,Equipment,5023,Revenue,CATERING.FOOD & BEVERAGES
24-MAR-2022,7013215,0.81,TOTAL PRODUCE GATESHEAD,399244,Commissioning & Asset Management,Children's & Education Services,103,Supplies and Services,504,Equipment,5023,Revenue,CATERING.FOOD & BEVERAGES
24-MAR-2022,7013215,0.81,TOTAL PRODUCE GATESHEAD,399244,Commissioning & Asset Management,Children's & Education Services,103,Supplies and Services,504,Equipment,5023,Revenue,CATERING.FOOD & BEVERAGES
24-MAR-2022,7013215,0.81,TOTAL PRODUCE GATESHEAD,399244,Commissioning & Asset Management,Children's & Education Services,103,Supplies and Services,504,Equipment,5023,Revenue,CATERING.FOOD & BEVERAGES
24-MAR-2022,7013215,0.81,TOTAL PRODUCE GATESHEAD,399244,Commissioning & Asset Management,Children's & Education Services,103,Supplies and Services,504,Equipment,5023,Revenue,CATERING.FOOD & BEVERAGES
24-MAR-2022,7013215,0.81,TOTAL PRODUCE GATESHEAD,399244,Commissioning & Asset Management,Children's & Education Services,103,Supplies and Services,504,Equipment,5023,Revenue,CATERING.FOOD & BEVERAGES
24-MAR-2022,7013215,0.81,TOTAL PRODUCE GATESHEAD,399244,Commissioning & Asset Management,Children's & Education Services,103,Supplies and Services,504,Equipment,5023,Revenue,CATERING.FOOD & BEVERAGES
24-MAR-2022,7013215,0.81,TOTAL PRODUCE GATESHEAD,399244,Commissioning & Asset Management,Children's & Education Services,103,Supplies and Services,504,Equipment,5023,Revenue,CATERING.FOOD & BEVERAGES
24-MAR-2022,7013215,0.81,TOTAL PRODUCE GATESHEAD,399244,Commissioning & Asset Management,Children's & Education Services,103,Supplies and Services,504,Equipment,5023,Revenue,CATERING.FOOD & BEVERAGES
24-MAR-2022,7013215,0.81,TOTAL PRODUCE GATESHEAD,399244,Commissioning & Asset Management,Children's & Education Services,103,Supplies and Services,504,Equipment,5023,Revenue,CATERING.FOOD & BEVERAGES
24-MAR-2022,7013215,0.81,TOTAL PRODUCE GATESHEAD,399244,Commissioning & Asset Management,Children's & Education Services,103,Supplies and Services,504,Equipment,5023,Revenue,CATERING.FOOD & BEVERAGES
24-MAR-2022,7013215,0.81,TOTAL PRODUCE GATESHEAD,399244,Commissioning & Asset Management,Children's & Education Services,103,Supplies and Services,504,Equipment,5023,Revenue,CATERING.FOOD & BEVERAGES
24-MAR-2022,7013215,0.81,TOTAL PRODUCE GATESHEAD,399244,Commissioning & Asset Management,Children's & Education Services,103,Supplies and Services,504,Equipment,5023,Revenue,CATERING.FOOD & BEVERAGES
24-MAR-2022,7013215,0.81,TOTAL PRODUCE GATESHEAD,399244,Commissioning & Asset Management,Children's & Education Services,103,Supplies and Services,504,Equipment,5023,Revenue,CATERING.FOOD & BEVERAGES
24-MAR-2022,7013215,0.81,TOTAL PRODUCE GATESHEAD,399244,Commissioning & Asset Management,Children's & Education Services,103,Supplies and Services,504,Equipment,5023,Revenue,CATERING.FOOD & BEVERAGES
24-MAR-2022,7013215,0.81,TOTAL PRODUCE GATESHEAD,399244,Commissioning & Asset Management,Children's & Education Services,103,Supplies and Services,504,Equipment,5023,Revenue,CATERING.FOOD & BEVERAGES
24-MAR-2022,7013215,0.81,TOTAL PRODUCE GATESHEAD,399244,Commissioning & Asset Management,Children's & Education Services,103,Supplies and Services,504,Equipment,5023,Revenue,CATERING.FOOD & BEVERAGES
24-MAR-2022,7013215,0.81,TOTAL PRODUCE GATESHEAD,399244,Commissioning & Asset Management,Children's & Education Services,103,Supplies and Services,504,Equipment,5023,Revenue,CATERING.FOOD & BEVERAGES
24-MAR-2022,7013215,0.81,TOTAL PRODUCE GATESHEAD,399244,Commissioning & Asset Management,Children's & Education Services,103,Supplies and Services,504,Equipment,5023,Revenue,CATERING.FOOD & BEVERAGES
24-MAR-2022,7013215,0.81,TOTAL PRODUCE GATESHEAD,399244,Commissioning & Asset Management,Children's & Education Services,103,Supplies and Services,504,Equipment,5023,Revenue,CATERING.FOOD & BEVERAGES
24-MAR-2022,7013215,0.81,TOTAL PRODUCE GATESHEAD,399244,Commissioning & Asset Management,Children's & Education Services,103,Supplies and Services,504,Equipment,5023,Revenue,CATERING.FOOD & BEVERAGES
24-MAR-2022,7013215,0.81,TOTAL PRODUCE GATESHEAD,399244,Commissioning & Asset Management,Children's & Education Services,103,Supplies and Services,504,Equipment,5023,Revenue,CATERING.FOOD & BEVERAGES
24-MAR-2022,7013215,0.81,TOTAL PRODUCE GATESHEAD,399244,Commissioning & Asset Management,Children's & Education Services,103,Supplies and Services,504,Equipment,5023,Revenue,CATERING.FOOD & BEVERAGES
24-MAR-2022,7013215,0.81,TOTAL PRODUCE GATESHEAD,399244,Commissioning & Asset Management,Children's & Education Services,103,Supplies and Services,504,Equipment,5023,Revenue,CATERING.FOOD & BEVERAGES
24-MAR-2022,7013215,0.81,TOTAL PRODUCE GATESHEAD,399244,Commissioning & Asset Management,Children's & Education Services,103,Supplies and Services,504,Equipment,5023,Revenue,CATERING.FOOD & BEVERAGES
24-MAR-2022,7013215,0.81,TOTAL PRODUCE GATESHEAD,399244,Commissioning & Asset Management,Children's & Education Services,103,Supplies and Services,504,Equipment,5023,Revenue,CATERING.FOOD & BEVERAGES
24-MAR-2022,7013215,0.81,TOTAL PRODUCE GATESHEAD,399244,Commissioning & Asset Management,Children's & Education Services,103,Supplies and Services,504,Equipment,5023,Revenue,CATERING.FOOD & BEVERAGES
24-MAR-2022,7013215,0.81,TOTAL PRODUCE GATESHEAD,399244,Commissioning & Asset Management,Children's & Education Services,103,Supplies and Services,504,Equipment,5023,Revenue,CATERING.FOOD & BEVERAGES
24-MAR-2022,7013215,0.81,TOTAL PRODUCE GATESHEAD,399244,Commissioning & Asset Management,Children's & Education Services,103,Supplies and Services,504,Equipment,5023,Revenue,CATERING.FOOD & BEVERAGES
24-MAR-2022,7013215,0.81,TOTAL PRODUCE GATESHEAD,399244,Commissioning & Asset Management,Children's & Education Services,103,Supplies and Services,504,Equipment,5023,Revenue,CATERING.FOOD & BEVERAGES
24-MAR-2022,7013215,0.81,TOTAL PRODUCE GATESHEAD,399244,Commissioning & Asset Management,Children's & Education Services,103,Supplies and Services,504,Equipment,5023,Revenue,CATERING.FOOD & BEVERAGES
24-MAR-2022,7013215,0.81,TOTAL PRODUCE GATESHEAD,399244,Commissioning & Asset Management,Children's & Education Services,103,Supplies and Services,504,Equipment,5023,Revenue,CATERING.FOOD & BEVERAGES
24-MAR-2022,7013215,0.81,TOTAL PRODUCE GATESHEAD,399244,Commissioning & Asset Management,Children's & Education Services,103,Supplies and Services,504,Equipment,5023,Revenue,CATERING.FOOD & BEVERAGES
24-MAR-2022,7013215,0.81,TOTAL PRODUCE GATESHEAD,399244,Commissioning & Asset Management,Children's & Education Services,103,Supplies and Services,504,Equipment,5023,Revenue,CATERING.FOOD & BEVERAGES
24-MAR-2022,7013215,0.81,TOTAL PRODUCE GATESHEAD,399244,Commissioning & Asset Management,Children's & Education Services,103,Supplies and Services,504,Equipment,5023,Revenue,CATERING.FOOD & BEVERAGES
24-MAR-2022,7013215,0.81,TOTAL PRODUCE GATESHEAD,399244,Commissioning & Asset Management,Children's & Education Services,103,Supplies and Services,504,Equipment,5023,Revenue,CATERING.FOOD & BEVERAGES
24-MAR-2022,7013215,0.81,TOTAL PRODUCE GATESHEAD,399244,Commissioning & Asset Management,Children's & Education Services,103,Supplies and Services,504,Equipment,5023,Revenue,CATERING.FOOD & BEVERAGES
24-MAR-2022,7013215,0.81,TOTAL PRODUCE GATESHEAD,399244,Commissioning & Asset Management,Children's & Education Services,103,Supplies and Services,504,Equipment,5023,Revenue,CATERING.FOOD & BEVERAGES
24-MAR-2022,7013215,0.81,TOTAL PRODUCE GATESHEAD,399244,Commissioning & Asset Management,Children's & Education Services,103,Supplies and Services,504,Equipment,5023,Revenue,CATERING.FOOD & BEVERAGES
24-MAR-2022,7013215,0.81,TOTAL PRODUCE GATESHEAD,399244,Commissioning & Asset Management,Children's & Education Services,103,Supplies and Services,504,Equipment,5023,Revenue,CATERING.FOOD & BEVERAGES
24-MAR-2022,7013215,0.81,TOTAL PRODUCE GATESHEAD,399244,Commissioning & Asset Management,Children's & Education Services,103,Supplies and Services,504,Equipment,5023,Revenue,CATERING.FOOD & BEVERAGES
24-MAR-2022,7013215,0.81,TOTAL PRODUCE GATESHEAD,399244,Commissioning & Asset Management,Children's & Education Services,103,Supplies and Services,504,Equipment,5023,Revenue,CATERING.FOOD & BEVERAGES
24-MAR-2022,7013215,0.81,TOTAL PRODUCE GATESHEAD,399244,Commissioning & Asset Management,Children's & Education Services,103,Supplies and Services,504,Equipment,5023,Revenue,CATERING.FOOD & BEVERAGES
24-MAR-2022,7013215,0.81,TOTAL PRODUCE GATESHEAD,399244,Commissioning & Asset Management,Children's & Education Services,103,Supplies and Services,504,Equipment,5023,Revenue,CATERING.FOOD & BEVERAGES
24-MAR-2022,7013215,0.81,TOTAL PRODUCE GATESHEAD,399244,Commissioning & Asset Management,Children's & Education Services,103,Supplies and Services,504,Equipment,5023,Revenue,CATERING.FOOD & BEVERAGES
24-MAR-2022,7013215,0.81,TOTAL PRODUCE GATESHEAD,399244,Commissioning & Asset Management,Children's & Education Services,103,Supplies and Services,504,Equipment,5023,Revenue,CATERING.FOOD & BEVERAGES
24-MAR-2022,7013215,0.81,TOTAL PRODUCE GATESHEAD,399244,Commissioning & Asset Management,Children's & Education Services,103,Supplies and Services,504,Equipment,5023,Revenue,CATERING.FOOD & BEVERAGES
24-MAR-2022,7013215,0.81,TOTAL PRODUCE GATESHEAD,399244,Commissioning & Asset Management,Children's & Education Services,103,Supplies and Services,504,Equipment,5023,Revenue,CATERING.FOOD & BEVERAGES
24-MAR-2022,7013215,0.81,TOTAL PRODUCE GATESHEAD,399244,Commissioning & Asset Management,Children's & Education Services,103,Supplies and Services,504,Equipment,5023,Revenue,CATERING.FOOD & BEVERAGES
24-MAR-2022,7013215,0.81,TOTAL PRODUCE GATESHEAD,399244,Commissioning & Asset Management,Children's & Education Services,103,Supplies and Services,504,Equipment,5023,Revenue,CATERING.FOOD & BEVERAGES
24-MAR-2022,7013215,0.81,TOTAL PRODUCE GATESHEAD,399244,Commissioning & Asset Management,Children's & Education Services,103,Supplies and Services,504,Equipment,5023,Revenue,CATERING.FOOD & BEVERAGES
24-MAR-2022,7013215,0.81,TOTAL PRODUCE GATESHEAD,399244,Commissioning & Asset Management,Children's & Education Services,103,Supplies and Services,504,Equipment,5023,Revenue,CATERING.FOOD & BEVERAGES
24-MAR-2022,7013215,0.81,TOTAL PRODUCE GATESHEAD,399244,Commissioning & Asset Management,Children's & Education Services,103,Supplies and Services,504,Equipment,5023,Revenue,CATERING.FOOD & BEVERAGES
24-MAR-2022,7013215,0.81,TOTAL PRODUCE GATESHEAD,399244,Commissioning & Asset Management,Children's & Education Services,103,Supplies and Services,504,Equipment,5023,Revenue,CATERING.FOOD & BEVERAGES
24-MAR-2022,7013215,0.81,TOTAL PRODUCE GATESHEAD,399244,Commissioning & Asset Management,Children's & Education Services,103,Supplies and Services,504,Equipment,5023,Revenue,CATERING.FOOD & BEVERAGES
24-MAR-2022,7013215,0.81,TOTAL PRODUCE GATESHEAD,399244,Commissioning & Asset Management,Children's & Education Services,103,Supplies and Services,504,Equipment,5023,Revenue,CATERING.FOOD & BEVERAGES
24-MAR-2022,7013215,0.81,TOTAL PRODUCE GATESHEAD,399244,Commissioning & Asset Management,Children's & Education Services,103,Supplies and Services,504,Equipment,5023,Revenue,CATERING.FOOD & BEVERAGES
24-MAR-2022,7013215,0.81,TOTAL PRODUCE GATESHEAD,399244,Commissioning & Asset Management,Children's & Education Services,103,Supplies and Services,504,Equipment,5023,Revenue,CATERING.FOOD & BEVERAGES
24-MAR-2022,7013215,0.81,TOTAL PRODUCE GATESHEAD,399244,Commissioning & Asset Management,Children's & Education Services,103,Supplies and Services,504,Equipment,5023,Revenue,CATERING.FOOD & BEVERAGES
24-MAR-2022,7013215,0.81,TOTAL PRODUCE GATESHEAD,399244,Commissioning & Asset Management,Children's & Education Services,103,Supplies and Services,504,Equipment,5023,Revenue,CATERING.FOOD & BEVERAGES
24-MAR-2022,7013215,0.81,TOTAL PRODUCE GATESHEAD,399244,Commissioning & Asset Management,Children's & Education Services,103,Supplies and Services,504,Equipment,5023,Revenue,CATERING.FOOD & BEVERAGES
24-MAR-2022,7013215,0.81,TOTAL PRODUCE GATESHEAD,399244,Commissioning & Asset Management,Children's & Education Services,103,Supplies and Services,504,Equipment,5023,Revenue,CATERING.FOOD & BEVERAGES
24-MAR-2022,7013215,0.81,TOTAL PRODUCE GATESHEAD,399244,Commissioning & Asset Management,Children's & Education Services,103,Supplies and Services,504,Equipment,5023,Revenue,CATERING.FOOD & BEVERAGES
24-MAR-2022,7013215,0.81,TOTAL PRODUCE GATESHEAD,399244,Commissioning & Asset Management,Children's & Education Services,103,Supplies and Services,504,Equipment,5023,Revenue,CATERING.FOOD & BEVERAGES
24-MAR-2022,7013215,0.81,TOTAL PRODUCE GATESHEAD,399244,Commissioning & Asset Management,Children's & Education Services,103,Supplies and Services,504,Equipment,5023,Revenue,CATERING.FOOD & BEVERAGES
24-MAR-2022,7013215,0.81,TOTAL PRODUCE GATESHEAD,399244,Commissioning & Asset Management,Children's & Education Services,103,Supplies and Services,504,Equipment,5023,Revenue,CATERING.FOOD & BEVERAGES
24-MAR-2022,7013215,0.81,TOTAL PRODUCE GATESHEAD,399244,Commissioning & Asset Management,Children's & Education Services,103,Supplies and Services,504,Equipment,5023,Revenue,CATERING.FOOD & BEVERAGES
24-MAR-2022,7013215,0.81,TOTAL PRODUCE GATESHEAD,399244,Commissioning & Asset Management,Children's & Education Services,103,Supplies and Services,504,Equipment,5023,Revenue,CATERING.FOOD & BEVERAGES
24-MAR-2022,7013215,0.81,TOTAL PRODUCE GATESHEAD,399244,Commissioning & Asset Management,Children's & Education Services,103,Supplies and Services,504,Equipment,5023,Revenue,CATERING.FOOD & BEVERAGES
24-MAR-2022,7013215,0.81,TOTAL PRODUCE GATESHEAD,399244,Commissioning & Asset Management,Children's & Education Services,103,Supplies and Services,504,Equipment,5023,Revenue,CATERING.FOOD & BEVERAGES
24-MAR-2022,7013215,0.81,TOTAL PRODUCE GATESHEAD,399244,Commissioning & Asset Management,Children's & Education Services,103,Supplies and Services,504,Equipment,5023,Revenue,CATERING.FOOD & BEVERAGES
24-MAR-2022,7013215,0.81,TOTAL PRODUCE GATESHEAD,399244,Commissioning & Asset Management,Children's & Education Services,103,Supplies and Services,504,Equipment,5023,Revenue,CATERING.FOOD & BEVERAGES
24-MAR-2022,7013215,0.81,TOTAL PRODUCE GATESHEAD,399244,Commissioning & Asset Management,Children's & Education Services,103,Supplies and Services,504,Equipment,5023,Revenue,CATERING.FOOD & BEVERAGES
24-MAR-2022,7013215,0.81,TOTAL PRODUCE GATESHEAD,399244,Commissioning & Asset Management,Children's & Education Services,103,Supplies and Services,504,Equipment,5023,Revenue,CATERING.FOOD & BEVERAGES
24-MAR-2022,7013215,0.81,TOTAL PRODUCE GATESHEAD,399244,Commissioning & Asset Management,Children's & Education Services,103,Supplies and Services,504,Equipment,5023,Revenue,CATERING.FOOD & BEVERAGES
24-MAR-2022,7013215,0.81,TOTAL PRODUCE GATESHEAD,399244,Commissioning & Asset Management,Children's & Education Services,103,Supplies and Services,504,Equipment,5023,Revenue,CATERING.FOOD & BEVERAGES
24-MAR-2022,7013215,0.81,TOTAL PRODUCE GATESHEAD,399244,Commissioning & Asset Management,Children's & Education Services,103,Supplies and Services,504,Equipment,5023,Revenue,CATERING.FOOD & BEVERAGES
24-MAR-2022,7013215,0.81,TOTAL PRODUCE GATESHEAD,399244,Commissioning & Asset Management,Children's & Education Services,103,Supplies and Services,504,Equipment,5023,Revenue,CATERING.FOOD & BEVERAGES
24-MAR-2022,7013215,0.81,TOTAL PRODUCE GATESHEAD,399244,Commissioning & Asset Management,Children's & Education Services,103,Supplies and Services,504,Equipment,5023,Revenue,CATERING.FOOD & BEVERAGES
24-MAR-2022,7013215,0.84,TOTAL PRODUCE GATESHEAD,399244,Local Environmental Services,Adult Social Care,101,Supplies and Services,504,Equipment,5023,Revenue,CATERING.FOOD & BEVERAGES
24-MAR-2022,7013215,0.84,TOTAL PRODUCE GATESHEAD,399244,Commissioning & Asset Management,Children's & Education Services,103,Supplies and Services,504,Equipment,5023,Revenue,CATERING.FOOD & BEVERAGES
24-MAR-2022,7013215,0.84,TOTAL PRODUCE GATESHEAD,399244,Commissioning & Asset Management,Children's & Education Services,103,Supplies and Services,504,Equipment,5023,Revenue,CATERING.FOOD & BEVERAGES
24-MAR-2022,7013215,0.84,TOTAL PRODUCE GATESHEAD,399244,Commissioning & Asset Management,Children's & Education Services,103,Supplies and Services,504,Equipment,5023,Revenue,CATERING.FOOD & BEVERAGES
24-MAR-2022,7013215,0.84,TOTAL PRODUCE GATESHEAD,399244,Commissioning & Asset Management,Children's & Education Services,103,Supplies and Services,504,Equipment,5023,Revenue,CATERING.FOOD & BEVERAGES
24-MAR-2022,7013215,0.84,TOTAL PRODUCE GATESHEAD,399244,Commissioning & Asset Management,Children's & Education Services,103,Supplies and Services,504,Equipment,5023,Revenue,CATERING.FOOD & BEVERAGES
24-MAR-2022,7013215,0.85,TOTAL PRODUCE GATESHEAD,399244,Local Environmental Services,Adult Social Care,101,Supplies and Services,504,Equipment,5023,Revenue,CATERING.FOOD & BEVERAGES
24-MAR-2022,7013215,0.85,TOTAL PRODUCE GATESHEAD,399244,Local Environmental Services,Adult Social Care,101,Supplies and Services,504,Equipment,5023,Revenue,CATERING.FOOD & BEVERAGES
24-MAR-2022,7013215,0.85,TOTAL PRODUCE GATESHEAD,399244,Local Environmental Services,Adult Social Care,101,Supplies and Services,504,Equipment,5023,Revenue,CATERING.FOOD & BEVERAGES
24-MAR-2022,7013215,0.85,TOTAL PRODUCE GATESHEAD,399244,Local Environmental Services,Adult Social Care,101,Supplies and Services,504,Equipment,5023,Revenue,CATERING.FOOD & BEVERAGES
24-MAR-2022,7013215,0.85,TOTAL PRODUCE GATESHEAD,399244,Local Environmental Services,Adult Social Care,101,Supplies and Services,504,Equipment,5023,Revenue,CATERING.FOOD & BEVERAGES
24-MAR-2022,7013215,0.85,TOTAL PRODUCE GATESHEAD,399244,Local Environmental Services,Adult Social Care,101,Supplies and Services,504,Equipment,5023,Revenue,CATERING.FOOD & BEVERAGES
24-MAR-2022,7013215,0.85,TOTAL PRODUCE GATESHEAD,399244,Local Environmental Services,Adult Social Care,101,Supplies and Services,504,Equipment,5023,Revenue,CATERING.FOOD & BEVERAGES
24-MAR-2022,7013215,0.85,TOTAL PRODUCE GATESHEAD,399244,Commissioning & Asset Management,Children's & Education Services,103,Supplies and Services,504,Equipment,5023,Revenue,CATERING.FOOD & BEVERAGES
24-MAR-2022,7013215,0.86,TOTAL PRODUCE GATESHEAD,399244,Commissioning & Asset Management,Children's & Education Services,103,Supplies and Services,504,Equipment,5023,Revenue,CATERING.FOOD & BEVERAGES
24-MAR-2022,7013215,0.86,TOTAL PRODUCE GATESHEAD,399244,Commissioning & Asset Management,Children's & Education Services,103,Supplies and Services,504,Equipment,5023,Revenue,CATERING.FOOD & BEVERAGES
24-MAR-2022,7013215,0.86,TOTAL PRODUCE GATESHEAD,399244,Commissioning & Asset Management,Children's & Education Services,103,Supplies and Services,504,Equipment,5023,Revenue,CATERING.FOOD & BEVERAGES
24-MAR-2022,7013215,0.86,TOTAL PRODUCE GATESHEAD,399244,Commissioning & Asset Management,Children's & Education Services,103,Supplies and Services,504,Equipment,5023,Revenue,CATERING.FOOD & BEVERAGES
24-MAR-2022,7013215,0.86,TOTAL PRODUCE GATESHEAD,399244,Commissioning & Asset Management,Children's & Education Services,103,Supplies and Services,504,Equipment,5023,Revenue,CATERING.FOOD & BEVERAGES
24-MAR-2022,7013215,0.86,TOTAL PRODUCE GATESHEAD,399244,Commissioning & Asset Management,Children's & Education Services,103,Supplies and Services,504,Equipment,5023,Revenue,CATERING.FOOD & BEVERAGES
24-MAR-2022,7013215,0.86,TOTAL PRODUCE GATESHEAD,399244,Commissioning & Asset Management,Children's & Education Services,103,Supplies and Services,504,Equipment,5023,Revenue,CATERING.FOOD & BEVERAGES
24-MAR-2022,7013215,0.86,TOTAL PRODUCE GATESHEAD,399244,Commissioning & Asset Management,Children's & Education Services,103,Supplies and Services,504,Equipment,5023,Revenue,CATERING.FOOD & BEVERAGES
24-MAR-2022,7013215,0.86,TOTAL PRODUCE GATESHEAD,399244,Commissioning & Asset Management,Children's & Education Services,103,Supplies and Services,504,Equipment,5023,Revenue,CATERING.FOOD & BEVERAGES
24-MAR-2022,7013215,0.86,TOTAL PRODUCE GATESHEAD,399244,Commissioning & Asset Management,Children's & Education Services,103,Supplies and Services,504,Equipment,5023,Revenue,CATERING.FOOD & BEVERAGES
24-MAR-2022,7013215,0.86,TOTAL PRODUCE GATESHEAD,399244,Commissioning & Asset Management,Children's & Education Services,103,Supplies and Services,504,Equipment,5023,Revenue,CATERING.FOOD & BEVERAGES
24-MAR-2022,7013215,0.86,TOTAL PRODUCE GATESHEAD,399244,Commissioning & Asset Management,Children's & Education Services,103,Supplies and Services,504,Equipment,5023,Revenue,CATERING.FOOD & BEVERAGES
24-MAR-2022,7013215,0.86,TOTAL PRODUCE GATESHEAD,399244,Commissioning & Asset Management,Children's & Education Services,103,Supplies and Services,504,Equipment,5023,Revenue,CATERING.FOOD & BEVERAGES
24-MAR-2022,7013215,0.86,TOTAL PRODUCE GATESHEAD,399244,Commissioning & Asset Management,Children's & Education Services,103,Supplies and Services,504,Equipment,5023,Revenue,CATERING.FOOD & BEVERAGES
24-MAR-2022,7013215,0.86,TOTAL PRODUCE GATESHEAD,399244,Commissioning & Asset Management,Children's & Education Services,103,Supplies and Services,504,Equipment,5023,Revenue,CATERING.FOOD & BEVERAGES
24-MAR-2022,7013215,0.86,TOTAL PRODUCE GATESHEAD,399244,Commissioning & Asset Management,Children's & Education Services,103,Supplies and Services,504,Equipment,5023,Revenue,CATERING.FOOD & BEVERAGES
24-MAR-2022,7013215,0.86,TOTAL PRODUCE GATESHEAD,399244,Commissioning & Asset Management,Children's & Education Services,103,Supplies and Services,504,Equipment,5023,Revenue,CATERING.FOOD & BEVERAGES
24-MAR-2022,7013215,0.86,TOTAL PRODUCE GATESHEAD,399244,Commissioning & Asset Management,Children's & Education Services,103,Supplies and Services,504,Equipment,5023,Revenue,CATERING.FOOD & BEVERAGES
24-MAR-2022,7013215,0.86,TOTAL PRODUCE GATESHEAD,399244,Commissioning & Asset Management,Children's & Education Services,103,Supplies and Services,504,Equipment,5023,Revenue,CATERING.FOOD & BEVERAGES
24-MAR-2022,7013215,0.86,TOTAL PRODUCE GATESHEAD,399244,Commissioning & Asset Management,Children's & Education Services,103,Supplies and Services,504,Equipment,5023,Revenue,CATERING.FOOD & BEVERAGES
24-MAR-2022,7013215,0.86,TOTAL PRODUCE GATESHEAD,399244,Commissioning & Asset Management,Children's & Education Services,103,Supplies and Services,504,Equipment,5023,Revenue,CATERING.FOOD & BEVERAGES
24-MAR-2022,7013215,0.86,TOTAL PRODUCE GATESHEAD,399244,Commissioning & Asset Management,Children's & Education Services,103,Supplies and Services,504,Equipment,5023,Revenue,CATERING.FOOD & BEVERAGES
24-MAR-2022,7013215,0.86,TOTAL PRODUCE GATESHEAD,399244,Commissioning & Asset Management,Children's & Education Services,103,Supplies and Services,504,Equipment,5023,Revenue,CATERING.FOOD & BEVERAGES
24-MAR-2022,7013215,0.86,TOTAL PRODUCE GATESHEAD,399244,Commissioning & Asset Management,Children's & Education Services,103,Supplies and Services,504,Equipment,5023,Revenue,CATERING.FOOD & BEVERAGES
24-MAR-2022,7013215,0.86,TOTAL PRODUCE GATESHEAD,399244,Commissioning & Asset Management,Children's & Education Services,103,Supplies and Services,504,Equipment,5023,Revenue,CATERING.FOOD & BEVERAGES
24-MAR-2022,7013215,0.86,TOTAL PRODUCE GATESHEAD,399244,Commissioning & Asset Management,Children's & Education Services,103,Supplies and Services,504,Equipment,5023,Revenue,CATERING.FOOD & BEVERAGES
24-MAR-2022,7013215,0.86,TOTAL PRODUCE GATESHEAD,399244,Commissioning & Asset Management,Children's & Education Services,103,Supplies and Services,504,Equipment,5023,Revenue,CATERING.FOOD & BEVERAGES
24-MAR-2022,7013215,0.86,TOTAL PRODUCE GATESHEAD,399244,Commissioning & Asset Management,Children's & Education Services,103,Supplies and Services,504,Equipment,5023,Revenue,CATERING.FOOD & BEVERAGES
24-MAR-2022,7013215,0.86,TOTAL PRODUCE GATESHEAD,399244,Commissioning & Asset Management,Children's & Education Services,103,Supplies and Services,504,Equipment,5023,Revenue,CATERING.FOOD & BEVERAGES
24-MAR-2022,7013215,0.86,TOTAL PRODUCE GATESHEAD,399244,Commissioning & Asset Management,Children's & Education Services,103,Supplies and Services,504,Equipment,5023,Revenue,CATERING.FOOD & BEVERAGES
24-MAR-2022,7013215,0.86,TOTAL PRODUCE GATESHEAD,399244,Commissioning & Asset Management,Children's & Education Services,103,Supplies and Services,504,Equipment,5023,Revenue,CATERING.FOOD & BEVERAGES
24-MAR-2022,7013215,0.86,TOTAL PRODUCE GATESHEAD,399244,Commissioning & Asset Management,Children's & Education Services,103,Supplies and Services,504,Equipment,5023,Revenue,CATERING.FOOD & BEVERAGES
24-MAR-2022,7013215,0.86,TOTAL PRODUCE GATESHEAD,399244,Commissioning & Asset Management,Children's & Education Services,103,Supplies and Services,504,Equipment,5023,Revenue,CATERING.FOOD & BEVERAGES
24-MAR-2022,7013215,0.86,TOTAL PRODUCE GATESHEAD,399244,Commissioning & Asset Management,Children's & Education Services,103,Supplies and Services,504,Equipment,5023,Revenue,CATERING.FOOD & BEVERAGES
24-MAR-2022,7013215,0.86,TOTAL PRODUCE GATESHEAD,399244,Commissioning & Asset Management,Children's & Education Services,103,Supplies and Services,504,Equipment,5023,Revenue,CATERING.FOOD & BEVERAGES
24-MAR-2022,7013215,0.86,TOTAL PRODUCE GATESHEAD,399244,Commissioning & Asset Management,Children's & Education Services,103,Supplies and Services,504,Equipment,5023,Revenue,CATERING.FOOD & BEVERAGES
24-MAR-2022,7013215,0.86,TOTAL PRODUCE GATESHEAD,399244,Commissioning & Asset Management,Children's & Education Services,103,Supplies and Services,504,Equipment,5023,Revenue,CATERING.FOOD & BEVERAGES
24-MAR-2022,7013215,0.86,TOTAL PRODUCE GATESHEAD,399244,Commissioning & Asset Management,Children's & Education Services,103,Supplies and Services,504,Equipment,5023,Revenue,CATERING.FOOD & BEVERAGES
24-MAR-2022,7013215,0.86,TOTAL PRODUCE GATESHEAD,399244,Commissioning & Asset Management,Children's & Education Services,103,Supplies and Services,504,Equipment,5023,Revenue,CATERING.FOOD & BEVERAGES
24-MAR-2022,7013215,0.86,TOTAL PRODUCE GATESHEAD,399244,Commissioning & Asset Management,Children's & Education Services,103,Supplies and Services,504,Equipment,5023,Revenue,CATERING.FOOD & BEVERAGES
24-MAR-2022,7013215,0.86,TOTAL PRODUCE GATESHEAD,399244,Commissioning & Asset Management,Children's & Education Services,103,Supplies and Services,504,Equipment,5023,Revenue,CATERING.FOOD & BEVERAGES
24-MAR-2022,7013215,0.86,TOTAL PRODUCE GATESHEAD,399244,Commissioning & Asset Management,Children's & Education Services,103,Supplies and Services,504,Equipment,5023,Revenue,CATERING.FOOD & BEVERAGES
24-MAR-2022,7013215,0.86,TOTAL PRODUCE GATESHEAD,399244,Commissioning & Asset Management,Children's & Education Services,103,Supplies and Services,504,Equipment,5023,Revenue,CATERING.FOOD & BEVERAGES
24-MAR-2022,7013215,0.86,TOTAL PRODUCE GATESHEAD,399244,Commissioning & Asset Management,Children's & Education Services,103,Supplies and Services,504,Equipment,5023,Revenue,CATERING.FOOD & BEVERAGES
24-MAR-2022,7013215,0.86,TOTAL PRODUCE GATESHEAD,399244,Commissioning & Asset Management,Children's & Education Services,103,Supplies and Services,504,Equipment,5023,Revenue,CATERING.FOOD & BEVERAGES
24-MAR-2022,7013215,0.86,TOTAL PRODUCE GATESHEAD,399244,Commissioning & Asset Management,Children's & Education Services,103,Supplies and Services,504,Equipment,5023,Revenue,CATERING.FOOD & BEVERAGES
24-MAR-2022,7013215,0.86,TOTAL PRODUCE GATESHEAD,399244,Commissioning & Asset Management,Children's & Education Services,103,Supplies and Services,504,Equipment,5023,Revenue,CATERING.FOOD & BEVERAGES
24-MAR-2022,7013215,0.86,TOTAL PRODUCE GATESHEAD,399244,Commissioning & Asset Management,Children's & Education Services,103,Supplies and Services,504,Equipment,5023,Revenue,CATERING.FOOD & BEVERAGES
24-MAR-2022,7013215,0.86,TOTAL PRODUCE GATESHEAD,399244,Commissioning & Asset Management,Children's & Education Services,103,Supplies and Services,504,Equipment,5023,Revenue,CATERING.FOOD & BEVERAGES
24-MAR-2022,7013215,0.86,TOTAL PRODUCE GATESHEAD,399244,Commissioning & Asset Management,Children's & Education Services,103,Supplies and Services,504,Equipment,5023,Revenue,CATERING.FOOD & BEVERAGES
24-MAR-2022,7013215,0.86,TOTAL PRODUCE GATESHEAD,399244,Commissioning & Asset Management,Children's & Education Services,103,Supplies and Services,504,Equipment,5023,Revenue,CATERING.FOOD & BEVERAGES
24-MAR-2022,7013215,0.86,TOTAL PRODUCE GATESHEAD,399244,Commissioning & Asset Management,Children's & Education Services,103,Supplies and Services,504,Equipment,5023,Revenue,CATERING.FOOD & BEVERAGES
24-MAR-2022,7013215,0.86,TOTAL PRODUCE GATESHEAD,399244,Commissioning & Asset Management,Children's & Education Services,103,Supplies and Services,504,Equipment,5023,Revenue,CATERING.FOOD & BEVERAGES
24-MAR-2022,7013215,0.86,TOTAL PRODUCE GATESHEAD,399244,Commissioning & Asset Management,Children's & Education Services,103,Supplies and Services,504,Equipment,5023,Revenue,CATERING.FOOD & BEVERAGES
24-MAR-2022,7013215,0.86,TOTAL PRODUCE GATESHEAD,399244,Commissioning & Asset Management,Children's & Education Services,103,Supplies and Services,504,Equipment,5023,Revenue,CATERING.FOOD & BEVERAGES
24-MAR-2022,7013215,0.86,TOTAL PRODUCE GATESHEAD,399244,Commissioning & Asset Management,Children's & Education Services,103,Supplies and Services,504,Equipment,5023,Revenue,CATERING.FOOD & BEVERAGES
24-MAR-2022,7013215,0.86,TOTAL PRODUCE GATESHEAD,399244,Commissioning & Asset Management,Children's & Education Services,103,Supplies and Services,504,Equipment,5023,Revenue,CATERING.FOOD & BEVERAGES
24-MAR-2022,7013215,0.86,TOTAL PRODUCE GATESHEAD,399244,Commissioning & Asset Management,Children's & Education Services,103,Supplies and Services,504,Equipment,5023,Revenue,CATERING.FOOD & BEVERAGES
24-MAR-2022,7013215,0.86,TOTAL PRODUCE GATESHEAD,399244,Commissioning & Asset Management,Children's & Education Services,103,Supplies and Services,504,Equipment,5023,Revenue,CATERING.FOOD & BEVERAGES
24-MAR-2022,7013215,0.86,TOTAL PRODUCE GATESHEAD,399244,Commissioning & Asset Management,Children's & Education Services,103,Supplies and Services,504,Equipment,5023,Revenue,CATERING.FOOD & BEVERAGES
24-MAR-2022,7013215,0.86,TOTAL PRODUCE GATESHEAD,399244,Commissioning & Asset Management,Children's & Education Services,103,Supplies and Services,504,Equipment,5023,Revenue,CATERING.FOOD & BEVERAGES
24-MAR-2022,7013215,0.86,TOTAL PRODUCE GATESHEAD,399244,Commissioning & Asset Management,Children's & Education Services,103,Supplies and Services,504,Equipment,5023,Revenue,CATERING.FOOD & BEVERAGES
24-MAR-2022,7013215,0.86,TOTAL PRODUCE GATESHEAD,399244,Commissioning & Asset Management,Children's & Education Services,103,Supplies and Services,504,Equipment,5023,Revenue,CATERING.FOOD & BEVERAGES
24-MAR-2022,7013215,0.86,TOTAL PRODUCE GATESHEAD,399244,Commissioning & Asset Management,Children's & Education Services,103,Supplies and Services,504,Equipment,5023,Revenue,CATERING.FOOD & BEVERAGES
24-MAR-2022,7013215,0.86,TOTAL PRODUCE GATESHEAD,399244,Commissioning & Asset Management,Children's & Education Services,103,Supplies and Services,504,Equipment,5023,Revenue,CATERING.FOOD & BEVERAGES
24-MAR-2022,7013215,0.86,TOTAL PRODUCE GATESHEAD,399244,Commissioning & Asset Management,Children's & Education Services,103,Supplies and Services,504,Equipment,5023,Revenue,CATERING.FOOD & BEVERAGES
24-MAR-2022,7013215,0.86,TOTAL PRODUCE GATESHEAD,399244,Commissioning & Asset Management,Children's & Education Services,103,Supplies and Services,504,Equipment,5023,Revenue,CATERING.FOOD & BEVERAGES
24-MAR-2022,7013215,0.86,TOTAL PRODUCE GATESHEAD,399244,Commissioning & Asset Management,Children's & Education Services,103,Supplies and Services,504,Equipment,5023,Revenue,CATERING.FOOD & BEVERAGES
24-MAR-2022,7013215,0.86,TOTAL PRODUCE GATESHEAD,399244,Commissioning & Asset Management,Children's & Education Services,103,Supplies and Services,504,Equipment,5023,Revenue,CATERING.FOOD & BEVERAGES
24-MAR-2022,7013215,0.86,TOTAL PRODUCE GATESHEAD,399244,Commissioning & Asset Management,Children's & Education Services,103,Supplies and Services,504,Equipment,5023,Revenue,CATERING.FOOD & BEVERAGES
24-MAR-2022,7013215,0.86,TOTAL PRODUCE GATESHEAD,399244,Commissioning & Asset Management,Children's & Education Services,103,Supplies and Services,504,Equipment,5023,Revenue,CATERING.FOOD & BEVERAGES
24-MAR-2022,7013215,0.86,TOTAL PRODUCE GATESHEAD,399244,Commissioning & Asset Management,Children's & Education Services,103,Supplies and Services,504,Equipment,5023,Revenue,CATERING.FOOD & BEVERAGES
24-MAR-2022,7013215,0.86,TOTAL PRODUCE GATESHEAD,399244,Commissioning & Asset Management,Children's & Education Services,103,Supplies and Services,504,Equipment,5023,Revenue,CATERING.FOOD & BEVERAGES
24-MAR-2022,7013215,0.86,TOTAL PRODUCE GATESHEAD,399244,Commissioning & Asset Management,Children's & Education Services,103,Supplies and Services,504,Equipment,5023,Revenue,CATERING.FOOD & BEVERAGES
24-MAR-2022,7013215,0.86,TOTAL PRODUCE GATESHEAD,399244,Commissioning & Asset Management,Children's & Education Services,103,Supplies and Services,504,Equipment,5023,Revenue,CATERING.FOOD & BEVERAGES
24-MAR-2022,7013215,0.86,TOTAL PRODUCE GATESHEAD,399244,Commissioning & Asset Management,Children's & Education Services,103,Supplies and Services,504,Equipment,5023,Revenue,CATERING.FOOD & BEVERAGES
24-MAR-2022,7013215,0.86,TOTAL PRODUCE GATESHEAD,399244,Commissioning & Asset Management,Children's & Education Services,103,Supplies and Services,504,Equipment,5023,Revenue,CATERING.FOOD & BEVERAGES
24-MAR-2022,7013215,0.86,TOTAL PRODUCE GATESHEAD,399244,Commissioning & Asset Management,Children's & Education Services,103,Supplies and Services,504,Equipment,5023,Revenue,CATERING.FOOD & BEVERAGES
24-MAR-2022,7013215,0.86,TOTAL PRODUCE GATESHEAD,399244,Commissioning & Asset Management,Children's & Education Services,103,Supplies and Services,504,Equipment,5023,Revenue,CATERING.FOOD & BEVERAGES
24-MAR-2022,7013215,0.86,TOTAL PRODUCE GATESHEAD,399244,Commissioning & Asset Management,Children's & Education Services,103,Supplies and Services,504,Equipment,5023,Revenue,CATERING.FOOD & BEVERAGES
24-MAR-2022,7013215,0.86,TOTAL PRODUCE GATESHEAD,399244,Commissioning & Asset Management,Children's & Education Services,103,Supplies and Services,504,Equipment,5023,Revenue,CATERING.FOOD & BEVERAGES
24-MAR-2022,7013215,0.86,TOTAL PRODUCE GATESHEAD,399244,Commissioning & Asset Management,Children's & Education Services,103,Supplies and Services,504,Equipment,5023,Revenue,CATERING.FOOD & BEVERAGES
24-MAR-2022,7013215,0.86,TOTAL PRODUCE GATESHEAD,399244,Commissioning & Asset Management,Children's & Education Services,103,Supplies and Services,504,Equipment,5023,Revenue,CATERING.FOOD & BEVERAGES
24-MAR-2022,7013215,0.86,TOTAL PRODUCE GATESHEAD,399244,Commissioning & Asset Management,Children's & Education Services,103,Supplies and Services,504,Equipment,5023,Revenue,CATERING.FOOD & BEVERAGES
24-MAR-2022,7013215,0.86,TOTAL PRODUCE GATESHEAD,399244,Commissioning & Asset Management,Children's & Education Services,103,Supplies and Services,504,Equipment,5023,Revenue,CATERING.FOOD & BEVERAGES
24-MAR-2022,7013215,0.86,TOTAL PRODUCE GATESHEAD,399244,Commissioning & Asset Management,Children's & Education Services,103,Supplies and Services,504,Equipment,5023,Revenue,CATERING.FOOD & BEVERAGES
24-MAR-2022,7013215,0.86,TOTAL PRODUCE GATESHEAD,399244,Commissioning & Asset Management,Children's & Education Services,103,Supplies and Services,504,Equipment,5023,Revenue,CATERING.FOOD & BEVERAGES
24-MAR-2022,7013215,0.86,TOTAL PRODUCE GATESHEAD,399244,Commissioning & Asset Management,Children's & Education Services,103,Supplies and Services,504,Equipment,5023,Revenue,CATERING.FOOD & BEVERAGES
24-MAR-2022,7013215,0.86,TOTAL PRODUCE GATESHEAD,399244,Commissioning & Asset Management,Children's & Education Services,103,Supplies and Services,504,Equipment,5023,Revenue,CATERING.FOOD & BEVERAGES
24-MAR-2022,7013215,0.86,TOTAL PRODUCE GATESHEAD,399244,Commissioning & Asset Management,Children's & Education Services,103,Supplies and Services,504,Equipment,5023,Revenue,CATERING.FOOD & BEVERAGES
24-MAR-2022,7013215,0.86,TOTAL PRODUCE GATESHEAD,399244,Commissioning & Asset Management,Children's & Education Services,103,Supplies and Services,504,Equipment,5023,Revenue,CATERING.FOOD & BEVERAGES
24-MAR-2022,7013215,0.86,TOTAL PRODUCE GATESHEAD,399244,Commissioning & Asset Management,Children's & Education Services,103,Supplies and Services,504,Equipment,5023,Revenue,CATERING.FOOD & BEVERAGES
24-MAR-2022,7013215,0.86,TOTAL PRODUCE GATESHEAD,399244,Commissioning & Asset Management,Children's & Education Services,103,Supplies and Services,504,Equipment,5023,Revenue,CATERING.FOOD & BEVERAGES
24-MAR-2022,7013215,0.86,TOTAL PRODUCE GATESHEAD,399244,Commissioning & Asset Management,Children's & Education Services,103,Supplies and Services,504,Equipment,5023,Revenue,CATERING.FOOD & BEVERAGES
24-MAR-2022,7013215,0.86,TOTAL PRODUCE GATESHEAD,399244,Commissioning & Asset Management,Children's & Education Services,103,Supplies and Services,504,Equipment,5023,Revenue,CATERING.FOOD & BEVERAGES
24-MAR-2022,7013215,0.86,TOTAL PRODUCE GATESHEAD,399244,Commissioning & Asset Management,Children's & Education Services,103,Supplies and Services,504,Equipment,5023,Revenue,CATERING.FOOD & BEVERAGES
24-MAR-2022,7013215,0.86,TOTAL PRODUCE GATESHEAD,399244,Commissioning & Asset Management,Children's & Education Services,103,Supplies and Services,504,Equipment,5023,Revenue,CATERING.FOOD & BEVERAGES
24-MAR-2022,7013215,0.86,TOTAL PRODUCE GATESHEAD,399244,Commissioning & Asset Management,Children's & Education Services,103,Supplies and Services,504,Equipment,5023,Revenue,CATERING.FOOD & BEVERAGES
24-MAR-2022,7013215,0.86,TOTAL PRODUCE GATESHEAD,399244,Commissioning & Asset Management,Children's & Education Services,103,Supplies and Services,504,Equipment,5023,Revenue,CATERING.FOOD & BEVERAGES
24-MAR-2022,7013215,0.86,TOTAL PRODUCE GATESHEAD,399244,Commissioning & Asset Management,Children's & Education Services,103,Supplies and Services,504,Equipment,5023,Revenue,CATERING.FOOD & BEVERAGES
24-MAR-2022,7013215,0.86,TOTAL PRODUCE GATESHEAD,399244,Commissioning & Asset Management,Children's & Education Services,103,Supplies and Services,504,Equipment,5023,Revenue,CATERING.FOOD & BEVERAGES
24-MAR-2022,7013215,0.86,TOTAL PRODUCE GATESHEAD,399244,Commissioning & Asset Management,Children's & Education Services,103,Supplies and Services,504,Equipment,5023,Revenue,CATERING.FOOD & BEVERAGES
24-MAR-2022,7013215,0.86,TOTAL PRODUCE GATESHEAD,399244,Commissioning & Asset Management,Children's & Education Services,103,Supplies and Services,504,Equipment,5023,Revenue,CATERING.FOOD & BEVERAGES
24-MAR-2022,7013215,0.86,TOTAL PRODUCE GATESHEAD,399244,Commissioning & Asset Management,Children's & Education Services,103,Supplies and Services,504,Equipment,5023,Revenue,CATERING.FOOD & BEVERAGES
24-MAR-2022,7013215,0.86,TOTAL PRODUCE GATESHEAD,399244,Commissioning & Asset Management,Children's & Education Services,103,Supplies and Services,504,Equipment,5023,Revenue,CATERING.FOOD & BEVERAGES
24-MAR-2022,7013215,0.86,TOTAL PRODUCE GATESHEAD,399244,Commissioning & Asset Management,Children's & Education Services,103,Supplies and Services,504,Equipment,5023,Revenue,CATERING.FOOD & BEVERAGES
24-MAR-2022,7013215,0.86,TOTAL PRODUCE GATESHEAD,399244,Commissioning & Asset Management,Children's & Education Services,103,Supplies and Services,504,Equipment,5023,Revenue,CATERING.FOOD & BEVERAGES
24-MAR-2022,7013215,0.86,TOTAL PRODUCE GATESHEAD,399244,Commissioning & Asset Management,Children's & Education Services,103,Supplies and Services,504,Equipment,5023,Revenue,CATERING.FOOD & BEVERAGES
24-MAR-2022,7013215,0.86,TOTAL PRODUCE GATESHEAD,399244,Commissioning & Asset Management,Children's & Education Services,103,Supplies and Services,504,Equipment,5023,Revenue,CATERING.FOOD & BEVERAGES
24-MAR-2022,7013215,0.86,TOTAL PRODUCE GATESHEAD,399244,Commissioning & Asset Management,Children's & Education Services,103,Supplies and Services,504,Equipment,5023,Revenue,CATERING.FOOD & BEVERAGES
24-MAR-2022,7013215,0.86,TOTAL PRODUCE GATESHEAD,399244,Commissioning & Asset Management,Children's & Education Services,103,Supplies and Services,504,Equipment,5023,Revenue,CATERING.FOOD & BEVERAGES
24-MAR-2022,7013215,0.86,TOTAL PRODUCE GATESHEAD,399244,Commissioning & Asset Management,Children's & Education Services,103,Supplies and Services,504,Equipment,5023,Revenue,CATERING.FOOD & BEVERAGES
24-MAR-2022,7013215,0.86,TOTAL PRODUCE GATESHEAD,399244,Commissioning & Asset Management,Children's & Education Services,103,Supplies and Services,504,Equipment,5023,Revenue,CATERING.FOOD & BEVERAGES
24-MAR-2022,7013215,0.86,TOTAL PRODUCE GATESHEAD,399244,Commissioning & Asset Management,Children's & Education Services,103,Supplies and Services,504,Equipment,5023,Revenue,CATERING.FOOD & BEVERAGES
24-MAR-2022,7013215,0.86,TOTAL PRODUCE GATESHEAD,399244,Commissioning & Asset Management,Children's & Education Services,103,Supplies and Services,504,Equipment,5023,Revenue,CATERING.FOOD & BEVERAGES
24-MAR-2022,7013215,0.86,TOTAL PRODUCE GATESHEAD,399244,Commissioning & Asset Management,Children's & Education Services,103,Supplies and Services,504,Equipment,5023,Revenue,CATERING.FOOD & BEVERAGES
24-MAR-2022,7013215,0.86,TOTAL PRODUCE GATESHEAD,399244,Commissioning & Asset Management,Children's & Education Services,103,Supplies and Services,504,Equipment,5023,Revenue,CATERING.FOOD & BEVERAGES
24-MAR-2022,7013215,0.86,TOTAL PRODUCE GATESHEAD,399244,Commissioning & Asset Management,Children's & Education Services,103,Supplies and Services,504,Equipment,5023,Revenue,CATERING.FOOD & BEVERAGES
24-MAR-2022,7013215,0.86,TOTAL PRODUCE GATESHEAD,399244,Commissioning & Asset Management,Children's & Education Services,103,Supplies and Services,504,Equipment,5023,Revenue,CATERING.FOOD & BEVERAGES
24-MAR-2022,7013215,0.86,TOTAL PRODUCE GATESHEAD,399244,Commissioning & Asset Management,Children's & Education Services,103,Supplies and Services,504,Equipment,5023,Revenue,CATERING.FOOD & BEVERAGES
24-MAR-2022,7013215,0.86,TOTAL PRODUCE GATESHEAD,399244,Commissioning & Asset Management,Children's & Education Services,103,Supplies and Services,504,Equipment,5023,Revenue,CATERING.FOOD & BEVERAGES
24-MAR-2022,7013215,0.86,TOTAL PRODUCE GATESHEAD,399244,Commissioning & Asset Management,Children's & Education Services,103,Supplies and Services,504,Equipment,5023,Revenue,CATERING.FOOD & BEVERAGES
24-MAR-2022,7013215,0.86,TOTAL PRODUCE GATESHEAD,399244,Commissioning & Asset Management,Children's & Education Services,103,Supplies and Services,504,Equipment,5023,Revenue,CATERING.FOOD & BEVERAGES
24-MAR-2022,7013215,0.86,TOTAL PRODUCE GATESHEAD,399244,Commissioning & Asset Management,Children's & Education Services,103,Supplies and Services,504,Equipment,5023,Revenue,CATERING.FOOD & BEVERAGES
24-MAR-2022,7013215,0.86,TOTAL PRODUCE GATESHEAD,399244,Commissioning & Asset Management,Children's & Education Services,103,Supplies and Services,504,Equipment,5023,Revenue,CATERING.FOOD & BEVERAGES
24-MAR-2022,7013215,0.86,TOTAL PRODUCE GATESHEAD,399244,Commissioning & Asset Management,Children's & Education Services,103,Supplies and Services,504,Equipment,5023,Revenue,CATERING.FOOD & BEVERAGES
24-MAR-2022,7013215,0.86,TOTAL PRODUCE GATESHEAD,399244,Commissioning & Asset Management,Children's & Education Services,103,Supplies and Services,504,Equipment,5023,Revenue,CATERING.FOOD & BEVERAGES
24-MAR-2022,7013215,0.86,TOTAL PRODUCE GATESHEAD,399244,Commissioning & Asset Management,Children's & Education Services,103,Supplies and Services,504,Equipment,5023,Revenue,CATERING.FOOD & BEVERAGES
24-MAR-2022,7013215,0.86,TOTAL PRODUCE GATESHEAD,399244,Commissioning & Asset Management,Children's & Education Services,103,Supplies and Services,504,Equipment,5023,Revenue,CATERING.FOOD & BEVERAGES
24-MAR-2022,7013215,0.86,TOTAL PRODUCE GATESHEAD,399244,Commissioning & Asset Management,Children's & Education Services,103,Supplies and Services,504,Equipment,5023,Revenue,CATERING.FOOD & BEVERAGES
24-MAR-2022,7013215,0.86,TOTAL PRODUCE GATESHEAD,399244,Commissioning & Asset Management,Children's & Education Services,103,Supplies and Services,504,Equipment,5023,Revenue,CATERING.FOOD & BEVERAGES
24-MAR-2022,7013215,0.86,TOTAL PRODUCE GATESHEAD,399244,Commissioning & Asset Management,Children's & Education Services,103,Supplies and Services,504,Equipment,5023,Revenue,CATERING.FOOD & BEVERAGES
24-MAR-2022,7013215,0.86,TOTAL PRODUCE GATESHEAD,399244,Commissioning & Asset Management,Children's & Education Services,103,Supplies and Services,504,Equipment,5023,Revenue,CATERING.FOOD & BEVERAGES
24-MAR-2022,7013215,0.86,TOTAL PRODUCE GATESHEAD,399244,Commissioning & Asset Management,Children's & Education Services,103,Supplies and Services,504,Equipment,5023,Revenue,CATERING.FOOD & BEVERAGES
24-MAR-2022,7013215,0.86,TOTAL PRODUCE GATESHEAD,399244,Commissioning & Asset Management,Children's & Education Services,103,Supplies and Services,504,Equipment,5023,Revenue,CATERING.FOOD & BEVERAGES
24-MAR-2022,7013215,0.86,TOTAL PRODUCE GATESHEAD,399244,Commissioning & Asset Management,Children's & Education Services,103,Supplies and Services,504,Equipment,5023,Revenue,CATERING.FOOD & BEVERAGES
24-MAR-2022,7013215,0.86,TOTAL PRODUCE GATESHEAD,399244,Commissioning & Asset Management,Children's & Education Services,103,Supplies and Services,504,Equipment,5023,Revenue,CATERING.FOOD & BEVERAGES
24-MAR-2022,7013215,0.86,TOTAL PRODUCE GATESHEAD,399244,Commissioning & Asset Management,Children's & Education Services,103,Supplies and Services,504,Equipment,5023,Revenue,CATERING.FOOD & BEVERAGES
24-MAR-2022,7013215,0.86,TOTAL PRODUCE GATESHEAD,399244,Commissioning & Asset Management,Children's & Education Services,103,Supplies and Services,504,Equipment,5023,Revenue,CATERING.FOOD & BEVERAGES
24-MAR-2022,7013215,0.86,TOTAL PRODUCE GATESHEAD,399244,Commissioning & Asset Management,Children's & Education Services,103,Supplies and Services,504,Equipment,5023,Revenue,CATERING.FOOD & BEVERAGES
24-MAR-2022,7013215,0.86,TOTAL PRODUCE GATESHEAD,399244,Commissioning & Asset Management,Children's & Education Services,103,Supplies and Services,504,Equipment,5023,Revenue,CATERING.FOOD & BEVERAGES
24-MAR-2022,7013215,0.86,TOTAL PRODUCE GATESHEAD,399244,Commissioning & Asset Management,Children's & Education Services,103,Supplies and Services,504,Equipment,5023,Revenue,CATERING.FOOD & BEVERAGES
24-MAR-2022,7013215,0.86,TOTAL PRODUCE GATESHEAD,399244,Commissioning & Asset Management,Children's & Education Services,103,Supplies and Services,504,Equipment,5023,Revenue,CATERING.FOOD & BEVERAGES
24-MAR-2022,7013215,0.86,TOTAL PRODUCE GATESHEAD,399244,Commissioning & Asset Management,Children's & Education Services,103,Supplies and Services,504,Equipment,5023,Revenue,CATERING.FOOD & BEVERAGES
24-MAR-2022,7013215,0.86,TOTAL PRODUCE GATESHEAD,399244,Commissioning & Asset Management,Children's & Education Services,103,Supplies and Services,504,Equipment,5023,Revenue,CATERING.FOOD & BEVERAGES
24-MAR-2022,7013215,0.86,TOTAL PRODUCE GATESHEAD,399244,Commissioning & Asset Management,Children's & Education Services,103,Supplies and Services,504,Equipment,5023,Revenue,CATERING.FOOD & BEVERAGES
24-MAR-2022,7013215,0.86,TOTAL PRODUCE GATESHEAD,399244,Commissioning & Asset Management,Children's & Education Services,103,Supplies and Services,504,Equipment,5023,Revenue,CATERING.FOOD & BEVERAGES
24-MAR-2022,7013215,0.86,TOTAL PRODUCE GATESHEAD,399244,Commissioning & Asset Management,Children's & Education Services,103,Supplies and Services,504,Equipment,5023,Revenue,CATERING.FOOD & BEVERAGES
24-MAR-2022,7013215,0.86,TOTAL PRODUCE GATESHEAD,399244,Commissioning & Asset Management,Children's & Education Services,103,Supplies and Services,504,Equipment,5023,Revenue,CATERING.FOOD & BEVERAGES
24-MAR-2022,7013215,0.86,TOTAL PRODUCE GATESHEAD,399244,Commissioning & Asset Management,Children's & Education Services,103,Supplies and Services,504,Equipment,5023,Revenue,CATERING.FOOD & BEVERAGES
24-MAR-2022,7013215,0.88,TOTAL PRODUCE GATESHEAD,399244,Commissioning & Asset Management,Children's & Education Services,103,Supplies and Services,504,Equipment,5023,Revenue,CATERING.FOOD & BEVERAGES
24-MAR-2022,7013215,0.88,TOTAL PRODUCE GATESHEAD,399244,Commissioning & Asset Management,Children's & Education Services,103,Supplies and Services,504,Equipment,5023,Revenue,CATERING.FOOD & BEVERAGES
24-MAR-2022,7013215,0.88,TOTAL PRODUCE GATESHEAD,399244,Commissioning & Asset Management,Children's & Education Services,103,Supplies and Services,504,Equipment,5023,Revenue,CATERING.FOOD & BEVERAGES
24-MAR-2022,7013215,0.88,TOTAL PRODUCE GATESHEAD,399244,Commissioning & Asset Management,Children's & Education Services,103,Supplies and Services,504,Equipment,5023,Revenue,CATERING.FOOD & BEVERAGES
24-MAR-2022,7013215,0.88,TOTAL PRODUCE GATESHEAD,399244,Commissioning & Asset Management,Children's & Education Services,103,Supplies and Services,504,Equipment,5023,Revenue,CATERING.FOOD & BEVERAGES
24-MAR-2022,7013215,0.88,TOTAL PRODUCE GATESHEAD,399244,Commissioning & Asset Management,Children's & Education Services,103,Supplies and Services,504,Equipment,5023,Revenue,CATERING.FOOD & BEVERAGES
24-MAR-2022,7013215,0.88,TOTAL PRODUCE GATESHEAD,399244,Commissioning & Asset Management,Children's & Education Services,103,Supplies and Services,504,Equipment,5023,Revenue,CATERING.FOOD & BEVERAGES
24-MAR-2022,7013215,0.88,TOTAL PRODUCE GATESHEAD,399244,Commissioning & Asset Management,Children's & Education Services,103,Supplies and Services,504,Equipment,5023,Revenue,CATERING.FOOD & BEVERAGES
24-MAR-2022,7013215,0.88,TOTAL PRODUCE GATESHEAD,399244,Commissioning & Asset Management,Children's & Education Services,103,Supplies and Services,504,Equipment,5023,Revenue,CATERING.FOOD & BEVERAGES
24-MAR-2022,7013215,0.88,TOTAL PRODUCE GATESHEAD,399244,Commissioning & Asset Management,Children's & Education Services,103,Supplies and Services,504,Equipment,5023,Revenue,CATERING.FOOD & BEVERAGES
24-MAR-2022,7013215,0.88,TOTAL PRODUCE GATESHEAD,399244,Commissioning & Asset Management,Children's & Education Services,103,Supplies and Services,504,Equipment,5023,Revenue,CATERING.FOOD & BEVERAGES
24-MAR-2022,7013215,0.89,TOTAL PRODUCE GATESHEAD,399244,Commissioning & Asset Management,Children's & Education Services,103,Supplies and Services,504,Equipment,5023,Revenue,CATERING.FOOD & BEVERAGES
24-MAR-2022,7013215,0.89,TOTAL PRODUCE GATESHEAD,399244,Commissioning & Asset Management,Children's & Education Services,103,Supplies and Services,504,Equipment,5023,Revenue,CATERING.FOOD & BEVERAGES
24-MAR-2022,7013215,0.89,TOTAL PRODUCE GATESHEAD,399244,Commissioning & Asset Management,Children's & Education Services,103,Supplies and Services,504,Equipment,5023,Revenue,CATERING.FOOD & BEVERAGES
24-MAR-2022,7013215,0.89,TOTAL PRODUCE GATESHEAD,399244,Commissioning & Asset Management,Children's & Education Services,103,Supplies and Services,504,Equipment,5023,Revenue,CATERING.FOOD & BEVERAGES
24-MAR-2022,7013215,0.89,TOTAL PRODUCE GATESHEAD,399244,Commissioning & Asset Management,Children's & Education Services,103,Supplies and Services,504,Equipment,5023,Revenue,CATERING.FOOD & BEVERAGES
24-MAR-2022,7013215,0.89,TOTAL PRODUCE GATESHEAD,399244,Commissioning & Asset Management,Children's & Education Services,103,Supplies and Services,504,Equipment,5023,Revenue,CATERING.FOOD & BEVERAGES
24-MAR-2022,7013215,0.89,TOTAL PRODUCE GATESHEAD,399244,Commissioning & Asset Management,Children's & Education Services,103,Supplies and Services,504,Equipment,5023,Revenue,CATERING.FOOD & BEVERAGES
24-MAR-2022,7013215,0.91,TOTAL PRODUCE GATESHEAD,399244,Local Environmental Services,Adult Social Care,101,Supplies and Services,504,Equipment,5023,Revenue,CATERING.FOOD & BEVERAGES
24-MAR-2022,7013215,0.91,TOTAL PRODUCE GATESHEAD,399244,Local Environmental Services,Adult Social Care,101,Supplies and Services,504,Equipment,5023,Revenue,CATERING.FOOD & BEVERAGES
24-MAR-2022,7013215,0.91,TOTAL PRODUCE GATESHEAD,399244,Local Environmental Services,Adult Social Care,101,Supplies and Services,504,Equipment,5023,Revenue,CATERING.FOOD & BEVERAGES
24-MAR-2022,7013215,0.91,TOTAL PRODUCE GATESHEAD,399244,Local Environmental Services,Adult Social Care,101,Supplies and Services,504,Equipment,5023,Revenue,CATERING.FOOD & BEVERAGES
24-MAR-2022,7013215,0.91,TOTAL PRODUCE GATESHEAD,399244,Local Environmental Services,Adult Social Care,101,Supplies and Services,504,Equipment,5023,Revenue,CATERING.FOOD & BEVERAGES
24-MAR-2022,7013215,0.91,TOTAL PRODUCE GATESHEAD,399244,Commissioning & Asset Management,Children's & Education Services,103,Supplies and Services,504,Equipment,5023,Revenue,CATERING.FOOD & BEVERAGES
24-MAR-2022,7013215,0.91,TOTAL PRODUCE GATESHEAD,399244,Commissioning & Asset Management,Children's & Education Services,103,Supplies and Services,504,Equipment,5023,Revenue,CATERING.FOOD & BEVERAGES
24-MAR-2022,7013215,0.91,TOTAL PRODUCE GATESHEAD,399244,Commissioning & Asset Management,Children's & Education Services,103,Supplies and Services,504,Equipment,5023,Revenue,CATERING.FOOD & BEVERAGES
24-MAR-2022,7013215,0.91,TOTAL PRODUCE GATESHEAD,399244,Local Environmental Services,Cultural & Related Services,104,Supplies and Services,504,Equipment,5023,Revenue,CATERING.FOOD & BEVERAGES
24-MAR-2022,7013215,0.91,TOTAL PRODUCE GATESHEAD,399244,Local Environmental Services,Cultural & Related Services,104,Supplies and Services,504,Equipment,5023,Revenue,CATERING.FOOD & BEVERAGES
24-MAR-2022,7013215,0.91,TOTAL PRODUCE GATESHEAD,399244,Local Environmental Services,Cultural & Related Services,104,Supplies and Services,504,Equipment,5023,Revenue,CATERING.FOOD & BEVERAGES
24-MAR-2022,7013215,0.91,TOTAL PRODUCE GATESHEAD,399244,Local Environmental Services,Cultural & Related Services,104,Supplies and Services,504,Equipment,5023,Revenue,CATERING.FOOD & BEVERAGES
24-MAR-2022,7013215,0.92,TOTAL PRODUCE GATESHEAD,399244,Commissioning & Asset Management,Children's & Education Services,103,Supplies and Services,504,Equipment,5023,Revenue,CATERING.FOOD & BEVERAGES
24-MAR-2022,7013215,0.92,TOTAL PRODUCE GATESHEAD,399244,Commissioning & Asset Management,Children's & Education Services,103,Supplies and Services,504,Equipment,5023,Revenue,CATERING.FOOD & BEVERAGES
24-MAR-2022,7013215,0.92,TOTAL PRODUCE GATESHEAD,399244,Commissioning & Asset Management,Children's & Education Services,103,Supplies and Services,504,Equipment,5023,Revenue,CATERING.FOOD & BEVERAGES
24-MAR-2022,7013215,0.92,TOTAL PRODUCE GATESHEAD,399244,Commissioning & Asset Management,Children's & Education Services,103,Supplies and Services,504,Equipment,5023,Revenue,CATERING.FOOD & BEVERAGES
24-MAR-2022,7013215,0.93,TOTAL PRODUCE GATESHEAD,399244,Commissioning & Asset Management,Children's & Education Services,103,Supplies and Services,504,Equipment,5023,Revenue,CATERING.FOOD & BEVERAGES
24-MAR-2022,7013215,0.93,TOTAL PRODUCE GATESHEAD,399244,Commissioning & Asset Management,Children's & Education Services,103,Supplies and Services,504,Equipment,5023,Revenue,CATERING.FOOD & BEVERAGES
24-MAR-2022,7013215,0.93,TOTAL PRODUCE GATESHEAD,399244,Commissioning & Asset Management,Children's & Education Services,103,Supplies and Services,504,Equipment,5023,Revenue,CATERING.FOOD & BEVERAGES
24-MAR-2022,7013215,0.93,TOTAL PRODUCE GATESHEAD,399244,Commissioning & Asset Management,Children's & Education Services,103,Supplies and Services,504,Equipment,5023,Revenue,CATERING.FOOD & BEVERAGES
24-MAR-2022,7013215,0.93,TOTAL PRODUCE GATESHEAD,399244,Commissioning & Asset Management,Children's & Education Services,103,Supplies and Services,504,Equipment,5023,Revenue,CATERING.FOOD & BEVERAGES
24-MAR-2022,7013215,0.93,TOTAL PRODUCE GATESHEAD,399244,Commissioning & Asset Management,Children's & Education Services,103,Supplies and Services,504,Equipment,5023,Revenue,CATERING.FOOD & BEVERAGES
24-MAR-2022,7013215,0.93,TOTAL PRODUCE GATESHEAD,399244,Commissioning & Asset Management,Children's & Education Services,103,Supplies and Services,504,Equipment,5023,Revenue,CATERING.FOOD & BEVERAGES
24-MAR-2022,7013215,0.93,TOTAL PRODUCE GATESHEAD,399244,Commissioning & Asset Management,Children's & Education Services,103,Supplies and Services,504,Equipment,5023,Revenue,CATERING.FOOD & BEVERAGES
24-MAR-2022,7013215,0.93,TOTAL PRODUCE GATESHEAD,399244,Commissioning & Asset Management,Children's & Education Services,103,Supplies and Services,504,Equipment,5023,Revenue,CATERING.FOOD & BEVERAGES
24-MAR-2022,7013215,0.93,TOTAL PRODUCE GATESHEAD,399244,Commissioning & Asset Management,Children's & Education Services,103,Supplies and Services,504,Equipment,5023,Revenue,CATERING.FOOD & BEVERAGES
24-MAR-2022,7013215,0.93,TOTAL PRODUCE GATESHEAD,399244,Commissioning & Asset Management,Children's & Education Services,103,Supplies and Services,504,Equipment,5023,Revenue,CATERING.FOOD & BEVERAGES
24-MAR-2022,7013215,0.93,TOTAL PRODUCE GATESHEAD,399244,Commissioning & Asset Management,Children's & Education Services,103,Supplies and Services,504,Equipment,5023,Revenue,CATERING.FOOD & BEVERAGES
24-MAR-2022,7013215,0.95,TOTAL PRODUCE GATESHEAD,399244,Commissioning & Asset Management,Children's & Education Services,103,Supplies and Services,504,Equipment,5023,Revenue,CATERING.FOOD & BEVERAGES
24-MAR-2022,7013215,0.95,TOTAL PRODUCE GATESHEAD,399244,Commissioning & Asset Management,Children's & Education Services,103,Supplies and Services,504,Equipment,5023,Revenue,CATERING.FOOD & BEVERAGES
24-MAR-2022,7013215,0.95,TOTAL PRODUCE GATESHEAD,399244,Commissioning & Asset Management,Children's & Education Services,103,Supplies and Services,504,Equipment,5023,Revenue,CATERING.FOOD & BEVERAGES
24-MAR-2022,7013215,0.95,TOTAL PRODUCE GATESHEAD,399244,Commissioning & Asset Management,Children's & Education Services,103,Supplies and Services,504,Equipment,5023,Revenue,CATERING.FOOD & BEVERAGES
24-MAR-2022,7013215,0.95,TOTAL PRODUCE GATESHEAD,399244,Commissioning & Asset Management,Children's & Education Services,103,Supplies and Services,504,Equipment,5023,Revenue,CATERING.FOOD & BEVERAGES
24-MAR-2022,7013215,0.95,TOTAL PRODUCE GATESHEAD,399244,Commissioning & Asset Management,Children's & Education Services,103,Supplies and Services,504,Equipment,5023,Revenue,CATERING.FOOD & BEVERAGES
24-MAR-2022,7013215,0.95,TOTAL PRODUCE GATESHEAD,399244,Commissioning & Asset Management,Children's & Education Services,103,Supplies and Services,504,Equipment,5023,Revenue,CATERING.FOOD & BEVERAGES
24-MAR-2022,7013215,0.95,TOTAL PRODUCE GATESHEAD,399244,Commissioning & Asset Management,Children's & Education Services,103,Supplies and Services,504,Equipment,5023,Revenue,CATERING.FOOD & BEVERAGES
24-MAR-2022,7013215,0.95,TOTAL PRODUCE GATESHEAD,399244,Commissioning & Asset Management,Children's & Education Services,103,Supplies and Services,504,Equipment,5023,Revenue,CATERING.FOOD & BEVERAGES
24-MAR-2022,7013215,0.95,TOTAL PRODUCE GATESHEAD,399244,Commissioning & Asset Management,Children's & Education Services,103,Supplies and Services,504,Equipment,5023,Revenue,CATERING.FOOD & BEVERAGES
24-MAR-2022,7013215,0.95,TOTAL PRODUCE GATESHEAD,399244,Commissioning & Asset Management,Children's & Education Services,103,Supplies and Services,504,Equipment,5023,Revenue,CATERING.FOOD & BEVERAGES
24-MAR-2022,7013215,0.95,TOTAL PRODUCE GATESHEAD,399244,Commissioning & Asset Management,Children's & Education Services,103,Supplies and Services,504,Equipment,5023,Revenue,CATERING.FOOD & BEVERAGES
24-MAR-2022,7013215,0.95,TOTAL PRODUCE GATESHEAD,399244,Commissioning & Asset Management,Children's & Education Services,103,Supplies and Services,504,Equipment,5023,Revenue,CATERING.FOOD & BEVERAGES
24-MAR-2022,7013215,0.95,TOTAL PRODUCE GATESHEAD,399244,Commissioning & Asset Management,Children's & Education Services,103,Supplies and Services,504,Equipment,5023,Revenue,CATERING.FOOD & BEVERAGES
24-MAR-2022,7013215,0.95,TOTAL PRODUCE GATESHEAD,399244,Commissioning & Asset Management,Children's & Education Services,103,Supplies and Services,504,Equipment,5023,Revenue,CATERING.FOOD & BEVERAGES
24-MAR-2022,7013215,0.95,TOTAL PRODUCE GATESHEAD,399244,Commissioning & Asset Management,Children's & Education Services,103,Supplies and Services,504,Equipment,5023,Revenue,CATERING.FOOD & BEVERAGES
24-MAR-2022,7013215,0.95,TOTAL PRODUCE GATESHEAD,399244,Commissioning & Asset Management,Children's & Education Services,103,Supplies and Services,504,Equipment,5023,Revenue,CATERING.FOOD & BEVERAGES
24-MAR-2022,7013215,0.95,TOTAL PRODUCE GATESHEAD,399244,Commissioning & Asset Management,Children's & Education Services,103,Supplies and Services,504,Equipment,5023,Revenue,CATERING.FOOD & BEVERAGES
24-MAR-2022,7013215,0.95,TOTAL PRODUCE GATESHEAD,399244,Commissioning & Asset Management,Children's & Education Services,103,Supplies and Services,504,Equipment,5023,Revenue,CATERING.FOOD & BEVERAGES
24-MAR-2022,7013215,0.95,TOTAL PRODUCE GATESHEAD,399244,Commissioning & Asset Management,Children's & Education Services,103,Supplies and Services,504,Equipment,5023,Revenue,CATERING.FOOD & BEVERAGES
24-MAR-2022,7013215,0.95,TOTAL PRODUCE GATESHEAD,399244,Commissioning & Asset Management,Children's & Education Services,103,Supplies and Services,504,Equipment,5023,Revenue,CATERING.FOOD & BEVERAGES
24-MAR-2022,7013215,0.95,TOTAL PRODUCE GATESHEAD,399244,Commissioning & Asset Management,Children's & Education Services,103,Supplies and Services,504,Equipment,5023,Revenue,CATERING.FOOD & BEVERAGES
24-MAR-2022,7013215,0.95,TOTAL PRODUCE GATESHEAD,399244,Commissioning & Asset Management,Children's & Education Services,103,Supplies and Services,504,Equipment,5023,Revenue,CATERING.FOOD & BEVERAGES
24-MAR-2022,7013215,0.95,TOTAL PRODUCE GATESHEAD,399244,Commissioning & Asset Management,Children's & Education Services,103,Supplies and Services,504,Equipment,5023,Revenue,CATERING.FOOD & BEVERAGES
24-MAR-2022,7013215,0.95,TOTAL PRODUCE GATESHEAD,399244,Commissioning & Asset Management,Children's & Education Services,103,Supplies and Services,504,Equipment,5023,Revenue,CATERING.FOOD & BEVERAGES
24-MAR-2022,7013215,0.95,TOTAL PRODUCE GATESHEAD,399244,Commissioning & Asset Management,Children's & Education Services,103,Supplies and Services,504,Equipment,5023,Revenue,CATERING.FOOD & BEVERAGES
24-MAR-2022,7013215,0.95,TOTAL PRODUCE GATESHEAD,399244,Commissioning & Asset Management,Children's & Education Services,103,Supplies and Services,504,Equipment,5023,Revenue,CATERING.FOOD & BEVERAGES
24-MAR-2022,7013215,0.95,TOTAL PRODUCE GATESHEAD,399244,Commissioning & Asset Management,Children's & Education Services,103,Supplies and Services,504,Equipment,5023,Revenue,CATERING.FOOD & BEVERAGES
24-MAR-2022,7013215,0.95,TOTAL PRODUCE GATESHEAD,399244,Commissioning & Asset Management,Children's & Education Services,103,Supplies and Services,504,Equipment,5023,Revenue,CATERING.FOOD & BEVERAGES
24-MAR-2022,7013215,0.95,TOTAL PRODUCE GATESHEAD,399244,Commissioning & Asset Management,Children's & Education Services,103,Supplies and Services,504,Equipment,5023,Revenue,CATERING.FOOD & BEVERAGES
24-MAR-2022,7013215,0.95,TOTAL PRODUCE GATESHEAD,399244,Commissioning & Asset Management,Children's & Education Services,103,Supplies and Services,504,Equipment,5023,Revenue,CATERING.FOOD & BEVERAGES
24-MAR-2022,7013215,0.95,TOTAL PRODUCE GATESHEAD,399244,Commissioning & Asset Management,Children's & Education Services,103,Supplies and Services,504,Equipment,5023,Revenue,CATERING.FOOD & BEVERAGES
24-MAR-2022,7013215,0.95,TOTAL PRODUCE GATESHEAD,399244,Commissioning & Asset Management,Children's & Education Services,103,Supplies and Services,504,Equipment,5023,Revenue,CATERING.FOOD & BEVERAGES
24-MAR-2022,7013215,0.95,TOTAL PRODUCE GATESHEAD,399244,Commissioning & Asset Management,Children's & Education Services,103,Supplies and Services,504,Equipment,5023,Revenue,CATERING.FOOD & BEVERAGES
24-MAR-2022,7013215,0.95,TOTAL PRODUCE GATESHEAD,399244,Commissioning & Asset Management,Children's & Education Services,103,Supplies and Services,504,Equipment,5023,Revenue,CATERING.FOOD & BEVERAGES
24-MAR-2022,7013215,0.95,TOTAL PRODUCE GATESHEAD,399244,Commissioning & Asset Management,Children's & Education Services,103,Supplies and Services,504,Equipment,5023,Revenue,CATERING.FOOD & BEVERAGES
24-MAR-2022,7013215,0.95,TOTAL PRODUCE GATESHEAD,399244,Commissioning & Asset Management,Children's & Education Services,103,Supplies and Services,504,Equipment,5023,Revenue,CATERING.FOOD & BEVERAGES
24-MAR-2022,7013215,0.95,TOTAL PRODUCE GATESHEAD,399244,Commissioning & Asset Management,Children's & Education Services,103,Supplies and Services,504,Equipment,5023,Revenue,CATERING.FOOD & BEVERAGES
24-MAR-2022,7013215,0.95,TOTAL PRODUCE GATESHEAD,399244,Commissioning & Asset Management,Children's & Education Services,103,Supplies and Services,504,Equipment,5023,Revenue,CATERING.FOOD & BEVERAGES
24-MAR-2022,7013215,0.95,TOTAL PRODUCE GATESHEAD,399244,Commissioning & Asset Management,Children's & Education Services,103,Supplies and Services,504,Equipment,5023,Revenue,CATERING.FOOD & BEVERAGES
24-MAR-2022,7013215,0.95,TOTAL PRODUCE GATESHEAD,399244,Commissioning & Asset Management,Children's & Education Services,103,Supplies and Services,504,Equipment,5023,Revenue,CATERING.FOOD & BEVERAGES
24-MAR-2022,7013215,0.95,TOTAL PRODUCE GATESHEAD,399244,Commissioning & Asset Management,Children's & Education Services,103,Supplies and Services,504,Equipment,5023,Revenue,CATERING.FOOD & BEVERAGES
24-MAR-2022,7013215,0.95,TOTAL PRODUCE GATESHEAD,399244,Commissioning & Asset Management,Children's & Education Services,103,Supplies and Services,504,Equipment,5023,Revenue,CATERING.FOOD & BEVERAGES
24-MAR-2022,7013215,0.95,TOTAL PRODUCE GATESHEAD,399244,Commissioning & Asset Management,Children's & Education Services,103,Supplies and Services,504,Equipment,5023,Revenue,CATERING.FOOD & BEVERAGES
24-MAR-2022,7013215,0.95,TOTAL PRODUCE GATESHEAD,399244,Commissioning & Asset Management,Children's & Education Services,103,Supplies and Services,504,Equipment,5023,Revenue,CATERING.FOOD & BEVERAGES
24-MAR-2022,7013215,0.95,TOTAL PRODUCE GATESHEAD,399244,Commissioning & Asset Management,Children's & Education Services,103,Supplies and Services,504,Equipment,5023,Revenue,CATERING.FOOD & BEVERAGES
24-MAR-2022,7013215,0.95,TOTAL PRODUCE GATESHEAD,399244,Commissioning & Asset Management,Children's & Education Services,103,Supplies and Services,504,Equipment,5023,Revenue,CATERING.FOOD & BEVERAGES
24-MAR-2022,7013215,0.95,TOTAL PRODUCE GATESHEAD,399244,Commissioning & Asset Management,Children's & Education Services,103,Supplies and Services,504,Equipment,5023,Revenue,CATERING.FOOD & BEVERAGES
24-MAR-2022,7013215,0.95,TOTAL PRODUCE GATESHEAD,399244,Commissioning & Asset Management,Children's & Education Services,103,Supplies and Services,504,Equipment,5023,Revenue,CATERING.FOOD & BEVERAGES
24-MAR-2022,7013215,0.95,TOTAL PRODUCE GATESHEAD,399244,Commissioning & Asset Management,Children's & Education Services,103,Supplies and Services,504,Equipment,5023,Revenue,CATERING.FOOD & BEVERAGES
24-MAR-2022,7013215,0.95,TOTAL PRODUCE GATESHEAD,399244,Commissioning & Asset Management,Children's & Education Services,103,Supplies and Services,504,Equipment,5023,Revenue,CATERING.FOOD & BEVERAGES
24-MAR-2022,7013215,0.95,TOTAL PRODUCE GATESHEAD,399244,Commissioning & Asset Management,Children's & Education Services,103,Supplies and Services,504,Equipment,5023,Revenue,CATERING.FOOD & BEVERAGES
24-MAR-2022,7013215,0.95,TOTAL PRODUCE GATESHEAD,399244,Commissioning & Asset Management,Children's & Education Services,103,Supplies and Services,504,Equipment,5023,Revenue,CATERING.FOOD & BEVERAGES
24-MAR-2022,7013215,0.95,TOTAL PRODUCE GATESHEAD,399244,Commissioning & Asset Management,Children's & Education Services,103,Supplies and Services,504,Equipment,5023,Revenue,CATERING.FOOD & BEVERAGES
24-MAR-2022,7013215,0.95,TOTAL PRODUCE GATESHEAD,399244,Commissioning & Asset Management,Children's & Education Services,103,Supplies and Services,504,Equipment,5023,Revenue,CATERING.FOOD & BEVERAGES
24-MAR-2022,7013215,0.95,TOTAL PRODUCE GATESHEAD,399244,Commissioning & Asset Management,Children's & Education Services,103,Supplies and Services,504,Equipment,5023,Revenue,CATERING.FOOD & BEVERAGES
24-MAR-2022,7013215,0.95,TOTAL PRODUCE GATESHEAD,399244,Commissioning & Asset Management,Children's & Education Services,103,Supplies and Services,504,Equipment,5023,Revenue,CATERING.FOOD & BEVERAGES
24-MAR-2022,7013215,0.95,TOTAL PRODUCE GATESHEAD,399244,Commissioning & Asset Management,Children's & Education Services,103,Supplies and Services,504,Equipment,5023,Revenue,CATERING.FOOD & BEVERAGES
24-MAR-2022,7013215,0.95,TOTAL PRODUCE GATESHEAD,399244,Commissioning & Asset Management,Children's & Education Services,103,Supplies and Services,504,Equipment,5023,Revenue,CATERING.FOOD & BEVERAGES
24-MAR-2022,7013215,0.95,TOTAL PRODUCE GATESHEAD,399244,Commissioning & Asset Management,Children's & Education Services,103,Supplies and Services,504,Equipment,5023,Revenue,CATERING.FOOD & BEVERAGES
24-MAR-2022,7013215,0.95,TOTAL PRODUCE GATESHEAD,399244,Commissioning & Asset Management,Children's & Education Services,103,Supplies and Services,504,Equipment,5023,Revenue,CATERING.FOOD & BEVERAGES
24-MAR-2022,7013215,0.95,TOTAL PRODUCE GATESHEAD,399244,Commissioning & Asset Management,Children's & Education Services,103,Supplies and Services,504,Equipment,5023,Revenue,CATERING.FOOD & BEVERAGES
24-MAR-2022,7013215,0.95,TOTAL PRODUCE GATESHEAD,399244,Commissioning & Asset Management,Children's & Education Services,103,Supplies and Services,504,Equipment,5023,Revenue,CATERING.FOOD & BEVERAGES
24-MAR-2022,7013215,0.95,TOTAL PRODUCE GATESHEAD,399244,Commissioning & Asset Management,Children's & Education Services,103,Supplies and Services,504,Equipment,5023,Revenue,CATERING.FOOD & BEVERAGES
24-MAR-2022,7013215,0.95,TOTAL PRODUCE GATESHEAD,399244,Commissioning & Asset Management,Children's & Education Services,103,Supplies and Services,504,Equipment,5023,Revenue,CATERING.FOOD & BEVERAGES
24-MAR-2022,7013215,0.96,TOTAL PRODUCE GATESHEAD,399244,Commissioning & Asset Management,Children's & Education Services,103,Supplies and Services,504,Equipment,5023,Revenue,CATERING.FOOD & BEVERAGES
24-MAR-2022,7013215,0.96,TOTAL PRODUCE GATESHEAD,399244,Commissioning & Asset Management,Children's & Education Services,103,Supplies and Services,504,Equipment,5023,Revenue,CATERING.FOOD & BEVERAGES
24-MAR-2022,7013215,0.96,TOTAL PRODUCE GATESHEAD,399244,Commissioning & Asset Management,Children's & Education Services,103,Supplies and Services,504,Equipment,5023,Revenue,CATERING.FOOD & BEVERAGES
24-MAR-2022,7013215,0.96,TOTAL PRODUCE GATESHEAD,399244,Commissioning & Asset Management,Children's & Education Services,103,Supplies and Services,504,Equipment,5023,Revenue,CATERING.FOOD & BEVERAGES
24-MAR-2022,7013215,0.96,TOTAL PRODUCE GATESHEAD,399244,Commissioning & Asset Management,Children's & Education Services,103,Supplies and Services,504,Equipment,5023,Revenue,CATERING.FOOD & BEVERAGES
24-MAR-2022,7013215,0.96,TOTAL PRODUCE GATESHEAD,399244,Commissioning & Asset Management,Children's & Education Services,103,Supplies and Services,504,Equipment,5023,Revenue,CATERING.FOOD & BEVERAGES
24-MAR-2022,7013215,0.96,TOTAL PRODUCE GATESHEAD,399244,Commissioning & Asset Management,Children's & Education Services,103,Supplies and Services,504,Equipment,5023,Revenue,CATERING.FOOD & BEVERAGES
24-MAR-2022,7013215,0.96,TOTAL PRODUCE GATESHEAD,399244,Commissioning & Asset Management,Children's & Education Services,103,Supplies and Services,504,Equipment,5023,Revenue,CATERING.FOOD & BEVERAGES
24-MAR-2022,7013215,0.96,TOTAL PRODUCE GATESHEAD,399244,Commissioning & Asset Management,Children's & Education Services,103,Supplies and Services,504,Equipment,5023,Revenue,CATERING.FOOD & BEVERAGES
24-MAR-2022,7013215,0.96,TOTAL PRODUCE GATESHEAD,399244,Commissioning & Asset Management,Children's & Education Services,103,Supplies and Services,504,Equipment,5023,Revenue,CATERING.FOOD & BEVERAGES
24-MAR-2022,7013215,0.96,TOTAL PRODUCE GATESHEAD,399244,Commissioning & Asset Management,Children's & Education Services,103,Supplies and Services,504,Equipment,5023,Revenue,CATERING.FOOD & BEVERAGES
24-MAR-2022,7013215,0.96,TOTAL PRODUCE GATESHEAD,399244,Commissioning & Asset Management,Children's & Education Services,103,Supplies and Services,504,Equipment,5023,Revenue,CATERING.FOOD & BEVERAGES
24-MAR-2022,7013215,0.96,TOTAL PRODUCE GATESHEAD,399244,Commissioning & Asset Management,Children's & Education Services,103,Supplies and Services,504,Equipment,5023,Revenue,CATERING.FOOD & BEVERAGES
24-MAR-2022,7013215,0.97,TOTAL PRODUCE GATESHEAD,399244,Commissioning & Asset Management,Children's & Education Services,103,Supplies and Services,504,Equipment,5023,Revenue,CATERING.FOOD & BEVERAGES
24-MAR-2022,7013215,0.97,TOTAL PRODUCE GATESHEAD,399244,Commissioning & Asset Management,Children's & Education Services,103,Supplies and Services,504,Equipment,5023,Revenue,CATERING.FOOD & BEVERAGES
24-MAR-2022,7013215,0.97,TOTAL PRODUCE GATESHEAD,399244,Commissioning & Asset Management,Children's & Education Services,103,Supplies and Services,504,Equipment,5023,Revenue,CATERING.FOOD & BEVERAGES
24-MAR-2022,7013215,0.97,TOTAL PRODUCE GATESHEAD,399244,Commissioning & Asset Management,Children's & Education Services,103,Supplies and Services,504,Equipment,5023,Revenue,CATERING.FOOD & BEVERAGES
24-MAR-2022,7013215,0.97,TOTAL PRODUCE GATESHEAD,399244,Commissioning & Asset Management,Children's & Education Services,103,Supplies and Services,504,Equipment,5023,Revenue,CATERING.FOOD & BEVERAGES
24-MAR-2022,7013215,0.97,TOTAL PRODUCE GATESHEAD,399244,Commissioning & Asset Management,Children's & Education Services,103,Supplies and Services,504,Equipment,5023,Revenue,CATERING.FOOD & BEVERAGES
24-MAR-2022,7013215,0.97,TOTAL PRODUCE GATESHEAD,399244,Commissioning & Asset Management,Children's & Education Services,103,Supplies and Services,504,Equipment,5023,Revenue,CATERING.FOOD & BEVERAGES
24-MAR-2022,7013215,0.97,TOTAL PRODUCE GATESHEAD,399244,Commissioning & Asset Management,Children's & Education Services,103,Supplies and Services,504,Equipment,5023,Revenue,CATERING.FOOD & BEVERAGES
24-MAR-2022,7013215,0.97,TOTAL PRODUCE GATESHEAD,399244,Commissioning & Asset Management,Children's & Education Services,103,Supplies and Services,504,Equipment,5023,Revenue,CATERING.FOOD & BEVERAGES
24-MAR-2022,7013215,0.97,TOTAL PRODUCE GATESHEAD,399244,Commissioning & Asset Management,Children's & Education Services,103,Supplies and Services,504,Equipment,5023,Revenue,CATERING.FOOD & BEVERAGES
24-MAR-2022,7013215,0.97,TOTAL PRODUCE GATESHEAD,399244,Commissioning & Asset Management,Children's & Education Services,103,Supplies and Services,504,Equipment,5023,Revenue,CATERING.FOOD & BEVERAGES
24-MAR-2022,7013215,0.97,TOTAL PRODUCE GATESHEAD,399244,Commissioning & Asset Management,Children's & Education Services,103,Supplies and Services,504,Equipment,5023,Revenue,CATERING.FOOD & BEVERAGES
24-MAR-2022,7013215,0.97,TOTAL PRODUCE GATESHEAD,399244,Commissioning & Asset Management,Children's & Education Services,103,Supplies and Services,504,Equipment,5023,Revenue,CATERING.FOOD & BEVERAGES
24-MAR-2022,7013215,0.97,TOTAL PRODUCE GATESHEAD,399244,Commissioning & Asset Management,Children's & Education Services,103,Supplies and Services,504,Equipment,5023,Revenue,CATERING.FOOD & BEVERAGES
24-MAR-2022,7013215,0.97,TOTAL PRODUCE GATESHEAD,399244,Commissioning & Asset Management,Children's & Education Services,103,Supplies and Services,504,Equipment,5023,Revenue,CATERING.FOOD & BEVERAGES
24-MAR-2022,7013215,0.97,TOTAL PRODUCE GATESHEAD,399244,Commissioning & Asset Management,Children's & Education Services,103,Supplies and Services,504,Equipment,5023,Revenue,CATERING.FOOD & BEVERAGES
24-MAR-2022,7013215,0.97,TOTAL PRODUCE GATESHEAD,399244,Commissioning & Asset Management,Children's & Education Services,103,Supplies and Services,504,Equipment,5023,Revenue,CATERING.FOOD & BEVERAGES
24-MAR-2022,7013215,0.97,TOTAL PRODUCE GATESHEAD,399244,Commissioning & Asset Management,Children's & Education Services,103,Supplies and Services,504,Equipment,5023,Revenue,CATERING.FOOD & BEVERAGES
24-MAR-2022,7013215,0.97,TOTAL PRODUCE GATESHEAD,399244,Commissioning & Asset Management,Children's & Education Services,103,Supplies and Services,504,Equipment,5023,Revenue,CATERING.FOOD & BEVERAGES
24-MAR-2022,7013215,0.97,TOTAL PRODUCE GATESHEAD,399244,Commissioning & Asset Management,Children's & Education Services,103,Supplies and Services,504,Equipment,5023,Revenue,CATERING.FOOD & BEVERAGES
24-MAR-2022,7013215,0.97,TOTAL PRODUCE GATESHEAD,399244,Commissioning & Asset Management,Children's & Education Services,103,Supplies and Services,504,Equipment,5023,Revenue,CATERING.FOOD & BEVERAGES
24-MAR-2022,7013215,0.97,TOTAL PRODUCE GATESHEAD,399244,Commissioning & Asset Management,Children's & Education Services,103,Supplies and Services,504,Equipment,5023,Revenue,CATERING.FOOD & BEVERAGES
24-MAR-2022,7013215,0.97,TOTAL PRODUCE GATESHEAD,399244,Commissioning & Asset Management,Children's & Education Services,103,Supplies and Services,504,Equipment,5023,Revenue,CATERING.FOOD & BEVERAGES
24-MAR-2022,7013215,0.97,TOTAL PRODUCE GATESHEAD,399244,Commissioning & Asset Management,Children's & Education Services,103,Supplies and Services,504,Equipment,5023,Revenue,CATERING.FOOD & BEVERAGES
24-MAR-2022,7013215,0.97,TOTAL PRODUCE GATESHEAD,399244,Commissioning & Asset Management,Children's & Education Services,103,Supplies and Services,504,Equipment,5023,Revenue,CATERING.FOOD & BEVERAGES
24-MAR-2022,7013215,0.97,TOTAL PRODUCE GATESHEAD,399244,Commissioning & Asset Management,Children's & Education Services,103,Supplies and Services,504,Equipment,5023,Revenue,CATERING.FOOD & BEVERAGES
24-MAR-2022,7013215,0.97,TOTAL PRODUCE GATESHEAD,399244,Commissioning & Asset Management,Children's & Education Services,103,Supplies and Services,504,Equipment,5023,Revenue,CATERING.FOOD & BEVERAGES
24-MAR-2022,7013215,0.97,TOTAL PRODUCE GATESHEAD,399244,Commissioning & Asset Management,Children's & Education Services,103,Supplies and Services,504,Equipment,5023,Revenue,CATERING.FOOD & BEVERAGES
24-MAR-2022,7013215,0.97,TOTAL PRODUCE GATESHEAD,399244,Commissioning & Asset Management,Children's & Education Services,103,Supplies and Services,504,Equipment,5023,Revenue,CATERING.FOOD & BEVERAGES
24-MAR-2022,7013215,0.98,TOTAL PRODUCE GATESHEAD,399244,Commissioning & Asset Management,Children's & Education Services,103,Supplies and Services,504,Equipment,5023,Revenue,CATERING.FOOD & BEVERAGES
24-MAR-2022,7013215,0.98,TOTAL PRODUCE GATESHEAD,399244,Commissioning & Asset Management,Children's & Education Services,103,Supplies and Services,504,Equipment,5023,Revenue,CATERING.FOOD & BEVERAGES
24-MAR-2022,7013215,0.98,TOTAL PRODUCE GATESHEAD,399244,Commissioning & Asset Management,Children's & Education Services,103,Supplies and Services,504,Equipment,5023,Revenue,CATERING.FOOD & BEVERAGES
24-MAR-2022,7013215,1,TOTAL PRODUCE GATESHEAD,399244,Local Environmental Services,Adult Social Care,101,Supplies and Services,504,Equipment,5023,Revenue,CATERING.FOOD & BEVERAGES
24-MAR-2022,7013215,1,TOTAL PRODUCE GATESHEAD,399244,Local Environmental Services,Adult Social Care,101,Supplies and Services,504,Equipment,5023,Revenue,CATERING.FOOD & BEVERAGES
24-MAR-2022,7013215,1,TOTAL PRODUCE GATESHEAD,399244,Commissioning & Asset Management,Children's & Education Services,103,Supplies and Services,504,Equipment,5023,Revenue,CATERING.FOOD & BEVERAGES
24-MAR-2022,7013215,1,TOTAL PRODUCE GATESHEAD,399244,Commissioning & Asset Management,Children's & Education Services,103,Supplies and Services,504,Equipment,5023,Revenue,CATERING.FOOD & BEVERAGES
24-MAR-2022,7013215,1,TOTAL PRODUCE GATESHEAD,399244,Commissioning & Asset Management,Children's & Education Services,103,Supplies and Services,504,Equipment,5023,Revenue,CATERING.FOOD & BEVERAGES
24-MAR-2022,7013215,1,TOTAL PRODUCE GATESHEAD,399244,Commissioning & Asset Management,Children's & Education Services,103,Supplies and Services,504,Equipment,5023,Revenue,CATERING.FOOD & BEVERAGES
24-MAR-2022,7013215,1,TOTAL PRODUCE GATESHEAD,399244,Commissioning & Asset Management,Children's & Education Services,103,Supplies and Services,504,Equipment,5023,Revenue,CATERING.FOOD & BEVERAGES
24-MAR-2022,7013215,1,TOTAL PRODUCE GATESHEAD,399244,Commissioning & Asset Management,Children's & Education Services,103,Supplies and Services,504,Equipment,5023,Revenue,CATERING.FOOD & BEVERAGES
24-MAR-2022,7013215,1,TOTAL PRODUCE GATESHEAD,399244,Commissioning & Asset Management,Children's & Education Services,103,Supplies and Services,504,Equipment,5023,Revenue,CATERING.FOOD & BEVERAGES
24-MAR-2022,7013215,1,TOTAL PRODUCE GATESHEAD,399244,Commissioning & Asset Management,Children's & Education Services,103,Supplies and Services,504,Equipment,5023,Revenue,CATERING.FOOD & BEVERAGES
24-MAR-2022,7013215,1,TOTAL PRODUCE GATESHEAD,399244,Commissioning & Asset Management,Children's & Education Services,103,Supplies and Services,504,Equipment,5023,Revenue,CATERING.FOOD & BEVERAGES
24-MAR-2022,7013215,1,TOTAL PRODUCE GATESHEAD,399244,Commissioning & Asset Management,Children's & Education Services,103,Supplies and Services,504,Equipment,5023,Revenue,CATERING.FOOD & BEVERAGES
24-MAR-2022,7013215,1,TOTAL PRODUCE GATESHEAD,399244,Local Environmental Services,Cultural & Related Services,104,Supplies and Services,504,Equipment,5023,Revenue,CATERING.FOOD & BEVERAGES
24-MAR-2022,7013215,1.01,TOTAL PRODUCE GATESHEAD,399244,Commissioning & Asset Management,Children's & Education Services,103,Supplies and Services,504,Equipment,5023,Revenue,CATERING.FOOD & BEVERAGES
24-MAR-2022,7013215,1.01,TOTAL PRODUCE GATESHEAD,399244,Commissioning & Asset Management,Children's & Education Services,103,Supplies and Services,504,Equipment,5023,Revenue,CATERING.FOOD & BEVERAGES
24-MAR-2022,7013215,1.01,TOTAL PRODUCE GATESHEAD,399244,Commissioning & Asset Management,Children's & Education Services,103,Supplies and Services,504,Equipment,5023,Revenue,CATERING.FOOD & BEVERAGES
24-MAR-2022,7013215,1.01,TOTAL PRODUCE GATESHEAD,399244,Commissioning & Asset Management,Children's & Education Services,103,Supplies and Services,504,Equipment,5023,Revenue,CATERING.FOOD & BEVERAGES
24-MAR-2022,7013215,1.04,TOTAL PRODUCE GATESHEAD,399244,Local Environmental Services,Adult Social Care,101,Supplies and Services,504,Equipment,5023,Revenue,CATERING.FOOD & BEVERAGES
24-MAR-2022,7013215,1.04,TOTAL PRODUCE GATESHEAD,399244,Local Environmental Services,Adult Social Care,101,Supplies and Services,504,Equipment,5023,Revenue,CATERING.FOOD & BEVERAGES
24-MAR-2022,7013215,1.04,TOTAL PRODUCE GATESHEAD,399244,Commissioning & Asset Management,Children's & Education Services,103,Supplies and Services,504,Equipment,5023,Revenue,CATERING.FOOD & BEVERAGES
24-MAR-2022,7013215,1.04,TOTAL PRODUCE GATESHEAD,399244,Commissioning & Asset Management,Children's & Education Services,103,Supplies and Services,504,Equipment,5023,Revenue,CATERING.FOOD & BEVERAGES
24-MAR-2022,7013215,1.04,TOTAL PRODUCE GATESHEAD,399244,Commissioning & Asset Management,Children's & Education Services,103,Supplies and Services,504,Equipment,5023,Revenue,CATERING.FOOD & BEVERAGES
24-MAR-2022,7013215,1.04,TOTAL PRODUCE GATESHEAD,399244,Commissioning & Asset Management,Children's & Education Services,103,Supplies and Services,504,Equipment,5023,Revenue,CATERING.FOOD & BEVERAGES
24-MAR-2022,7013215,1.04,TOTAL PRODUCE GATESHEAD,399244,Commissioning & Asset Management,Children's & Education Services,103,Supplies and Services,504,Equipment,5023,Revenue,CATERING.FOOD & BEVERAGES
24-MAR-2022,7013215,1.04,TOTAL PRODUCE GATESHEAD,399244,Commissioning & Asset Management,Children's & Education Services,103,Supplies and Services,504,Equipment,5023,Revenue,CATERING.FOOD & BEVERAGES
24-MAR-2022,7013215,1.04,TOTAL PRODUCE GATESHEAD,399244,Commissioning & Asset Management,Children's & Education Services,103,Supplies and Services,504,Equipment,5023,Revenue,CATERING.FOOD & BEVERAGES
24-MAR-2022,7013215,1.04,TOTAL PRODUCE GATESHEAD,399244,Commissioning & Asset Management,Children's & Education Services,103,Supplies and Services,504,Equipment,5023,Revenue,CATERING.FOOD & BEVERAGES
24-MAR-2022,7013215,1.04,TOTAL PRODUCE GATESHEAD,399244,Commissioning & Asset Management,Children's & Education Services,103,Supplies and Services,504,Equipment,5023,Revenue,CATERING.FOOD & BEVERAGES
24-MAR-2022,7013215,1.04,TOTAL PRODUCE GATESHEAD,399244,Commissioning & Asset Management,Children's & Education Services,103,Supplies and Services,504,Equipment,5023,Revenue,CATERING.FOOD & BEVERAGES
24-MAR-2022,7013215,1.04,TOTAL PRODUCE GATESHEAD,399244,Commissioning & Asset Management,Children's & Education Services,103,Supplies and Services,504,Equipment,5023,Revenue,CATERING.FOOD & BEVERAGES
24-MAR-2022,7013215,1.04,TOTAL PRODUCE GATESHEAD,399244,Commissioning & Asset Management,Children's & Education Services,103,Supplies and Services,504,Equipment,5023,Revenue,CATERING.FOOD & BEVERAGES
24-MAR-2022,7013215,1.04,TOTAL PRODUCE GATESHEAD,399244,Commissioning & Asset Management,Children's & Education Services,103,Supplies and Services,504,Equipment,5023,Revenue,CATERING.FOOD & BEVERAGES
24-MAR-2022,7013215,1.04,TOTAL PRODUCE GATESHEAD,399244,Commissioning & Asset Management,Children's & Education Services,103,Supplies and Services,504,Equipment,5023,Revenue,CATERING.FOOD & BEVERAGES
24-MAR-2022,7013215,1.04,TOTAL PRODUCE GATESHEAD,399244,Commissioning & Asset Management,Children's & Education Services,103,Supplies and Services,504,Equipment,5023,Revenue,CATERING.FOOD & BEVERAGES
24-MAR-2022,7013215,1.04,TOTAL PRODUCE GATESHEAD,399244,Commissioning & Asset Management,Children's & Education Services,103,Supplies and Services,504,Equipment,5023,Revenue,CATERING.FOOD & BEVERAGES
24-MAR-2022,7013215,1.04,TOTAL PRODUCE GATESHEAD,399244,Commissioning & Asset Management,Children's & Education Services,103,Supplies and Services,504,Equipment,5023,Revenue,CATERING.FOOD & BEVERAGES
24-MAR-2022,7013215,1.04,TOTAL PRODUCE GATESHEAD,399244,Commissioning & Asset Management,Children's & Education Services,103,Supplies and Services,504,Equipment,5023,Revenue,CATERING.FOOD & BEVERAGES
24-MAR-2022,7013215,1.04,TOTAL PRODUCE GATESHEAD,399244,Commissioning & Asset Management,Children's & Education Services,103,Supplies and Services,504,Equipment,5023,Revenue,CATERING.FOOD & BEVERAGES
24-MAR-2022,7013215,1.04,TOTAL PRODUCE GATESHEAD,399244,Commissioning & Asset Management,Children's & Education Services,103,Supplies and Services,504,Equipment,5023,Revenue,CATERING.FOOD & BEVERAGES
24-MAR-2022,7013215,1.04,TOTAL PRODUCE GATESHEAD,399244,Commissioning & Asset Management,Children's & Education Services,103,Supplies and Services,504,Equipment,5023,Revenue,CATERING.FOOD & BEVERAGES
24-MAR-2022,7013215,1.04,TOTAL PRODUCE GATESHEAD,399244,Commissioning & Asset Management,Children's & Education Services,103,Supplies and Services,504,Equipment,5023,Revenue,CATERING.FOOD & BEVERAGES
24-MAR-2022,7013215,1.04,TOTAL PRODUCE GATESHEAD,399244,Commissioning & Asset Management,Children's & Education Services,103,Supplies and Services,504,Equipment,5023,Revenue,CATERING.FOOD & BEVERAGES
24-MAR-2022,7013215,1.04,TOTAL PRODUCE GATESHEAD,399244,Commissioning & Asset Management,Children's & Education Services,103,Supplies and Services,504,Equipment,5023,Revenue,CATERING.FOOD & BEVERAGES
24-MAR-2022,7013215,1.04,TOTAL PRODUCE GATESHEAD,399244,Commissioning & Asset Management,Children's & Education Services,103,Supplies and Services,504,Equipment,5023,Revenue,CATERING.FOOD & BEVERAGES
24-MAR-2022,7013215,1.04,TOTAL PRODUCE GATESHEAD,399244,Commissioning & Asset Management,Children's & Education Services,103,Supplies and Services,504,Equipment,5023,Revenue,CATERING.FOOD & BEVERAGES
24-MAR-2022,7013215,1.04,TOTAL PRODUCE GATESHEAD,399244,Commissioning & Asset Management,Children's & Education Services,103,Supplies and Services,504,Equipment,5023,Revenue,CATERING.FOOD & BEVERAGES
24-MAR-2022,7013215,1.04,TOTAL PRODUCE GATESHEAD,399244,Commissioning & Asset Management,Children's & Education Services,103,Supplies and Services,504,Equipment,5023,Revenue,CATERING.FOOD & BEVERAGES
24-MAR-2022,7013215,1.05,TOTAL PRODUCE GATESHEAD,399244,Commissioning & Asset Management,Children's & Education Services,103,Supplies and Services,504,Equipment,5023,Revenue,CATERING.FOOD & BEVERAGES
24-MAR-2022,7013215,1.05,TOTAL PRODUCE GATESHEAD,399244,Commissioning & Asset Management,Children's & Education Services,103,Supplies and Services,504,Equipment,5023,Revenue,CATERING.FOOD & BEVERAGES
24-MAR-2022,7013215,1.06,TOTAL PRODUCE GATESHEAD,399244,Commissioning & Asset Management,Children's & Education Services,103,Supplies and Services,504,Equipment,5023,Revenue,CATERING.FOOD & BEVERAGES
24-MAR-2022,7013215,1.06,TOTAL PRODUCE GATESHEAD,399244,Commissioning & Asset Management,Children's & Education Services,103,Supplies and Services,504,Equipment,5023,Revenue,CATERING.FOOD & BEVERAGES
24-MAR-2022,7013215,1.06,TOTAL PRODUCE GATESHEAD,399244,Commissioning & Asset Management,Children's & Education Services,103,Supplies and Services,504,Equipment,5023,Revenue,CATERING.FOOD & BEVERAGES
24-MAR-2022,7013215,1.06,TOTAL PRODUCE GATESHEAD,399244,Commissioning & Asset Management,Children's & Education Services,103,Supplies and Services,504,Equipment,5023,Revenue,CATERING.FOOD & BEVERAGES
24-MAR-2022,7013215,1.06,TOTAL PRODUCE GATESHEAD,399244,Commissioning & Asset Management,Children's & Education Services,103,Supplies and Services,504,Equipment,5023,Revenue,CATERING.FOOD & BEVERAGES
24-MAR-2022,7013215,1.06,TOTAL PRODUCE GATESHEAD,399244,Commissioning & Asset Management,Children's & Education Services,103,Supplies and Services,504,Equipment,5023,Revenue,CATERING.FOOD & BEVERAGES
24-MAR-2022,7013215,1.06,TOTAL PRODUCE GATESHEAD,399244,Commissioning & Asset Management,Children's & Education Services,103,Supplies and Services,504,Equipment,5023,Revenue,CATERING.FOOD & BEVERAGES
24-MAR-2022,7013215,1.06,TOTAL PRODUCE GATESHEAD,399244,Commissioning & Asset Management,Children's & Education Services,103,Supplies and Services,504,Equipment,5023,Revenue,CATERING.FOOD & BEVERAGES
24-MAR-2022,7013215,1.06,TOTAL PRODUCE GATESHEAD,399244,Commissioning & Asset Management,Children's & Education Services,103,Supplies and Services,504,Equipment,5023,Revenue,CATERING.FOOD & BEVERAGES
24-MAR-2022,7013215,1.06,TOTAL PRODUCE GATESHEAD,399244,Commissioning & Asset Management,Children's & Education Services,103,Supplies and Services,504,Equipment,5023,Revenue,CATERING.FOOD & BEVERAGES
24-MAR-2022,7013215,1.06,TOTAL PRODUCE GATESHEAD,399244,Commissioning & Asset Management,Children's & Education Services,103,Supplies and Services,504,Equipment,5023,Revenue,CATERING.FOOD & BEVERAGES
24-MAR-2022,7013215,1.06,TOTAL PRODUCE GATESHEAD,399244,Commissioning & Asset Management,Children's & Education Services,103,Supplies and Services,504,Equipment,5023,Revenue,CATERING.FOOD & BEVERAGES
24-MAR-2022,7013215,1.06,TOTAL PRODUCE GATESHEAD,399244,Commissioning & Asset Management,Children's & Education Services,103,Supplies and Services,504,Equipment,5023,Revenue,CATERING.FOOD & BEVERAGES
24-MAR-2022,7013215,1.06,TOTAL PRODUCE GATESHEAD,399244,Commissioning & Asset Management,Children's & Education Services,103,Supplies and Services,504,Equipment,5023,Revenue,CATERING.FOOD & BEVERAGES
24-MAR-2022,7013215,1.06,TOTAL PRODUCE GATESHEAD,399244,Commissioning & Asset Management,Children's & Education Services,103,Supplies and Services,504,Equipment,5023,Revenue,CATERING.FOOD & BEVERAGES
24-MAR-2022,7013215,1.06,TOTAL PRODUCE GATESHEAD,399244,Commissioning & Asset Management,Children's & Education Services,103,Supplies and Services,504,Equipment,5023,Revenue,CATERING.FOOD & BEVERAGES
24-MAR-2022,7013215,1.06,TOTAL PRODUCE GATESHEAD,399244,Commissioning & Asset Management,Children's & Education Services,103,Supplies and Services,504,Equipment,5023,Revenue,CATERING.FOOD & BEVERAGES
24-MAR-2022,7013215,1.06,TOTAL PRODUCE GATESHEAD,399244,Commissioning & Asset Management,Children's & Education Services,103,Supplies and Services,504,Equipment,5023,Revenue,CATERING.FOOD & BEVERAGES
24-MAR-2022,7013215,1.06,TOTAL PRODUCE GATESHEAD,399244,Commissioning & Asset Management,Children's & Education Services,103,Supplies and Services,504,Equipment,5023,Revenue,CATERING.FOOD & BEVERAGES
24-MAR-2022,7013215,1.06,TOTAL PRODUCE GATESHEAD,399244,Commissioning & Asset Management,Children's & Education Services,103,Supplies and Services,504,Equipment,5023,Revenue,CATERING.FOOD & BEVERAGES
24-MAR-2022,7013215,1.06,TOTAL PRODUCE GATESHEAD,399244,Commissioning & Asset Management,Children's & Education Services,103,Supplies and Services,504,Equipment,5023,Revenue,CATERING.FOOD & BEVERAGES
24-MAR-2022,7013215,1.06,TOTAL PRODUCE GATESHEAD,399244,Commissioning & Asset Management,Children's & Education Services,103,Supplies and Services,504,Equipment,5023,Revenue,CATERING.FOOD & BEVERAGES
24-MAR-2022,7013215,1.06,TOTAL PRODUCE GATESHEAD,399244,Commissioning & Asset Management,Children's & Education Services,103,Supplies and Services,504,Equipment,5023,Revenue,CATERING.FOOD & BEVERAGES
24-MAR-2022,7013215,1.06,TOTAL PRODUCE GATESHEAD,399244,Commissioning & Asset Management,Children's & Education Services,103,Supplies and Services,504,Equipment,5023,Revenue,CATERING.FOOD & BEVERAGES
24-MAR-2022,7013215,1.06,TOTAL PRODUCE GATESHEAD,399244,Commissioning & Asset Management,Children's & Education Services,103,Supplies and Services,504,Equipment,5023,Revenue,CATERING.FOOD & BEVERAGES
24-MAR-2022,7013215,1.06,TOTAL PRODUCE GATESHEAD,399244,Commissioning & Asset Management,Children's & Education Services,103,Supplies and Services,504,Equipment,5023,Revenue,CATERING.FOOD & BEVERAGES
24-MAR-2022,7013215,1.06,TOTAL PRODUCE GATESHEAD,399244,Commissioning & Asset Management,Children's & Education Services,103,Supplies and Services,504,Equipment,5023,Revenue,CATERING.FOOD & BEVERAGES
24-MAR-2022,7013215,1.06,TOTAL PRODUCE GATESHEAD,399244,Commissioning & Asset Management,Children's & Education Services,103,Supplies and Services,504,Equipment,5023,Revenue,CATERING.FOOD & BEVERAGES
24-MAR-2022,7013215,1.06,TOTAL PRODUCE GATESHEAD,399244,Commissioning & Asset Management,Children's & Education Services,103,Supplies and Services,504,Equipment,5023,Revenue,CATERING.FOOD & BEVERAGES
24-MAR-2022,7013215,1.06,TOTAL PRODUCE GATESHEAD,399244,Commissioning & Asset Management,Children's & Education Services,103,Supplies and Services,504,Equipment,5023,Revenue,CATERING.FOOD & BEVERAGES
24-MAR-2022,7013215,1.06,TOTAL PRODUCE GATESHEAD,399244,Commissioning & Asset Management,Children's & Education Services,103,Supplies and Services,504,Equipment,5023,Revenue,CATERING.FOOD & BEVERAGES
24-MAR-2022,7013215,1.06,TOTAL PRODUCE GATESHEAD,399244,Commissioning & Asset Management,Children's & Education Services,103,Supplies and Services,504,Equipment,5023,Revenue,CATERING.FOOD & BEVERAGES
24-MAR-2022,7013215,1.06,TOTAL PRODUCE GATESHEAD,399244,Commissioning & Asset Management,Children's & Education Services,103,Supplies and Services,504,Equipment,5023,Revenue,CATERING.FOOD & BEVERAGES
24-MAR-2022,7013215,1.06,TOTAL PRODUCE GATESHEAD,399244,Commissioning & Asset Management,Children's & Education Services,103,Supplies and Services,504,Equipment,5023,Revenue,CATERING.FOOD & BEVERAGES
